{"text_format":"1","workbook":"xlsx","n_sheets":7,"sheets":["入力してください","表面（印刷画面）","裏面（印刷画面）","源泉あり","源泉なし","必要書類","※入力厳禁※計算用"],"not_rendered":{"charts":0,"images":0,"macros":0,"external_links":0,"defined_names":1,"comments":2,"pivot_tables":0},"unopened":[],"bounds":{"document_bytes":16777216,"sheet_cells":100000,"rows_first":2000,"rows_last":500,"rows_between":2000,"halvings":0,"cell_chars":16384,"cell_head_chars":4096},"cells_cut":0,"cells_raw":0,"read":"whole","date_system":"1900"}

{"sheet":"入力してください","index":0,"n_rows":907,"n_cols":308,"rows_kept":907,"cut":false,"hidden":false,"merged":[[899,4,905,172],[906,4,917,173],[887,4,896,173],[3,2,17,137],[414,101,419,195],[544,141,549,151],[550,87,552,110],[550,111,552,151],[553,87,555,110],[553,111,555,151],[556,87,559,110],[556,111,559,151],[532,79,559,86],[532,87,537,107],[532,108,537,151],[538,87,543,107],[538,108,543,151],[544,87,549,110],[544,111,549,140],[255,3,259,28],[255,29,259,66],[255,67,259,70],[260,3,264,28],[260,29,264,66],[260,67,264,70],[425,101,430,180],[431,115,436,180],[431,101,436,114],[284,83,291,140],[310,134,314,137],[292,110,304,137],[302,3,306,70],[337,3,341,29],[337,30,341,66],[337,67,341,70],[342,3,346,29],[342,30,346,66],[342,67,346,70],[390,3,394,34],[390,35,394,66],[390,67,394,70],[357,67,361,70],[347,3,351,35],[347,36,351,66],[352,3,356,35],[352,36,356,66],[357,3,361,35],[357,36,361,66],[347,67,351,70],[352,67,356,70],[309,3,313,28],[553,11,555,34],[553,35,555,75],[556,11,559,34],[532,3,559,10],[556,35,559,75],[550,11,552,34],[550,35,552,75],[309,29,313,66],[309,67,313,70],[403,3,407,106],[526,3,530,106],[310,83,314,109],[868,3,872,36],[734,13,738,34],[734,35,738,78],[714,35,718,78],[719,35,723,78],[724,35,728,78],[729,35,733,78],[714,3,738,12],[719,13,723,34],[714,13,718,34],[786,13,790,34],[786,35,790,78],[740,3,764,12],[740,13,744,34],[740,35,744,78],[745,13,749,34],[745,35,749,78],[750,13,754,34],[750,35,754,78],[755,13,759,34],[755,35,759,78],[760,13,764,34],[760,35,764,78],[832,3,836,46],[878,3,882,36],[868,37,872,70],[868,71,872,75],[873,37,877,70],[873,71,877,75],[878,37,882,70],[878,71,882,75],[395,67,399,70],[395,3,399,34],[395,35,399,66],[640,3,644,32],[635,3,639,32],[635,33,639,75],[640,33,644,75],[645,3,649,32],[645,33,649,75],[724,13,728,34],[544,11,549,34],[544,35,549,64],[544,65,549,75],[650,3,654,32],[650,33,654,70],[650,71,654,75],[873,3,877,36],[310,110,314,133],[292,83,304,109],[305,83,309,109],[305,110,309,133],[305,134,309,137],[293,3,297,70],[314,3,326,28],[314,29,326,66],[314,67,326,70],[281,3,285,70],[288,3,292,28],[288,29,292,66],[288,67,292,70],[31,54,34,57],[31,58,34,66],[31,67,34,70],[70,3,74,44],[70,45,74,137],[75,3,79,27],[35,28,39,137],[40,28,44,137],[45,28,49,137],[50,28,54,137],[55,28,59,137],[60,28,64,137],[65,28,69,137],[75,28,79,137],[55,3,59,27],[65,3,69,27],[83,3,88,141],[212,68,216,71],[232,3,236,112],[250,3,254,112],[91,3,95,106],[96,4,100,76],[102,7,106,11],[107,7,111,11],[112,7,116,11],[23,3,28,96],[102,12,106,39],[107,12,111,39],[112,12,116,39],[35,3,39,27],[45,3,49,27],[50,3,54,27],[31,3,34,27],[31,28,34,41],[31,42,34,45],[31,46,34,53],[60,3,64,27],[40,3,44,27],[128,4,132,29],[128,30,132,67],[128,68,132,71],[196,4,200,78],[191,4,195,78],[133,4,137,29],[133,30,137,67],[133,68,137,71],[149,4,153,29],[149,30,153,67],[149,68,153,71],[154,4,158,29],[154,30,158,67],[154,68,158,71],[170,4,174,29],[170,30,174,67],[170,68,174,71],[175,4,179,29],[175,30,179,67],[175,68,179,71],[212,4,216,29],[212,30,216,67],[217,30,221,67],[217,68,221,71],[409,101,413,195],[538,11,543,31],[532,11,537,31],[532,32,537,75],[538,32,543,75],[424,27,430,51],[417,27,423,51],[410,27,416,51],[410,4,430,26],[424,52,430,87],[410,52,416,87],[417,52,423,87],[274,3,279,108],[237,3,241,28],[237,29,241,66],[237,67,241,70],[242,3,246,28],[242,29,246,66],[242,67,246,70],[217,4,221,29],[697,102,721,111],[697,112,701,133],[729,13,733,34],[697,134,701,177],[702,112,706,133],[702,134,706,177],[707,112,711,133],[707,134,711,177],[712,112,716,133],[712,134,716,177],[717,112,721,133],[717,134,721,177],[743,134,747,177],[749,102,773,111],[769,112,773,133],[769,134,773,177],[792,35,796,78],[797,13,801,34],[797,35,801,78],[802,13,806,34],[802,35,806,78],[723,102,747,111],[723,112,727,133],[723,134,727,177],[728,112,732,133],[728,134,732,177],[733,112,737,133],[733,134,737,177],[738,112,742,133],[738,134,742,177],[743,112,747,133],[792,13,796,34],[766,13,770,34],[766,35,770,78],[771,13,775,34],[771,35,775,78],[807,13,811,34],[807,35,811,78],[812,13,816,34],[812,35,816,78],[766,3,790,12],[792,3,816,12],[776,13,780,34],[776,35,780,78],[781,13,785,34],[781,35,785,78],[827,47,831,91],[832,47,836,91],[837,47,841,91],[749,112,753,133],[749,134,753,177],[754,112,758,133],[754,134,758,177],[759,112,763,133],[759,134,763,177],[764,112,768,133],[764,134,768,177],[629,3,633,106],[688,3,692,84],[688,102,692,177],[821,3,825,106],[862,3,866,106],[122,3,126,106],[143,3,147,106],[164,3,168,106],[185,3,189,106],[206,3,210,106],[225,3,229,106],[330,3,334,106],[365,3,369,106],[842,47,846,86],[842,87,846,91],[847,47,851,86],[847,87,851,91],[852,47,856,86],[852,87,856,91],[852,3,856,46],[847,3,851,46],[827,3,831,46],[837,3,841,46],[842,3,846,46]]}
[]
[]
[]
[null,null,"令和7年度町民税・県民税申告書作成ページ"]
[]
[]
[]
[]
[]
[]
[]
[]
[]
[]
[]
[]
[]
[]
[]
[]
[]
[]
[]
[null,null,null,"①下記の項目を入力してください。（※部分は必須項目です。）"]
[]
[]
[]
[]
[]
[]
[]
[null,null,null,"提出年月日",null,null,null,null,null,null,null,null,null,null,null,null,null,null,null,null,null,null,null,null,null,null,null,null,null,null,null,null,null,null,null,null,null,null,null,null,null,null,"年",null,null,null,null,null,null,null,null,null,null,null,"月",null,null,null,null,null,null,null,null,null,null,null,null,"日"]
[]
[]
[]
[null,null,null,"※現住所"]
[]
[]
[]
[]
[null,null,null,"※1月1日現在の住所"]
[]
[]
[]
[]
[null,null,null,"※氏名"]
[]
[]
[]
[]
[null,null,null,"※氏名（フリガナ）"]
[]
[]
[]
[]
[null,null,null,"※生年月日"]
[]
[]
[]
[]
[null,null,null,"世帯主の名前"]
[]
[]
[]
[]
[null,null,null,"続柄"]
[]
[]
[]
[]
[null,null,null,"※電話番号（日中連絡のつく番号）"]
[]
[]
[]
[]
[null,null,null,"業種又は職種"]
[]
[]
[]
[]
[]
[]
[]
[null,null,null,"②令和６年中の所得について、該当するものをご入力ください。"]
[]
[]
[]
[]
[]
[]
[]
[null,null,null,"○収入がなかった方、遺族年金・障害年金のみの方"]
[]
[]
[]
[]
[null,null,null,null,"下記のうち該当するものに✓を入れてください。"]
[]
[]
[]
[]
[]
[null,null,null,null,null,null,null,null,null,null,null,null,"収入なし"]
[]
[null,null,null,null,null,null,null,null,null,null,null,null,null,null,null,null,null,null,null,null,null,null,null,null,null,null,null,null,null,null,null,null,null,null,null,null,null,null,null,null,null,null,null,null,null,null,null,null,null,null,null,null,null,null,null,null,null,null,null,null,null,false]
[]
[]
[null,null,null,null,null,null,null,null,null,null,null,null,"遺族年金のみ"]
[]
[]
[null,null,null,null,null,null,null,null,null,null,null,null,null,null,null,null,null,null,null,null,null,null,null,null,null,null,null,null,null,null,null,null,null,null,null,null,null,null,null,null,null,null,null,null,null,null,null,null,null,null,null,null,null,null,null,null,null,null,null,null,null,false]
[]
[null,null,null,null,null,null,null,null,null,null,null,null,"障害年金のみ"]
[]
[]
[null,null,null,null,null,null,null,null,null,null,null,null,null,null,null,null,null,null,null,null,null,null,null,null,null,null,null,null,null,null,null,null,null,null,null,null,null,null,null,null,null,null,null,null,null,null,null,null,null,null,null,null,null,null,null,null,null,null,null,null,null,false]
[]
[]
[]
[]
[]
[]
[null,null,null,"○営業等所得がある方"]
[]
[]
[]
[]
[]
[null,null,null,null,"収入金額",null,null,null,null,null,null,null,null,null,null,null,null,null,null,null,null,null,null,null,null,null,null,null,null,null,null,null,null,null,null,null,null,null,null,null,null,null,null,null,null,null,null,null,null,null,null,null,null,null,null,null,null,null,null,null,null,null,null,null,null,null,null,null,"円"]
[]
[]
[]
[]
[null,null,null,null,"必要経費",null,null,null,null,null,null,null,null,null,null,null,null,null,null,null,null,null,null,null,null,null,null,null,null,null,null,null,null,null,null,null,null,null,null,null,null,null,null,null,null,null,null,null,null,null,null,null,null,null,null,null,null,null,null,null,null,null,null,null,null,null,null,null,"円"]
[]
[]
[]
[]
[]
[]
[]
[]
[]
[null,null,null,"○農業所得がある方"]
[]
[]
[]
[]
[]
[null,null,null,null,"収入金額",null,null,null,null,null,null,null,null,null,null,null,null,null,null,null,null,null,null,null,null,null,null,null,null,null,null,null,null,null,null,null,null,null,null,null,null,null,null,null,null,null,null,null,null,null,null,null,null,null,null,null,null,null,null,null,null,null,null,null,null,null,null,null,"円"]
[]
[]
[]
[]
[null,null,null,null,"必要経費",null,null,null,null,null,null,null,null,null,null,null,null,null,null,null,null,null,null,null,null,null,null,null,null,null,null,null,null,null,null,null,null,null,null,null,null,null,null,null,null,null,null,null,null,null,null,null,null,null,null,null,null,null,null,null,null,null,null,null,null,null,null,null,"円"]
[]
[]
[]
[]
[]
[]
[]
[]
[]
[null,null,null,"○不動産所得がある方"]
[]
[]
[]
[]
[]
[null,null,null,null,"収入金額",null,null,null,null,null,null,null,null,null,null,null,null,null,null,null,null,null,null,null,null,null,null,null,null,null,null,null,null,null,null,null,null,null,null,null,null,null,null,null,null,null,null,null,null,null,null,null,null,null,null,null,null,null,null,null,null,null,null,null,null,null,null,null,"円"]
[]
[]
[]
[]
[null,null,null,null,"必要経費",null,null,null,null,null,null,null,null,null,null,null,null,null,null,null,null,null,null,null,null,null,null,null,null,null,null,null,null,null,null,null,null,null,null,null,null,null,null,null,null,null,null,null,null,null,null,null,null,null,null,null,null,null,null,null,null,null,null,null,null,null,null,null,"円"]
[]
[]
[]
[]
[]
[]
[]
[]
[]
[null,null,null,"○給与所得がある方"]
[]
[]
[]
[]
[]
[null,null,null,null,"源泉徴収票をお持ちの方はこちらをクリックしてください"]
[]
[]
[]
[]
[null,null,null,null,"源泉徴収票をお持ちでない方はこちらをクリックしてください"]
[]
[]
[]
[]
[]
[]
[]
[]
[]
[null,null,null,"○公的年金がある方（遺族年金、障害年金は除く）"]
[]
[]
[]
[]
[]
[null,null,null,null,"支払金額",null,null,null,null,null,null,null,null,null,null,null,null,null,null,null,null,null,null,null,null,null,null,null,null,null,null,null,null,null,null,null,null,null,null,null,null,null,null,null,null,null,null,null,null,null,null,null,null,null,null,null,null,null,null,null,null,null,null,null,null,null,null,null,"円"]
[]
[]
[]
[]
[null,null,null,null,"社会保険料の金額",null,null,null,null,null,null,null,null,null,null,null,null,null,null,null,null,null,null,null,null,null,null,null,null,null,null,null,null,null,null,null,null,null,null,null,null,null,null,null,null,null,null,null,null,null,null,null,null,null,null,null,null,null,null,null,null,null,null,null,null,null,null,null,"円"]
[]
[]
[]
[]
[]
[]
[]
[null,null,null,"○雑所得（公的年金以外）がある方"]
[]
[]
[]
[]
[]
[]
[null,null,null,"↓事業と称するに至らない所得（シルバー配分金等）はこちらに入力してください。"]
[]
[]
[]
[]
[null,null,null,"収入金額",null,null,null,null,null,null,null,null,null,null,null,null,null,null,null,null,null,null,null,null,null,null,null,null,null,null,null,null,null,null,null,null,null,null,null,null,null,null,null,null,null,null,null,null,null,null,null,null,null,null,null,null,null,null,null,null,null,null,null,null,null,null,null,"円"]
[]
[]
[]
[]
[null,null,null,"必要経費",null,null,null,null,null,null,null,null,null,null,null,null,null,null,null,null,null,null,null,null,null,null,null,null,null,null,null,null,null,null,null,null,null,null,null,null,null,null,null,null,null,null,null,null,null,null,null,null,null,null,null,null,null,null,null,null,null,null,null,null,null,null,null,"円"]
[]
[]
[]
[]
[]
[]
[]
[null,null,null,"↓生命保険契約に基づく個人年金等はこちらに入力してください。"]
[]
[]
[]
[]
[null,null,null,"収入金額",null,null,null,null,null,null,null,null,null,null,null,null,null,null,null,null,null,null,null,null,null,null,null,null,null,null,null,null,null,null,null,null,null,null,null,null,null,null,null,null,null,null,null,null,null,null,null,null,null,null,null,null,null,null,null,null,null,null,null,null,null,null,null,"円"]
[]
[]
[]
[]
[null,null,null,"必要経費",null,null,null,null,null,null,null,null,null,null,null,null,null,null,null,null,null,null,null,null,null,null,null,null,null,null,null,null,null,null,null,null,null,null,null,null,null,null,null,null,null,null,null,null,null,null,null,null,null,null,null,null,null,null,null,null,null,null,null,null,null,null,null,"円"]
[]
[]
[]
[]
[]
[]
[]
[]
[]
[]
[]
[]
[]
[null,null,null,"③各種控除について、該当するものをご入力ください。"]
[]
[]
[]
[]
[]
[]
[null,null,null,"○令和６年中に社会保険料を支払った方"]
[]
[]
[null,null,null,null,null,null,null,null,null,null,null,null,null,null,null,null,null,null,null,null,null,null,null,null,null,null,null,null,null,null,null,null,null,null,null,null,null,null,null,null,null,null,null,null,null,null,null,null,null,null,null,null,null,null,null,null,null,null,null,null,null,null,null,null,null,null,null,null,null,null,null,null,null,null,null,null,null,null,null,null,null,null,null,"源泉徴収票に入っていない社会保険料がある方は、入っていない分の内訳を入力してください。"]
[]
[]
[]
[null,null,null,"源泉徴収票記載分",null,null,null,null,null,null,null,null,null,null,null,null,null,null,null,null,null,null,null,null,null,null,null,null,null,{"$f":"源泉あり!AE25+入力してください!AE218","v":0},null,null,null,null,null,null,null,null,null,null,null,null,null,null,null,null,null,null,null,null,null,null,null,null,null,null,null,null,null,null,null,null,null,null,null,null,null,"円"]
[]
[]
[]
[null,null,null,null,null,null,null,null,null,null,null,null,null,null,null,null,null,null,null,null,null,null,null,null,null,null,null,null,null,null,null,null,null,null,null,null,null,null,null,null,null,null,null,null,null,null,null,null,null,null,null,null,null,null,null,null,null,null,null,null,null,null,null,null,null,null,null,null,null,null,null,null,null,null,null,null,null,null,null,null,null,null,null,"社会保険料の種類（例：国民健康保険、国民年金等）",null,null,null,null,null,null,null,null,null,null,null,null,null,null,null,null,null,null,null,null,null,null,null,null,null,null,"金額"]
[null,null,null,"源泉徴収票に入っていない分がある方"]
[]
[]
[]
[]
[]
[]
[]
[]
[null,null,null,"○令和６年中に小規模企業共済等の掛金がある方"]
[]
[]
[null,null,null,null,null,null,null,null,null,null,null,null,null,null,null,null,null,null,null,null,null,null,null,null,null,null,null,null,null,null,null,null,null,null,null,null,null,null,null,null,null,null,null,null,null,null,null,null,null,null,null,null,null,null,null,null,null,null,null,null,null,null,null,null,null,null,null,null,null,null,null,null,null,null,null,null,null,null,null,null,null,null,null,null,null,null,null,null,null,null,null,null,null,null,null,null,null,null,null,null,null,null,null,null,null,null,null,null,null,null,null,null,null,null,null,null,null,null,null,null,null,null,null,null,null,null,null,null,null,null,null,null,null,null,"円"]
[]
[]
[]
[null,null,null,"源泉徴収票記載分",null,null,null,null,null,null,null,null,null,null,null,null,null,null,null,null,null,null,null,null,null,null,null,null,null,{"$f":"源泉あり!AE30","v":0},null,null,null,null,null,null,null,null,null,null,null,null,null,null,null,null,null,null,null,null,null,null,null,null,null,null,null,null,null,null,null,null,null,null,null,null,null,"円"]
[null,null,null,null,null,null,null,null,null,null,null,null,null,null,null,null,null,null,null,null,null,null,null,null,null,null,null,null,null,null,null,null,null,null,null,null,null,null,null,null,null,null,null,null,null,null,null,null,null,null,null,null,null,null,null,null,null,null,null,null,null,null,null,null,null,null,null,null,null,null,null,null,null,null,null,null,null,null,null,null,null,null,null,null,null,null,null,null,null,null,null,null,null,null,null,null,null,null,null,null,null,null,null,null,null,null,null,null,null,null,null,null,null,null,null,null,null,null,null,null,null,null,null,null,null,null,null,null,null,null,null,null,null,null,"円"]
[]
[]
[]
[null,null,null,"源泉徴収票に入っていない分がある方",null,null,null,null,null,null,null,null,null,null,null,null,null,null,null,null,null,null,null,null,null,null,null,null,null,null,null,null,null,null,null,null,null,null,null,null,null,null,null,null,null,null,null,null,null,null,null,null,null,null,null,null,null,null,null,null,null,null,null,null,null,null,null,"円"]
[]
[]
[]
[]
[]
[]
[]
[]
[]
[]
[]
[]
[]
[]
[]
[null,null,null,"○令和６年中に生命保険料を支払った方（年末調整で入れていないものに限る）"]
[]
[]
[]
[]
[]
[]
[null,null,null,"新生命保険料の合計額",null,null,null,null,null,null,null,null,null,null,null,null,null,null,null,null,null,null,null,null,null,null,null,null,null,null,null,null,null,null,null,null,null,null,null,null,null,null,null,null,null,null,null,null,null,null,null,null,null,null,null,null,null,null,null,null,null,null,null,null,null,null,null,"円"]
[]
[]
[]
[]
[null,null,null,"旧生命保険料の合計額",null,null,null,null,null,null,null,null,null,null,null,null,null,null,null,null,null,null,null,null,null,null,null,null,null,null,null,null,null,null,null,null,null,null,null,null,null,null,null,null,null,null,null,null,null,null,null,null,null,null,null,null,null,null,null,null,null,null,null,null,null,null,null,"円"]
[]
[]
[]
[]
[null,null,null,"新個人年金保険料の合計額",null,null,null,null,null,null,null,null,null,null,null,null,null,null,null,null,null,null,null,null,null,null,null,null,null,null,null,null,null,null,null,null,null,null,null,null,null,null,null,null,null,null,null,null,null,null,null,null,null,null,null,null,null,null,null,null,null,null,null,null,null,null,null,"円"]
[]
[]
[]
[]
[null,null,null,"旧個人年金保険料の合計額",null,null,null,null,null,null,null,null,null,null,null,null,null,null,null,null,null,null,null,null,null,null,null,null,null,null,null,null,null,null,null,null,null,null,null,null,null,null,null,null,null,null,null,null,null,null,null,null,null,null,null,null,null,null,null,null,null,null,null,null,null,null,null,"円"]
[]
[]
[]
[]
[null,null,null,"介護医療保険料の合計額",null,null,null,null,null,null,null,null,null,null,null,null,null,null,null,null,null,null,null,null,null,null,null,null,null,null,null,null,null,null,null,null,null,null,null,null,null,null,null,null,null,null,null,null,null,null,null,null,null,null,null,null,null,null,null,null,null,null,null,null,null,null,null,"円"]
[]
[]
[]
[]
[]
[]
[]
[null,null,null,"○令和６年中に地震保険料を支払った方"]
[]
[]
[]
[]
[]
[]
[]
[]
[]
[]
[]
[]
[]
[]
[]
[]
[]
[]
[]
[]
[]
[]
[]
[]
[null,null,null,"地震保険料の合計額",null,null,null,null,null,null,null,null,null,null,null,null,null,null,null,null,null,null,null,null,null,null,null,null,null,null,null,null,null,null,null,null,null,null,null,null,null,null,null,null,null,null,null,null,null,null,null,null,null,null,null,null,null,null,null,null,null,null,null,null,null,null,null,"円"]
[]
[]
[]
[]
[null,null,null,"旧長期損害保険料の合計額",null,null,null,null,null,null,null,null,null,null,null,null,null,null,null,null,null,null,null,null,null,null,null,null,null,null,null,null,null,null,null,null,null,null,null,null,null,null,null,null,null,null,null,null,null,null,null,null,null,null,null,null,null,null,null,null,null,null,null,null,null,null,null,"円"]
[]
[]
[]
[]
[]
[]
[]
[null,null,null,"○寡婦控除、ひとり親控除、勤労学生控除に該当する方"]
[]
[]
[]
[]
[]
[null,null,null,null,null,null,null,null,null,null,null,null,null,null,null,null,null,null,null,null,null,null,null,null,null,null,null,null,null,null,null,null,null,null,null,null,null,null,null,null,null,null,null,null,null,null,null,null,null,null,null,null,null,null,null,null,null,null,null,null,null,null,null,null,null,null,null,null,null,null,null,null,null,null,null,null,null,null,null,null,null,null,null,null,null,null,null,null,null,null,null,null,null,null,null,null,null,null,null,null,null,"「寡婦控除」に✓を入れた方は、下記のうち該当するものに✓を入れてください。",null,null,null,null,null,null,null,null,null,null,null,null,null,null,null,null,null,null,null,null,null,null,null,null,null,null,null,null,null,null,null,null,null,null,null,null,null,null,null,null,null,null,null,null,null,null,null,null,null,null,null,null,null,null,null,null,null,null,null,null,null,null,null,null,null,null,null,null,null,null,null,null,null,null,null,null,null,null,null,null,null,null,null,null,null,null,null,null,null,null,null,null,null,null,null,null,null,null,null,null,null,null,null,null,null,null,null,null,null,null,null,null,null,null,null,null,null,null,null,null,null,null,null,null,null,null,null,null,null,null,null,null,null,null,null,null,null,null,null,null,null,null,null,null,null,null,null,null,null,null,null,null,null,null,null,null,null,null,null,null,null,null,null,null,null,null,null,null,null,null,null,null,null,null,null,null,null,null,null,null,null,null,null,null,null,null,null,null,null,null,null,null,null,null,null,null,null,null,null,null,null,null,null,null,null,"離婚"]
[null,null,null,null,"該当するものに✓を入れてください。",null,null,null,null,null,null,null,null,null,null,null,null,null,null,null,null,null,null,null,null,null,null,"寡婦控除",null,null,null,null,null,null,null,null,null,null,null,null,null,null,null,null,null,null,null,null,null,null,null,null,null,null,null,null,null,null,null,null,null,null,null,null,null,null,null,null,null,null,null,null,null,null,null,null,null,null,null,null,null,null,null,null,null,null,null,null,null,null,null,null,null,null,null,null,null,null,null,null,null,null,null,null,null,null,null,null,null,null,null,null,null,null,null,null,null,null,null,null,null,null,null,null,null,null,null,null,null,null,null,null,null,null,null,null,null,null,null,null,null,null,null,null,null,null,null,null,null,null,null,null,null,null,null,null,null,null,null,null,null,null,null,null,null,null,null,null,null,null,null,null,null,null,null,null,null,null,null,null,null,null,null,null,null,null,null,null,null,null,null,null,null,null,null,null,null,null,null,null,null,null,null,null,null,null,null,null,null,null,null,null,null,null,0,null,null,null,null,null,null,null,null,null,null,null,null,null,null,null,null,null,null,null,null,null,null,null,null,null,null,null,null,null,null,null,null,null,null,null,null,null,null,null,null,null,null,null,null,null,null,null,null,null,null,null,null,null,null,null,null,null,null,null,null,null,null,null,null,null,null,null,null,null,null,null,null,null,null,null,null,null,null,null,null,null,null,null,null,null,null,null,null,null,null,null,null,"未帰還"]
[]
[]
[]
[]
[]
[]
[null,null,null,null,null,null,null,null,null,null,null,null,null,null,null,null,null,null,null,null,null,null,null,null,null,null,null,"ひとり親控除"]
[]
[]
[]
[]
[]
[]
[null,null,null,null,null,null,null,null,null,null,null,null,null,null,null,null,null,null,null,null,null,null,null,null,null,null,null,"勤労学生控除"]
[null,null,null,null,null,null,null,null,null,null,null,null,null,null,null,null,null,null,null,null,null,null,null,null,null,null,null,null,null,null,null,null,null,null,null,null,null,null,null,null,null,null,null,null,null,null,null,null,null,null,null,null,null,null,null,null,null,null,null,null,null,null,null,null,null,null,null,null,null,null,null,null,null,null,null,null,null,null,null,null,null,null,null,null,null,null,null,null,null,null,null,null,null,null,null,null,null,null,null,null,null,"「勤労学生控除」に✓を入れた方は、学校名を入力してください。"]
[]
[]
[]
[]
[]
[null,null,null,null,null,null,null,null,null,null,null,null,null,null,null,null,null,null,null,null,null,null,null,null,null,null,null,null,null,null,null,null,null,null,null,null,null,null,null,null,null,null,null,null,null,null,null,null,null,null,null,null,null,null,null,null,null,null,null,null,null,null,null,null,null,null,null,null,null,null,null,null,null,null,null,null,null,null,null,null,null,null,null,null,null,null,null,null,null,null,null,null,null,null,null,null,null,null,null,null,null,"（学校名）"]
[]
[]
[]
[]
[]
[]
[]
[]
[]
[]
[]
[]
[]
[]
[]
[]
[]
[]
[]
[]
[]
[]
[]
[]
[]
[]
[]
[]
[]
[]
[]
[]
[]
[]
[]
[]
[]
[]
[]
[]
[]
[]
[]
[]
[]
[]
[]
[]
[]
[]
[]
[]
[]
[]
[]
[]
[]
[]
[]
[]
[]
[]
[]
[]
[]
[]
[]
[]
[]
[]
[]
[]
[]
[]
[]
[]
[]
[]
[]
[]
[]
[]
[]
[]
[]
[]
[]
[]
[]
[]
[]
[]
[]
[]
[null,null,null,"○本人やご家族が障害者の方"]
[]
[]
[]
[]
[]
[null,null,null,"1人目",null,null,null,null,null,null,null,"氏名",null,null,null,null,null,null,null,null,null,null,null,null,null,null,null,null,null,null,null,null,null,null,null,null,null,null,null,null,null,null,null,null,null,null,null,null,null,null,null,null,null,null,null,null,null,null,null,null,null,null,null,null,null,null,null,null,null,null,null,null,null,null,null,null,null,null,null,"2人目",null,null,null,null,null,null,null,"氏名"]
[]
[]
[]
[]
[]
[null,null,null,null,null,null,null,null,null,null,null,"氏名（フリガナ）",null,null,null,null,null,null,null,null,null,null,null,null,null,null,null,null,null,null,null,null,null,null,null,null,null,null,null,null,null,null,null,null,null,null,null,null,null,null,null,null,null,null,null,null,null,null,null,null,null,null,null,null,null,null,null,null,null,null,null,null,null,null,null,null,null,null,null,null,null,null,null,null,null,null,null,"氏名（フリガナ）"]
[]
[]
[]
[]
[]
[null,null,null,null,null,null,null,null,null,null,null,"障害の程度（等級）",null,null,null,null,null,null,null,null,null,null,null,null,null,null,null,null,null,null,null,null,null,null,null,null,null,null,null,null,null,null,null,null,null,null,null,null,null,null,null,null,null,null,null,null,null,null,null,null,null,null,null,null,null,"級度",null,null,null,null,null,null,null,null,null,null,null,null,null,null,null,null,null,null,null,null,null,"障害の程度（等級）",null,null,null,null,null,null,null,null,null,null,null,null,null,null,null,null,null,null,null,null,null,null,null,null,null,null,null,null,null,null,null,null,null,null,null,null,null,null,null,null,null,null,null,null,null,null,null,null,null,null,null,null,null,"級度"]
[]
[]
[]
[]
[]
[null,null,null,null,null,null,null,null,null,null,null,"【本人の場合】\n障害区分",null,null,null,null,null,null,null,null,null,null,null,null,null,null,null,null,null,null,null,null,null,null,null,"　",null,null,null,null,null,null,null,null,null,null,null,null,null,null,null,null,null,null,null,null,null,null,null,null,null,null,null,null,null,null,null,null,null,null,null,null,null,null,null,null,null,null,null,null,null,null,null,null,null,null,null,"【本人の場合】\n障害区分",null,null,null,null,null,null,null,null,null,null,null,null,null,null,null,null,null,null,null,null,null,null,null,"　"]
[]
[]
[null,null,null,null,null,null,null,null,null,null,null,"【配偶者の場合】\n障害区分",null,null,null,null,null,null,null,null,null,null,null,null,null,null,null,null,null,null,null,null,null,null,null,"　",null,null,null,null,null,null,null,null,null,null,null,null,null,null,null,null,null,null,null,null,null,null,null,null,null,null,null,null,null,null,null,null,null,null,null,null,null,null,null,null,null,null,null,null,null,null,null,null,null,null,null,"【配偶者の場合】\n障害区分",null,null,null,null,null,null,null,null,null,null,null,null,null,null,null,null,null,null,null,null,null,null,null,"　"]
[]
[]
[null,null,null,null,null,null,null,null,null,null,null,"【扶養親族の場合】\n障害区分",null,null,null,null,null,null,null,null,null,null,null,null,null,null,null,null,null,null,null,null,null,null,null,"　",null,null,null,null,null,null,null,null,null,null,null,null,null,null,null,null,null,null,null,null,null,null,null,null,null,null,null,null,null,null,null,null,null,null,null,null,null,null,null,null,null,null,null,null,null,null,null,null,null,null,null,"【扶養親族の場合】\n障害区分",null,null,null,null,null,null,null,null,null,null,null,null,null,null,null,null,null,null,null,null,null,null,null,"　"]
[]
[]
[]
[]
[]
[]
[]
[]
[]
[]
[]
[]
[]
[]
[]
[]
[]
[]
[]
[]
[]
[]
[]
[]
[]
[]
[]
[]
[]
[]
[]
[]
[]
[]
[]
[]
[]
[]
[]
[]
[]
[]
[]
[]
[]
[]
[]
[]
[]
[]
[]
[]
[]
[]
[]
[]
[]
[]
[]
[]
[]
[]
[]
[]
[]
[]
[]
[]
[]
[]
[]
[]
[null,null,null,"○配偶者（特別）控除に該当する方"]
[]
[]
[]
[]
[]
[null,null,null,"配偶者の氏名"]
[]
[]
[]
[]
[null,null,null,"配偶者の氏名（フリガナ）"]
[]
[]
[]
[]
[null,null,null,"配偶者の生年月日"]
[]
[]
[]
[]
[null,null,null,"配偶者の合計所得金額",null,null,null,null,null,null,null,null,null,null,null,null,null,null,null,null,null,null,null,null,null,null,null,null,null,null,null,null,null,null,null,null,null,null,null,null,null,null,null,null,null,null,null,null,null,null,null,null,null,null,null,null,null,null,null,null,null,null,null,null,null,null,null,null,null,null,null,"円"]
[]
[]
[]
[]
[]
[]
[]
[]
[]
[]
[]
[]
[]
[]
[]
[]
[]
[]
[]
[]
[]
[]
[]
[]
[]
[]
[]
[]
[]
[]
[]
[]
[]
[]
[]
[]
[]
[null,null,null,"○扶養親族がいる方（16歳以上）",null,null,null,null,null,null,null,null,null,null,null,null,null,null,null,null,null,null,null,null,null,null,null,null,null,null,null,null,null,null,null,null,null,null,null,null,null,null,null,null,null,null,null,null,null,null,null,null,null,null,null,null,null,null,null,null,null,null,null,null,null,null,null,null,null,null,null,null,null,null,null,null,null,null,null,null,null,null,null,null,null,null,null,null,null,null,null,null,null,null,null,null,null,null,null,null,null,null,"○扶養親族がいる方（16歳未満）"]
[]
[]
[]
[]
[]
[]
[]
[]
[null,null,null,null,null,null,null,null,null,null,null,null,null,null,null,null,null,null,null,null,null,null,null,null,null,null,null,null,null,null,null,null,null,null,null,null,null,null,null,null,null,null,null,null,null,null,null,null,null,null,null,null,null,null,null,null,null,null,null,null,null,null,null,null,null,null,null,null,null,null,null,null,null,null,null,null,null,null,null,null,null,null,null,null,null,null,null,null,null,null,null,null,null,null,null,null,null,null,null,null,null,null,"1人目",null,null,null,null,null,null,null,null,null,"氏名"]
[]
[]
[]
[]
[null,null,null,null,null,null,null,null,null,null,null,null,null,null,null,null,null,null,null,null,null,null,null,null,null,null,null,null,null,null,null,null,null,null,null,null,null,null,null,null,null,null,null,null,null,null,null,null,null,null,null,null,null,null,null,null,null,null,null,null,null,null,null,null,null,null,null,null,null,null,null,null,null,null,null,null,null,null,null,null,null,null,null,null,null,null,null,null,null,null,null,null,null,null,null,null,null,null,null,null,null,null,null,null,null,null,null,null,null,null,null,null,"氏名（フリガナ）"]
[]
[]
[]
[]
[null,null,null,null,null,null,null,null,null,null,null,null,null,null,null,null,null,null,null,null,null,null,null,null,null,null,null,null,null,null,null,null,null,null,null,null,null,null,null,null,null,null,null,null,null,null,null,null,null,null,null,null,null,null,null,null,null,null,null,null,null,null,null,null,null,null,null,null,null,null,null,null,null,null,null,null,null,null,null,null,null,null,null,null,null,null,null,null,null,null,null,null,null,null,null,null,null,null,null,null,null,null,null,null,null,null,null,null,null,null,null,null,"生年月日"]
[]
[]
[]
[]
[null,null,null,null,null,null,null,null,null,null,null,null,null,null,null,null,null,null,null,null,null,null,null,null,null,null,null,null,null,null,null,null,null,null,null,null,null,null,null,null,null,null,null,null,null,null,null,null,null,null,null,null,null,null,null,null,null,null,null,null,null,null,null,null,null,null,null,null,null,null,null,null,null,null,null,null,null,null,null,null,null,null,null,null,null,null,null,null,null,null,null,null,null,null,null,null,null,null,null,null,null,null,null,null,null,null,null,null,null,null,null,null,"続柄"]
[]
[null,null,null,"1人目",null,null,null,null,null,null,null,null,null,"氏名"]
[]
[]
[null,null,null,null,null,null,null,null,null,null,null,null,null,null,null,null,null,null,null,null,null,null,null,null,null,null,null,null,null,null,null,null,null,null,null,null,null,null,null,null,null,null,null,null,null,null,null,null,null,null,null,null,null,null,null,null,null,null,null,null,null,null,null,null,null,null,null,null,null,null,null,null,null,null,null,null,null,null,null,null,null,null,null,null,null,null,null,null,null,null,null,null,null,null,null,null,null,null,null,null,null,null,null,null,null,null,null,null,null,null,null,null,"居住実態"]
[]
[null,null,null,null,null,null,null,null,null,null,null,null,null,"氏名（フリガナ）"]
[]
[]
[]
[null,null,null,null,null,null,null,null,null,null,null,null,null,null,null,null,null,null,null,null,null,null,null,null,null,null,null,null,null,null,null,null,null,null,null,null,null,null,null,null,null,null,null,null,null,null,null,null,null,null,null,null,null,null,null,null,null,null,null,null,null,null,null,null,null,null,null,null,null,null,null,null,null,null,null,null,null,null,null,null,null,null,null,null,null,null,null,null,null,null,null,null,null,null,null,null,null,null,null,null,null,null,"2人目",null,null,null,null,null,null,null,null,null,"氏名"]
[null,null,null,null,null,null,null,null,null,null,null,null,null,"生年月日"]
[]
[]
[]
[null,null,null,null,null,null,null,null,null,null,null,null,null,null,null,null,null,null,null,null,null,null,null,null,null,null,null,null,null,null,null,null,null,null,null,null,null,null,null,null,null,null,null,null,null,null,null,null,null,null,null,null,null,null,null,null,null,null,null,null,null,null,null,null,null,null,null,null,null,null,null,null,null,null,null,null,null,null,null,null,null,null,null,null,null,null,null,null,null,null,null,null,null,null,null,null,null,null,null,null,null,null,null,null,null,null,null,null,null,null,null,null,"氏名（フリガナ）"]
[null,null,null,null,null,null,null,null,null,null,null,null,null,"続柄"]
[]
[]
[]
[null,null,null,null,null,null,null,null,null,null,null,null,null,null,null,null,null,null,null,null,null,null,null,null,null,null,null,null,null,null,null,null,null,null,null,null,null,null,null,null,null,null,null,null,null,null,null,null,null,null,null,null,null,null,null,null,null,null,null,null,null,null,null,null,null,null,null,null,null,null,null,null,null,null,null,null,null,null,null,null,null,null,null,null,null,null,null,null,null,null,null,null,null,null,null,null,null,null,null,null,null,null,null,null,null,null,null,null,null,null,null,null,"生年月日"]
[null,null,null,null,null,null,null,null,null,null,null,null,null,"居住実態"]
[]
[]
[]
[null,null,null,null,null,null,null,null,null,null,null,null,null,null,null,null,null,null,null,null,null,null,null,null,null,null,null,null,null,null,null,null,null,null,null,null,null,null,null,null,null,null,null,null,null,null,null,null,null,null,null,null,null,null,null,null,null,null,null,null,null,null,null,null,null,null,null,null,null,null,null,null,null,null,null,null,null,null,null,null,null,null,null,null,null,null,null,null,null,null,null,null,null,null,null,null,null,null,null,null,null,null,null,null,null,null,null,null,null,null,null,null,"続柄"]
[]
[null,null,null,"2人目",null,null,null,null,null,null,null,null,null,"氏名"]
[]
[]
[null,null,null,null,null,null,null,null,null,null,null,null,null,null,null,null,null,null,null,null,null,null,null,null,null,null,null,null,null,null,null,null,null,null,null,null,null,null,null,null,null,null,null,null,null,null,null,null,null,null,null,null,null,null,null,null,null,null,null,null,null,null,null,null,null,null,null,null,null,null,null,null,null,null,null,null,null,null,null,null,null,null,null,null,null,null,null,null,null,null,null,null,null,null,null,null,null,null,null,null,null,null,null,null,null,null,null,null,null,null,null,null,"居住実態"]
[]
[null,null,null,null,null,null,null,null,null,null,null,null,null,"氏名（フリガナ）"]
[]
[]
[]
[null,null,null,null,null,null,null,null,null,null,null,null,null,null,null,null,null,null,null,null,null,null,null,null,null,null,null,null,null,null,null,null,null,null,null,null,null,null,null,null,null,null,null,null,null,null,null,null,null,null,null,null,null,null,null,null,null,null,null,null,null,null,null,null,null,null,null,null,null,null,null,null,null,null,null,null,null,null,null,null,null,null,null,null,null,null,null,null,null,null,null,null,null,null,null,null,null,null,null,null,null,null,"3人目",null,null,null,null,null,null,null,null,null,"氏名"]
[null,null,null,null,null,null,null,null,null,null,null,null,null,"生年月日"]
[]
[]
[]
[null,null,null,null,null,null,null,null,null,null,null,null,null,null,null,null,null,null,null,null,null,null,null,null,null,null,null,null,null,null,null,null,null,null,null,null,null,null,null,null,null,null,null,null,null,null,null,null,null,null,null,null,null,null,null,null,null,null,null,null,null,null,null,null,null,null,null,null,null,null,null,null,null,null,null,null,null,null,null,null,null,null,null,null,null,null,null,null,null,null,null,null,null,null,null,null,null,null,null,null,null,null,null,null,null,null,null,null,null,null,null,null,"氏名（フリガナ）"]
[null,null,null,null,null,null,null,null,null,null,null,null,null,"続柄"]
[]
[]
[]
[null,null,null,null,null,null,null,null,null,null,null,null,null,null,null,null,null,null,null,null,null,null,null,null,null,null,null,null,null,null,null,null,null,null,null,null,null,null,null,null,null,null,null,null,null,null,null,null,null,null,null,null,null,null,null,null,null,null,null,null,null,null,null,null,null,null,null,null,null,null,null,null,null,null,null,null,null,null,null,null,null,null,null,null,null,null,null,null,null,null,null,null,null,null,null,null,null,null,null,null,null,null,null,null,null,null,null,null,null,null,null,null,"生年月日"]
[null,null,null,null,null,null,null,null,null,null,null,null,null,"居住実態"]
[]
[]
[]
[null,null,null,null,null,null,null,null,null,null,null,null,null,null,null,null,null,null,null,null,null,null,null,null,null,null,null,null,null,null,null,null,null,null,null,null,null,null,null,null,null,null,null,null,null,null,null,null,null,null,null,null,null,null,null,null,null,null,null,null,null,null,null,null,null,null,null,null,null,null,null,null,null,null,null,null,null,null,null,null,null,null,null,null,null,null,null,null,null,null,null,null,null,null,null,null,null,null,null,null,null,null,null,null,null,null,null,null,null,null,null,null,"続柄"]
[]
[null,null,null,"3人目",null,null,null,null,null,null,null,null,null,"氏名"]
[]
[]
[null,null,null,null,null,null,null,null,null,null,null,null,null,null,null,null,null,null,null,null,null,null,null,null,null,null,null,null,null,null,null,null,null,null,null,null,null,null,null,null,null,null,null,null,null,null,null,null,null,null,null,null,null,null,null,null,null,null,null,null,null,null,null,null,null,null,null,null,null,null,null,null,null,null,null,null,null,null,null,null,null,null,null,null,null,null,null,null,null,null,null,null,null,null,null,null,null,null,null,null,null,null,null,null,null,null,null,null,null,null,null,null,"居住実態"]
[]
[null,null,null,null,null,null,null,null,null,null,null,null,null,"氏名（フリガナ）"]
[]
[]
[]
[]
[null,null,null,null,null,null,null,null,null,null,null,null,null,"生年月日"]
[]
[]
[]
[]
[null,null,null,null,null,null,null,null,null,null,null,null,null,"続柄"]
[]
[]
[]
[]
[null,null,null,null,null,null,null,null,null,null,null,null,null,"居住実態"]
[]
[]
[]
[]
[]
[null,null,null,"4人目",null,null,null,null,null,null,null,null,null,"氏名"]
[]
[]
[]
[]
[null,null,null,null,null,null,null,null,null,null,null,null,null,"氏名（フリガナ）"]
[]
[]
[]
[]
[null,null,null,null,null,null,null,null,null,null,null,null,null,"生年月日"]
[]
[]
[]
[]
[null,null,null,null,null,null,null,null,null,null,null,null,null,"続柄"]
[]
[]
[]
[]
[null,null,null,null,null,null,null,null,null,null,null,null,null,"居住実態"]
[]
[]
[]
[]
[]
[]
[]
[]
[null,null,null,"○雑損控除を受ける方"]
[]
[]
[]
[]
[]
[null,null,null,"損害の原因"]
[]
[]
[]
[]
[null,null,null,"損害年月日"]
[]
[]
[]
[]
[null,null,null,"損害を受けた資産の種類"]
[]
[]
[]
[]
[null,null,null,"損害金額",null,null,null,null,null,null,null,null,null,null,null,null,null,null,null,null,null,null,null,null,null,null,null,null,null,null,null,null,null,null,null,null,null,null,null,null,null,null,null,null,null,null,null,null,null,null,null,null,null,null,null,null,null,null,null,null,null,null,null,null,null,null,null,null,null,null,null,null,null,null,null,null,null,null,null,null,null,null,null,null,null,null,null,"円"]
[]
[]
[]
[]
[null,null,null,"保険金などで補てんされた金額",null,null,null,null,null,null,null,null,null,null,null,null,null,null,null,null,null,null,null,null,null,null,null,null,null,null,null,null,null,null,null,null,null,null,null,null,null,null,null,null,null,null,null,null,null,null,null,null,null,null,null,null,null,null,null,null,null,null,null,null,null,null,null,null,null,null,null,null,null,null,null,null,null,null,null,null,null,null,null,null,null,null,null,"円"]
[]
[]
[]
[]
[null,null,null,"差引損失額のうち災害関連支出の金額",null,null,null,null,null,null,null,null,null,null,null,null,null,null,null,null,null,null,null,null,null,null,null,null,null,null,null,null,null,null,null,null,null,null,null,null,null,null,null,null,null,null,null,null,null,null,null,null,null,null,null,null,null,null,null,null,null,null,null,null,null,null,null,null,null,null,null,null,null,null,null,null,null,null,null,null,null,null,null,null,null,null,null,"円"]
[]
[]
[]
[]
[]
[]
[]
[]
[]
[null,null,null,"○医療費控除を受ける方"]
[]
[]
[]
[]
[]
[null,null,null,"支払った金額",null,null,null,null,null,null,null,null,null,null,null,null,null,null,null,null,null,null,null,null,null,null,null,null,null,null,null,null,null,null,null,null,null,null,null,null,null,null,null,null,null,null,null,null,null,null,null,null,null,null,null,null,null,null,null,null,null,null,null,null,null,null,null,null,null,null,null,"円"]
[]
[]
[]
[]
[null,null,null,"保険等で補てんされた金額",null,null,null,null,null,null,null,null,null,null,null,null,null,null,null,null,null,null,null,null,null,null,null,null,null,null,null,null,null,null,null,null,null,null,null,null,null,null,null,null,null,null,null,null,null,null,null,null,null,null,null,null,null,null,null,null,null,null,null,null,null,null,null,null,null,null,null,"円"]
[]
[]
[]
[]
[null,null,null,"実質負担額",null,null,null,null,null,null,null,null,null,null,null,null,null,null,null,null,null,null,null,null,null,null,null,null,null,null,null,null,null,null,null,null,null,{"$f":"AL869-AL874","v":0},null,null,null,null,null,null,null,null,null,null,null,null,null,null,null,null,null,null,null,null,null,null,null,null,null,null,null,null,null,null,null,null,null,"円"]
[]
[]
[]
[]
[]
[]
[]
[]
[null,null,null,null,"以上で入力は終了です。\n「表面」シート及び「裏面」シートをコピーし、必要書類を添付の上、下記宛先までご郵送ください。"]
[]
[]
[]
[]
[]
[]
[]
[]
[]
[]
[]
[null,null,null,null,"（※必要書類の確認はこちらからできます。）"]
[]
[]
[]
[]
[]
[]
[null,null,null,null,"【宛先】\n〒355-0211　埼玉県比企郡嵐山町大字杉山1030番地1\n嵐山町役場 税務課 町民税担当　宛"]

{"sheet":"表面（印刷画面）","index":1,"n_rows":307,"n_cols":215,"rows_kept":307,"cut":false,"hidden":false,"merged":[[247,98,253,153],[254,98,267,153],[265,10,269,95],[255,94,256,95],[252,65,254,95],[255,19,257,40],[255,41,256,42],[255,43,257,62],[255,63,256,64],[255,65,257,93],[261,56,263,93],[261,94,262,95],[240,93,241,95],[241,10,244,67],[212,130,216,151],[207,121,211,124],[207,125,211,129],[207,130,211,151],[218,98,222,153],[258,10,263,18],[258,19,260,55],[258,56,260,95],[261,19,263,53],[261,54,262,55],[246,10,257,18],[246,19,248,42],[246,43,248,64],[246,65,248,95],[249,19,251,42],[249,43,251,64],[249,65,251,95],[252,19,254,42],[252,43,254,64],[225,68,233,75],[244,98,246,105],[225,85,233,88],[225,89,233,95],[195,68,203,75],[195,85,203,88],[195,89,203,95],[197,104,201,124],[229,19,233,22],[210,16,224,18],[229,23,233,44],[230,98,232,153],[233,98,235,153],[234,19,239,28],[234,29,239,75],[234,76,239,95],[237,98,241,153],[210,19,213,22],[210,23,213,44],[210,45,218,49],[210,50,218,67],[210,68,218,75],[210,85,218,88],[240,68,244,79],[240,80,244,92],[197,125,201,129],[197,130,201,151],[195,10,239,15],[195,16,209,18],[195,19,198,22],[195,23,198,44],[195,45,203,49],[195,50,203,67],[214,19,218,22],[214,23,218,44],[219,19,224,28],[219,29,224,75],[225,16,239,18],[225,19,228,22],[225,23,228,44],[225,45,233,49],[210,89,218,95],[212,104,216,124],[212,125,216,129],[219,76,224,95],[224,98,228,153],[207,119,211,120],[225,50,233,67],[179,16,193,18],[199,19,203,22],[199,23,203,44],[187,130,191,151],[188,19,193,28],[188,29,193,75],[188,76,193,84],[188,85,193,92],[179,19,182,22],[179,23,182,44],[179,45,187,49],[179,50,187,67],[179,68,187,75],[188,93,189,95],[192,104,196,124],[192,125,196,129],[192,130,196,151],[202,104,206,124],[202,125,206,129],[202,130,206,151],[204,19,209,28],[204,29,209,75],[204,76,209,95],[207,104,211,118],[167,125,171,129],[167,130,171,151],[168,19,172,22],[168,23,172,44],[172,104,176,124],[172,125,176,129],[172,130,176,151],[173,19,178,28],[173,29,178,75],[173,76,178,84],[173,85,178,92],[173,93,174,95],[177,104,181,124],[177,125,181,129],[177,130,181,151],[179,85,187,88],[182,130,186,151],[187,104,191,124],[187,125,191,129],[164,16,178,18],[164,19,167,22],[164,23,167,44],[164,45,172,49],[164,50,172,67],[164,68,172,75],[164,85,172,88],[164,89,172,95],[153,19,157,22],[153,23,157,44],[157,104,161,124],[162,130,166,151],[162,104,166,124],[167,104,171,124],[162,125,166,129],[149,16,163,18],[179,89,187,95],[182,104,186,124],[182,125,186,129],[157,125,161,129],[157,130,161,151],[146,104,151,124],[146,125,151,129],[146,130,151,151],[149,19,152,22],[149,23,152,44],[149,45,157,49],[149,50,157,67],[152,104,156,124],[152,125,156,129],[183,19,187,22],[183,23,187,44],[134,19,137,22],[149,68,157,75],[149,85,157,88],[131,125,135,129],[131,130,135,151],[141,125,145,129],[141,130,145,151],[158,19,163,28],[158,29,163,75],[158,76,163,84],[158,85,163,92],[158,93,159,95],[134,23,137,44],[134,45,142,49],[134,50,142,67],[138,19,142,22],[138,23,142,44],[136,130,140,151],[149,89,157,95],[152,98,216,103],[136,108,140,124],[136,125,140,129],[128,29,133,75],[152,130,156,151],[101,125,105,129],[119,31,122,55],[119,56,122,73],[134,89,142,95],[128,76,133,79],[141,104,145,124],[143,19,148,28],[143,29,148,75],[143,76,148,84],[143,85,148,92],[143,93,144,95],[134,68,142,75],[134,85,142,88],[119,10,133,22],[119,23,127,26],[119,27,122,30],[119,74,122,95],[121,104,140,107],[121,108,125,124],[128,23,133,28],[128,80,133,95],[131,108,135,124],[134,10,193,15],[134,16,148,18],[106,130,110,151],[108,25,112,27],[108,28,112,61],[111,104,115,124],[111,125,115,129],[111,130,115,151],[113,25,118,34],[113,35,118,81],[113,82,118,95],[116,104,120,124],[116,125,120,129],[116,130,120,151],[121,130,125,151],[89,10,118,22],[89,23,103,24],[89,25,92,27],[89,28,92,61],[89,62,97,69],[121,125,125,129],[123,27,127,30],[123,31,127,55],[123,56,127,73],[123,74,127,93],[123,94,124,95],[126,108,130,124],[126,125,130,129],[126,130,130,151],[101,130,105,151],[104,23,118,24],[104,25,107,27],[104,28,107,61],[104,62,112,69],[104,70,112,92],[104,93,112,95],[106,104,110,124],[106,125,110,129],[78,10,88,22],[91,130,95,151],[91,152,92,153],[93,25,97,27],[93,28,97,61],[96,108,100,124],[96,125,100,129],[96,130,100,151],[98,25,103,34],[98,35,103,81],[98,82,103,95],[89,70,97,92],[89,93,97,95],[91,98,151,103],[91,104,100,107],[91,108,95,124],[91,125,95,129],[101,104,105,124],[80,125,84,129],[80,130,84,151],[81,24,88,25],[81,26,84,34],[81,35,84,48],[81,49,88,50],[81,57,88,67],[81,68,82,76],[83,68,88,95],[75,104,84,107],[75,108,79,124],[75,125,79,129],[75,130,79,151],[78,23,80,29],[78,52,80,67],[78,68,80,71],[85,26,88,34],[85,35,88,48],[85,104,90,124],[85,125,90,129],[85,130,90,151],[78,30,80,51],[60,125,64,129],[60,130,64,151],[63,23,65,59],[63,60,69,95],[65,108,69,124],[65,125,69,129],[65,130,69,151],[66,23,69,57],[66,58,67,59],[59,23,62,57],[59,58,60,59],[59,60,62,93],[59,94,60,95],[60,104,74,107],[60,108,64,124],[70,23,72,59],[70,60,72,95],[70,108,74,124],[70,125,74,129],[70,130,74,151],[73,23,77,57],[73,58,74,59],[73,60,77,93],[73,94,74,95],[40,125,44,129],[40,130,44,151],[41,23,44,59],[41,60,44,93],[30,108,34,124],[30,125,34,129],[30,130,34,151],[45,23,48,59],[45,60,48,93],[45,104,49,124],[45,125,49,129],[45,130,49,151],[49,23,51,59],[49,60,51,95],[50,104,54,124],[50,125,54,129],[50,130,54,151],[52,23,55,57],[52,58,53,59],[52,60,55,93],[52,94,53,95],[55,104,59,124],[55,125,59,129],[55,130,59,151],[23,27,26,34],[27,10,29,71],[30,10,48,22],[30,23,32,59],[30,60,32,95],[30,98,90,103],[30,104,39,107],[20,27,22,34],[22,35,26,40],[22,41,26,61],[22,62,26,71],[22,72,26,97],[22,98,26,103],[37,23,40,59],[37,60,40,93],[40,104,44,124],[49,10,69,22],[56,23,58,59],[56,60,58,95],[70,10,77,22],[80,108,84,124],[18,52,21,94],[78,72,80,95],[81,54,88,56],[0,0,173,4],[0,5,173,9],[0,10,5,16],[6,35,9,51],[15,35,17,51],[15,52,17,94],[15,95,21,112],[15,113,21,153],[17,10,19,22],[18,35,21,51],[20,10,22,18],[20,19,22,26],[30,152,31,153],[33,23,36,59],[33,60,36,93],[33,94,34,95],[35,108,39,124],[35,125,39,129],[35,130,39,151],[22,104,26,115],[23,10,26,18],[23,19,26,26],[0,21,5,29],[0,30,5,34],[0,147,5,153],[0,35,5,107],[6,52,9,114],[6,115,9,124],[6,125,9,153],[8,12,11,32],[10,35,14,51],[10,52,14,114],[10,115,14,124],[10,125,14,153]]}
["この申告書を提出した方は事業税の申告書を提出する必要がありません。",null,null,null,null,"分離課税に係る所得等のある方は、[町民税・県民税申告書（分離課税等用）]をあわせて提出してください。",null,null,null,null,null,null,null,null,null,null,null,null,null,null,null,"令和",null,null,null,null,null,null,null,null,7,null,null,null,null,"年度分　　　　町民税・県民税申告書",null,null,null,null,null,null,null,null,null,null,null,null,null,null,null,null,null,null,null,null,null,null,null,null,null,null,null,null,null,null,null,null,null,null,null,null,null,null,null,null,null,null,null,null,null,null,null,null,null,null,null,null,null,null,null,null,null,null,null,null,null,null,null,null,null,null,null,null,null,null,null,null,null,null,null,null,null,null,null,null,null,null,null,null,null,null,null,null,null,null,null,null,null,null,null,null,null,null,null,null,null,null,null,null,null,null,null,null,null,null,null,"表"]
[]
[]
[]
[]
[]
[null,null,null,null,null,null,null,null,null,null,null,null,null,null,null,null,null,null,null,null,null,null,null,null,null,null,null,null,null,null,null,null,null,null,null,"現 住 所",null,null,null,null,null,null,null,null,null,null,null,null,null,null,null,null,{"$f":"入力してください!AC36","v":0},null,null,null,null,null,null,null,null,null,null,null,null,null,null,null,null,null,null,null,null,null,null,null,null,null,null,null,null,null,null,null,null,null,null,null,null,null,null,null,null,null,null,null,null,null,null,null,null,null,null,null,null,null,null,null,null,null,null,null,null,null,null,"業種又は職業",null,null,null,null,null,null,null,null,null,{"$f":"入力してください!AC76","v":0}]
[]
[null,null,null,null,null,null,null,null,null,null,null,null,"嵐山町長 　殿"]
[]
[null,null,null,null,null,null,null,null,null,null,null,null,null,null,null,null,null,null,null,null,null,null,null,null,null,null,null,null,null,null,null,null,null,null,null,"1月1日現在\nの　住　所",null,null,null,null,null,null,null,null,null,null,null,null,null,null,null,null,{"$f":"入力してください!AC41","v":0},null,null,null,null,null,null,null,null,null,null,null,null,null,null,null,null,null,null,null,null,null,null,null,null,null,null,null,null,null,null,null,null,null,null,null,null,null,null,null,null,null,null,null,null,null,null,null,null,null,null,null,null,null,null,null,null,null,null,null,null,null,null,"電話番号",null,null,null,null,null,null,null,null,null,{"$f":"入力してください!AT71","v":0}]
[]
[]
[]
[]
[null,null,null,null,null,null,null,null,null,null,null,null,null,null,null,null,null,null,null,null,null,null,null,null,null,null,null,null,null,null,null,null,null,null,null,"フリガナ",null,null,null,null,null,null,null,null,null,null,null,null,null,null,null,null,{"$f":"入力してください!AC51","v":0},null,null,null,null,null,null,null,null,null,null,null,null,null,null,null,null,null,null,null,null,null,null,null,null,null,null,null,null,null,null,null,null,null,null,null,null,null,null,null,null,null,null,"個人番号"]
[]
[null,null,null,null,null,null,null,null,null,null,"提出年月日"]
[null,null,null,null,null,null,null,null,null,null,null,null,null,null,null,null,null,null,null,null,null,null,null,null,null,null,null,null,null,null,null,null,null,null,null,"氏　名",null,null,null,null,null,null,null,null,null,null,null,null,null,null,null,null,{"$f":"入力してください!AC46","v":0}]
[]
[null,null,null,null,null,null,null,null,null,null,"年",null,null,null,null,null,null,null,null,"月",null,null,null,null,null,null,null,"日"]
[]
[null,null,null,null,null,null,null,null,null,null,null,null,null,null,null,null,null,null,null,null,null,null,null,null,null,null,null,null,null,null,null,null,null,null,null,"生年\n月日",null,null,null,null,null,{"$f":"入力してください!AC56","v":"00:00:00"},null,null,null,null,null,null,null,null,null,null,null,null,null,null,null,null,null,null,null,null,"世帯主\nの氏名",null,null,null,null,null,null,null,null,null,{"$f":"入力してください!AC61","v":0},null,null,null,null,null,null,null,null,null,null,null,null,null,null,null,null,null,null,null,null,null,null,null,null,null,"続柄",null,null,null,null,null,{"$f":"入力してください!AC66","v":0}]
[null,null,null,null,null,null,null,null,null,null,{"$f":"入力してください!AC32","v":0},null,null,null,null,null,null,null,null,{"$f":"入力してください!AU32","v":0},null,null,null,null,null,null,null,{"$f":"入力してください!BG32","v":0}]
[]
[]
[]
[null,null,null,null,null,null,null,null,null,null,"３所得から差し引かれる金額に関する事項"]
[]
[]
[null,null,null,null,null,null,null,null,null,null,"⑬\n社会保険料\n控　　　除",null,null,null,null,null,null,null,null,null,null,null,null,"社 会 保 険 の 種 類",null,null,null,null,null,null,null,null,null,null,null,null,null,null,null,null,null,null,null,null,null,null,null,null,null,null,null,null,null,null,null,null,null,null,null,null,"支 払 っ た 保 険 料",null,null,null,null,null,null,null,null,null,null,null,null,null,null,null,null,null,null,null,null,null,null,null,null,null,null,null,null,null,null,null,null,null,null,null,null,null,"１　収　入　金　額　等",null,null,null,null,null,"事業",null,null,null,"営 業 等",null,null,null,null,null,null,null,null,null,null,null,null,null,null,null,null,"ア",null,null,null,null,{"$f":"入力してください!AE129","v":0},null,null,null,null,null,null,null,null,null,null,null,null,null,null,null,null,null,null,null,null,null,"円"]
[]
[]
[null,null,null,null,null,null,null,null,null,null,null,null,null,null,null,null,null,null,null,null,null,null,null,"源泉徴収分",null,null,null,null,null,null,null,null,null,null,null,null,null,null,null,null,null,null,null,null,null,null,null,null,null,null,null,null,null,null,null,null,null,null,null,null,{"$f":"入力してください!AD289","v":0},null,null,null,null,null,null,null,null,null,null,null,null,null,null,null,null,null,null,null,null,null,null,null,null,null,null,null,null,null,null,null,null,null,"円"]
[]
[null,null,null,null,null,null,null,null,null,null,null,null,null,null,null,null,null,null,null,null,null,null,null,null,null,null,null,null,null,null,null,null,null,null,null,null,null,null,null,null,null,null,null,null,null,null,null,null,null,null,null,null,null,null,null,null,null,null,null,null,null,null,null,null,null,null,null,null,null,null,null,null,null,null,null,null,null,null,null,null,null,null,null,null,null,null,null,null,null,null,null,null,null,null,null,null,null,null,null,null,null,null,null,null,null,null,null,null,"農　業",null,null,null,null,null,null,null,null,null,null,null,null,null,null,null,null,"イ",null,null,null,null,{"$f":"入力してください!AE150","v":0}]
[]
[null,null,null,null,null,null,null,null,null,null,null,null,null,null,null,null,null,null,null,null,null,null,null,{"$f":"入力してください!CF306","v":0},null,null,null,null,null,null,null,null,null,null,null,null,null,null,null,null,null,null,null,null,null,null,null,null,null,null,null,null,null,null,null,null,null,null,null,null,{"$f":"入力してください!DG306","v":0}]
[]
[]
[null,null,null,null,null,null,null,null,null,null,null,null,null,null,null,null,null,null,null,null,null,null,null,null,null,null,null,null,null,null,null,null,null,null,null,null,null,null,null,null,null,null,null,null,null,null,null,null,null,null,null,null,null,null,null,null,null,null,null,null,null,null,null,null,null,null,null,null,null,null,null,null,null,null,null,null,null,null,null,null,null,null,null,null,null,null,null,null,null,null,null,null,null,null,null,null,null,null,null,null,null,null,null,null,"不 動 産",null,null,null,null,null,null,null,null,null,null,null,null,null,null,null,null,null,null,null,null,"ウ",null,null,null,null,{"$f":"入力してください!AE171","v":0}]
[null,null,null,null,null,null,null,null,null,null,null,null,null,null,null,null,null,null,null,null,null,null,null,{"$f":"入力してください!CF311","v":0},null,null,null,null,null,null,null,null,null,null,null,null,null,null,null,null,null,null,null,null,null,null,null,null,null,null,null,null,null,null,null,null,null,null,null,null,{"$f":"入力してください!DG311","v":0}]
[]
[]
[]
[null,null,null,null,null,null,null,null,null,null,null,null,null,null,null,null,null,null,null,null,null,null,null,"合　　　　計",null,null,null,null,null,null,null,null,null,null,null,null,null,null,null,null,null,null,null,null,null,null,null,null,null,null,null,null,null,null,null,null,null,null,null,null,{"$f":"SUM(BI34,BI38,BI42)","v":0},null,null,null,null,null,null,null,null,null,null,null,null,null,null,null,null,null,null,null,null,null,null,null,null,null,null,null,null,null,null,null,null,null,null,null,null,null,null,null,null,null,null,null,"利　　子",null,null,null,null,null,null,null,null,null,null,null,null,null,null,null,null,null,null,null,null,"エ"]
[]
[]
[]
[null,null,null,null,null,null,null,null,null,null,"⑮\n生命保険料\n控　　　除",null,null,null,null,null,null,null,null,null,null,null,null,"新生命保険料の計",null,null,null,null,null,null,null,null,null,null,null,null,null,null,null,null,null,null,null,null,null,null,null,null,null,null,null,null,null,null,null,null,null,null,null,null,"旧生命保険料の計"]
[null,null,null,null,null,null,null,null,null,null,null,null,null,null,null,null,null,null,null,null,null,null,null,null,null,null,null,null,null,null,null,null,null,null,null,null,null,null,null,null,null,null,null,null,null,null,null,null,null,null,null,null,null,null,null,null,null,null,null,null,null,null,null,null,null,null,null,null,null,null,null,null,null,null,null,null,null,null,null,null,null,null,null,null,null,null,null,null,null,null,null,null,null,null,null,null,null,null,null,null,null,null,null,null,"配　　当",null,null,null,null,null,null,null,null,null,null,null,null,null,null,null,null,null,null,null,null,"オ",null,null,null,null,{"$f":"'裏面（印刷画面）'!AD14+'裏面（印刷画面）'!AD16+'裏面（印刷画面）'!AD18+'裏面（印刷画面）'!AD20","v":0}]
[]
[null,null,null,null,null,null,null,null,null,null,null,null,null,null,null,null,null,null,null,null,null,null,null,{"$f":"入力してください!AE338+源泉あり!DK22","v":0},null,null,null,null,null,null,null,null,null,null,null,null,null,null,null,null,null,null,null,null,null,null,null,null,null,null,null,null,null,null,null,null,null,null,"円",null,{"$f":"入力してください!AE343+源泉あり!DK27","v":0},null,null,null,null,null,null,null,null,null,null,null,null,null,null,null,null,null,null,null,null,null,null,null,null,null,null,null,null,null,null,null,null,null,"円"]
[]
[]
[null,null,null,null,null,null,null,null,null,null,null,null,null,null,null,null,null,null,null,null,null,null,null,null,null,null,null,null,null,null,null,null,null,null,null,null,null,null,null,null,null,null,null,null,null,null,null,null,null,null,null,null,null,null,null,null,null,null,null,null,null,null,null,null,null,null,null,null,null,null,null,null,null,null,null,null,null,null,null,null,null,null,null,null,null,null,null,null,null,null,null,null,null,null,null,null,null,null,null,null,null,null,null,null,"給　　与",null,null,null,null,null,null,null,null,null,null,null,null,null,null,null,null,null,null,null,null,"カ",null,null,null,null,{"$f":"源泉あり!AE20+源泉なし!V84","v":0}]
[null,null,null,null,null,null,null,null,null,null,null,null,null,null,null,null,null,null,null,null,null,null,null,"新個人年金保険料の計",null,null,null,null,null,null,null,null,null,null,null,null,null,null,null,null,null,null,null,null,null,null,null,null,null,null,null,null,null,null,null,null,null,null,null,null,"旧個人年金保険料の計"]
[]
[]
[null,null,null,null,null,null,null,null,null,null,null,null,null,null,null,null,null,null,null,null,null,null,null,{"$f":"入力してください!AK348+源泉あり!DK37","v":0},null,null,null,null,null,null,null,null,null,null,null,null,null,null,null,null,null,null,null,null,null,null,null,null,null,null,null,null,null,null,null,null,null,null,"円",null,{"$f":"入力してください!AK353+源泉あり!DK42","v":0},null,null,null,null,null,null,null,null,null,null,null,null,null,null,null,null,null,null,null,null,null,null,null,null,null,null,null,null,null,null,null,null,null,"円"]
[null,null,null,null,null,null,null,null,null,null,null,null,null,null,null,null,null,null,null,null,null,null,null,null,null,null,null,null,null,null,null,null,null,null,null,null,null,null,null,null,null,null,null,null,null,null,null,null,null,null,null,null,null,null,null,null,null,null,null,null,null,null,null,null,null,null,null,null,null,null,null,null,null,null,null,null,null,null,null,null,null,null,null,null,null,null,null,null,null,null,null,null,null,null,null,null,null,null,null,null,null,null,null,null,"雑",null,null,null,"公的年金等",null,null,null,null,null,null,null,null,null,null,null,null,null,null,null,null,"キ",null,null,null,null,{"$f":"入力してください!AE213","v":0}]
[]
[]
[null,null,null,null,null,null,null,null,null,null,null,null,null,null,null,null,null,null,null,null,null,null,null,"介護医療保険料の計"]
[null,null,null,null,null,null,null,null,null,null,null,null,null,null,null,null,null,null,null,null,null,null,null,null,null,null,null,null,null,null,null,null,null,null,null,null,null,null,null,null,null,null,null,null,null,null,null,null,null,null,null,null,null,null,null,null,null,null,null,null,null,null,null,null,null,null,null,null,null,null,null,null,null,null,null,null,null,null,null,null,null,null,null,null,null,null,null,null,null,null,null,null,null,null,null,null,null,null,null,null,null,null,null,null,null,null,null,null,null,null,null,null,null,null,null,null,null,null,null,null,null,null,null,null,null,null,null,null,null,null,null,null,null,null,null,null,null,null,null,null,null,null,null,null,null,null,null,null,null,null,null,null,null,null,null,null,null,null,null,null,null,null,null,null,null,null,null,null,null,null,null,null,null,null,null,null,null,null,null,null,null,null,null,null,null,null,null,null,null,null,null,null,null,null,null,null,null,null,null,null,null,null,null,null,null,null,null,null,null,false]
[null,null,null,null,null,null,null,null,null,null,null,null,null,null,null,null,null,null,null,null,null,null,null,null,null,null,null,null,null,null,null,null,null,null,null,null,null,null,null,null,null,null,null,null,null,null,null,null,null,null,null,null,null,null,null,null,null,null,null,null,null,null,null,null,null,null,null,null,null,null,null,null,null,null,null,null,null,null,null,null,null,null,null,null,null,null,null,null,null,null,null,null,null,null,null,null,null,null,null,null,null,null,null,null,null,null,null,null,"業　務",null,null,null,null,null,null,null,null,null,null,null,null,null,null,null,null,"ク",null,null,null,null,{"$f":"入力してください!AD238","v":0}]
[null,null,null,null,null,null,null,null,null,null,null,null,null,null,null,null,null,null,null,null,null,null,null,{"$f":"入力してください!AK358+源泉あり!DK32","v":0},null,null,null,null,null,null,null,null,null,null,null,null,null,null,null,null,null,null,null,null,null,null,null,null,null,null,null,null,null,null,null,null,null,null,"円"]
[]
[]
[null,null,null,null,null,null,null,null,null,null,null,null,null,null,null,null,null,null,null,null,null,null,null,null,null,null,null,null,null,null,null,null,null,null,null,null,null,null,null,null,null,null,null,null,null,null,null,null,null,null,null,null,null,null,null,null,null,null,null,null,null,null,null,null,null,null,null,null,null,null,null,null,null,null,null,null,null,null,null,null,null,null,null,null,null,null,null,null,null,null,null,null,null,null,null,null,null,null,null,null,null,null,null,null,null,null,null,null,null,null,null,null,null,null,null,null,null,null,null,null,null,null,null,null,null,null,null,null,null,null,null,null,null,null,null,null,null,null,null,null,null,null,null,null,null,null,null,null,null,null,null,null,null,null,null,null,null,null,null,null,null,null,null,null,null,null,null,null,null,null,null,null,null,null,null,null,null,null,null,null,null,null,null,null,null,null,null,null,null,null,null,null,null,null,null,null,null,null,null,null,null,null,null,null,null,null,null,null,null,1]
[null,null,null,null,null,null,null,null,null,null,"⑯地震保険\n料控除",null,null,null,null,null,null,null,null,null,null,null,null,"地震保険料の計",null,null,null,null,null,null,null,null,null,null,null,null,null,null,null,null,null,null,null,null,null,null,null,null,null,null,null,null,null,null,null,null,null,null,null,null,"旧長期損害保険料の計",null,null,null,null,null,null,null,null,null,null,null,null,null,null,null,null,null,null,null,null,null,null,null,null,null,null,null,null,null,null,null,null,null,null,null,null,null,null,null,null,null,null,null,null,null,null,null,"その他",null,null,null,null,null,null,null,null,null,null,null,null,null,null,null,null,"ケ",null,null,null,null,{"$f":"入力してください!AD256","v":0}]
[null,null,null,null,null,null,null,null,null,null,null,null,null,null,null,null,null,null,null,null,null,null,null,null,null,null,null,null,null,null,null,null,null,null,null,null,null,null,null,null,null,null,null,null,null,null,null,null,null,null,null,null,null,null,null,null,null,null,null,null,null,null,null,null,null,null,null,null,null,null,null,null,null,null,null,null,null,null,null,null,null,null,null,null,null,null,null,null,null,null,null,null,null,null,null,null,null,null,null,null,null,null,null,null,null,null,null,null,null,null,null,null,null,null,null,null,null,null,null,null,null,null,null,null,null,null,null,null,null,null,null,null,null,null,null,null,null,null,null,null,null,null,null,null,null,null,null,null,null,null,null,null,null,null,null,null,null,null,null,null,null,null,null,null,null,null,null,null,null,null,null,null,null,null,null,false]
[]
[null,null,null,null,null,null,null,null,null,null,null,null,null,null,null,null,null,null,null,null,null,null,null,{"$f":"※入力厳禁※計算用!D87","v":0},null,null,null,null,null,null,null,null,null,null,null,null,null,null,null,null,null,null,null,null,null,null,null,null,null,null,null,null,null,null,null,null,null,null,"円",null,{"$f":"入力してください!AJ396+源泉あり!DK51","v":0},null,null,null,null,null,null,null,null,null,null,null,null,null,null,null,null,null,null,null,null,null,null,null,null,null,null,null,null,null,null,null,null,null,"円"]
[]
[null,null,null,null,null,null,null,null,null,null,null,null,null,null,null,null,null,null,null,null,null,null,null,null,null,null,null,null,null,null,null,null,null,null,null,null,null,null,null,null,null,null,null,null,null,null,null,null,null,null,null,null,null,null,null,null,null,null,null,null,null,null,null,null,null,null,null,null,null,null,null,null,null,null,null,null,null,null,null,null,null,null,null,null,null,null,null,null,null,null,null,null,null,null,null,null,null,null,null,null,null,null,null,null,"総合譲渡",null,null,null,"短　期",null,null,null,null,null,null,null,null,null,null,null,null,null,null,null,null,"コ",null,null,null,null,{"$f":"IF('裏面（印刷画面）'!G33=\"\",\"\",'裏面（印刷画面）'!AD33)","v":""}]
[]
[]
[null,null,null,null,null,null,null,null,null,null,"⑰～⑲  寡婦、\nひとり親控除、\n勤労学生控除",null,null,null,null,null,null,null,null,null,null,null,null,"⑰",null,null,null,null,null,null,null,null,null,null,null,null,null,null,null,null,null,null,null,null,null,null,null,null,null,null,null,null,"⑱",null,null,null,null,null,null,null,null,null,null,null,null,null,null,null,"⑲"]
[]
[null,null,null,null,null,null,null,null,null,null,null,null,null,null,null,null,null,null,null,null,null,null,null,null,null,null,null,null,null,null,null,null,null,null,null,null,null,null,null,null,null,null,null,null,null,null,null,null,null,null,null,null,null,null,null,null,null,null,null,null,null,null,null,null,null,null,null,null,null,null,null,null,null,null,null,null,null,null,null,null,null,null,null,null,null,null,null,null,null,null,null,null,null,null,null,null,null,null,null,null,null,null,null,null,null,null,null,null,"長　期",null,null,null,null,null,null,null,null,null,null,null,null,null,null,null,null,"サ",null,null,null,null,{"$f":"IF('裏面（印刷画面）'!G34=\"\",\"\",'裏面（印刷画面）'!AD34)","v":""}]
[null,null,null,null,null,null,null,null,null,null,null,null,null,null,null,null,null,null,null,null,null,null,null,0,"[",null,null,null,null,null,null,null,null,null,null,null,null,null,null,null,null,null,null,null,null,null,null,null,null,"]",null,null,null,null,null,null,null,"ひとり親\n控　　除",null,null,null,null,null,null,null,null,null,null,"(学校名)"]
[]
[null,null,null,null,null,null,null,null,null,null,null,null,null,null,null,null,null,null,null,null,null,null,null,null,null,null,null,null,null,null,null,null,null,null,null,null,null,null,null,null,null,null,null,null,null,null,null,null,null,null,null,null,null,null,null,null,null,null,null,null,null,null,null,null,null,null,null,null,{"$f":"入力してください!DL432","v":0}]
[]
[null,null,null,null,null,null,null,null,null,null,null,null,null,null,null,null,null,null,null,null,null,null,null,null,null,null,null,null,null,null,null,null,null,null,null,null,null,null,null,null,null,null,null,null,null,null,null,null,null,null,null,null,null,null,null,null,null,null,null,null,null,null,null,null,null,null,null,null,null,null,null,null,null,null,null,null,null,null,null,null,null,null,null,null,null,null,null,null,null,null,null,null,null,null,null,null,null,null,null,null,null,null,null,null,"一　時",null,null,null,null,null,null,null,null,null,null,null,null,null,null,null,null,null,null,null,null,"シ",null,null,null,null,{"$f":"'裏面（印刷画面）'!AD35","v":""}]
[null,null,null,null,null,null,null,null,null,null,null,null,null,null,null,null,null,null,null,null,null,null,null,null,null,null,null,null,null,null,null,null,null,null,null,null,null,null,null,null,null,null,null,null,null,null,null,null,null,null,null,null,null,null,null,null,null,null,null,null,null,null,null,null,null,null,null,null,null,null,null,null,null,null,null,null,null,null,null,null,null,null,null,null,null,null,null,null,null,null,null,null,null,null,null,null,null,null,null,null,null,null,null,null,null,null,null,null,null,null,null,null,null,null,null,null,null,null,null,null,null,null,null,null,null,null,null,null,null,null,null,null,null,null,null,null,null,null,null,null,null,null,null,null,null,null,null,null,null,null,null,null,null,null,null,null,null,null,null,null,null,null,null,null,null,null,null,null,null,null,null,false,null,null,null,null,null,null,null,null,null,null,null,null,null,null,null,null,null,null,null,null,null,null,false]
[null,null,null,null,null,null,null,null,null,null,null,null,null,null,null,null,null,null,null,null,null,null,null,null,null,null,null,null,null,null,null,null,null,null,null,null,null,null,null,null,null,null,null,null,null,null,null,null,null,null,null,null,null,null,null,null,null,null,null,null,null,null,null,null,null,null,null,null,null,null,null,null,null,null,null,null,null,null,null,null,null,null,null,null,null,null,null,null,null,null,null,null,null,null,null,null,null,null,null,null,null,null,null,null,null,null,null,null,null,null,null,null,null,null,null,null,null,null,null,null,null,null,null,null,null,null,null,null,null,null,null,null,null,null,null,null,null,null,null,null,null,null,null,null,null,null,null,null,null,null,null,null,null,null,null,null,null,null,null,null,null,null,null,null,null,null,null,null,null,null,null,null,null,null,null,null,null,null,null,null,null,null,null,null,null,null,null,null,null,null,null,null,null,null,false]
[null,null,null,null,null,null,null,null,null,null,null,null,null,null,null,null,null,null,null,null,null,null,null,null,null,null,null,null,null,null,null,null,null,null,null,null,null,null,null,null,null,null,null,null,null,null,null,null,null,null,null,null,null,null,null,null,null,null,null,null,null,null,null,null,null,null,null,null,null,null,null,null,null,null,null,null,null,null,null,null,null,null,null,null,null,null,null,null,null,null,null,null,null,null,null,null,null,null,null,null,null,null,null,null,null,null,null,null,null,null,null,null,null,null,null,null,null,null,null,null,null,null,null,null,null,null,null,null,null,null,null,null,null,null,null,null,null,null,null,null,null,null,null,null,null,null,null,null,null,null,null,null,null,null,null,null,null,null,null,null,null,null,null,null,null,null,null,null,null,null,null,null,null,null,null,null,null,null,null,null,null,null,null,null,null,null,null,null,null,null,null,null,null,null,false]
[null,null,null,null,null,null,null,null,null,null,"⑳\n障害者\n控　除",null,null,null,null,null,null,null,null,null,null,null,null,1,null,"フリ\nガナ",null,null,{"$f":"入力してください!AG539","v":0},null,null,null,null,null,null,null,null,null,null,null,null,null,null,null,null,null,null,null,null,null,null,null,null,null,null,null,null,null,null,null,null,null,"障害の\n程度",null,null,null,null,null,null,null,{"$f":"入力してください!AJ545","v":0},null,null,null,null,null,null,null,null,null,null,null,null,null,null,null,null,null,null,null,null,null,null,"級\n度",null,null,null,null,null,null,null,null,null,null,null,null,null,null,null,null,null,null,null,null,null,null,null,null,null,null,null,null,null,null,null,null,null,null,null,null,null,null,null,null,null,null,null,null,null,null,null,null,null,null,null,null,null,null,null,null,null,null,null,null,null,null,null,null,null,null,null,null,null,null,null,null,null,null,null,null,null,null,null,null,null,null,null,null,null,null,null,null,null,null,null,null,null,null,null,null,null,null,null,null,false]
[]
[null,null,null,null,null,null,null,null,null,null,null,null,null,null,null,null,null,null,null,null,null,null,null,null,null,null,null,null,null,null,null,null,null,null,null,null,null,null,null,null,null,null,null,null,null,null,null,null,null,null,null,null,null,null,null,null,null,null,null,null,null,null,null,null,null,null,null,null,null,null,null,null,null,null,null,null,null,null,null,null,null,null,null,null,null,null,null,null,null,null,null,null,null,null,null,null,null,null,"２　所　得　金　額",null,null,null,null,null,"事業",null,null,null,"営 業 等",null,null,null,null,null,null,null,null,null,null,null,null,null,null,null,null,"①",null,null,null,null,{"$f":"入力してください!AE129-入力してください!AE134","v":0}]
[]
[null,null,null,null,null,null,null,null,null,null,null,null,null,null,null,null,null,null,null,null,null,null,null,null,null,"氏名",null,null,{"$f":"入力してください!AG533","v":0},null,null,null,null,null,null,null,null,null,null,null,null,null,null,null,null,null,null,null,null,null,null,null,null,null,null,null,null,null,null,null,null,null,null,null,null,null,null,null,null,null,null,null,null,null,null,null,null,null,null,null,null,null,null,null,null,null,null,null,null,null,null,null,null,null,null,null,null,null,null,null,null,null,null,null,null,null,null,null,null,null,null,null,null,null,null,null,null,null,null,null,null,null,null,null,null,null,null,null,null,null,null,null,null,null,null,null,null,null,null,null,null,null,null,null,null,null,null,null,null,null,null,null,null,null,null,null,null,null,null,null,null,null,null,null,null,null,null,null,null,null,null,null,false]
[]
[]
[null,null,null,null,null,null,null,null,null,null,null,null,null,null,null,null,null,null,null,null,null,null,null,null,null,null,null,null,null,null,null,null,null,null,null,null,null,null,null,null,null,null,null,null,null,null,null,null,null,null,null,null,null,null,null,null,null,null,null,null,null,null,null,null,null,null,null,null,null,null,null,null,null,null,null,null,null,null,null,null,null,null,null,null,null,null,null,null,null,null,null,null,null,null,null,null,null,null,null,null,null,null,null,null,null,null,null,null,"農　業",null,null,null,null,null,null,null,null,null,null,null,null,null,null,null,null,"②",null,null,null,null,{"$f":"入力してください!AE150-入力してください!AE155","v":0}]
[]
[null,null,null,null,null,null,null,null,null,null,null,null,null,null,null,null,null,null,null,null,null,null,null,null,null,"個人\n番号"]
[]
[]
[null,null,null,null,null,null,null,null,null,null,null,null,null,null,null,null,null,null,null,null,null,null,null,null,null,null,null,null,null,null,null,null,null,null,null,null,null,null,null,null,null,null,null,null,null,null,null,null,null,null,null,null,null,null,null,null,null,null,null,null,null,null,null,null,null,null,null,null,null,null,null,null,null,null,null,null,null,null,null,null,null,null,null,null,null,null,null,null,null,null,null,null,null,null,null,null,null,null,null,null,null,null,null,null,"不 動 産",null,null,null,null,null,null,null,null,null,null,null,null,null,null,null,null,null,null,null,null,"③",null,null,null,null,{"$f":"入力してください!AE171-入力してください!AE176","v":0}]
[]
[]
[null,null,null,null,null,null,null,null,null,null,null,null,null,null,null,null,null,null,null,null,null,null,null,2,null,"フリ\nガナ",null,null,{"$f":"入力してください!DC539","v":0},null,null,null,null,null,null,null,null,null,null,null,null,null,null,null,null,null,null,null,null,null,null,null,null,null,null,null,null,null,null,null,null,null,"障害の\n程度",null,null,null,null,null,null,null,{"$f":"入力してください!DF545","v":0},null,null,null,null,null,null,null,null,null,null,null,null,null,null,null,null,null,null,null,null,null,null,"級\n度"]
[]
[null,null,null,null,null,null,null,null,null,null,null,null,null,null,null,null,null,null,null,null,null,null,null,null,null,null,null,null,null,null,null,null,null,null,null,null,null,null,null,null,null,null,null,null,null,null,null,null,null,null,null,null,null,null,null,null,null,null,null,null,null,null,null,null,null,null,null,null,null,null,null,null,null,null,null,null,null,null,null,null,null,null,null,null,null,null,null,null,null,null,null,null,null,null,null,null,null,null,null,null,null,null,null,null,"利　　子",null,null,null,null,null,null,null,null,null,null,null,null,null,null,null,null,null,null,null,null,"④"]
[]
[null,null,null,null,null,null,null,null,null,null,null,null,null,null,null,null,null,null,null,null,null,null,null,null,null,"氏名",null,null,{"$f":"入力してください!DC533","v":0}]
[null,null,null,null,null,null,null,null,null,null,null,null,null,null,null,null,null,null,null,null,null,null,null,null,null,null,null,null,null,null,null,null,null,null,null,null,null,null,null,null,null,null,null,null,null,null,null,null,null,null,null,null,null,null,null,null,null,null,null,null,null,null,null,null,null,null,null,null,null,null,null,null,null,null,null,null,null,null,null,null,null,null,null,null,null,null,null,null,null,null,null,null,null,null,null,null,null,null,null,null,null,null,null,null,null,null,null,null,null,null,null,null,null,null,null,null,null,null,null,null,null,null,null,null,null,null,null,null,null,null,null,null,null,null,null,null,null,null,null,null,null,null,null,null,null,null,null,null,null,null,null,null,null,null,null,null,null,null,null,null,null,null,null,null,null,null,null,null,null,null,null,null,null,null,null,null,null,null,null,null,null,null,null,null,null,null,null,null,null,null,null,null,null,null,false]
[null,null,null,null,null,null,null,null,null,null,null,null,null,null,null,null,null,null,null,null,null,null,null,null,null,null,null,null,null,null,null,null,null,null,null,null,null,null,null,null,null,null,null,null,null,null,null,null,null,null,null,null,null,null,null,null,null,null,null,null,null,null,null,null,null,null,null,null,null,null,null,null,null,null,null,null,null,null,null,null,null,null,null,null,null,null,null,null,null,null,null,null,null,null,null,null,null,null,null,null,null,null,null,null,null,null,null,null,null,null,null,null,null,null,null,null,null,null,null,null,null,null,null,null,null,null,null,null,null,null,null,null,null,null,null,null,null,null,null,null,null,null,null,null,null,null,null,null,null,null,null,null,null,null,null,null,null,null,null,null,null,null,null,null,null,null,null,null,null,null,null,null,null,null,null,null,null,null,null,null,null,null,null,null,null,null,null,null,null,null,null,null,null,null,false]
[null,null,null,null,null,null,null,null,null,null,null,null,null,null,null,null,null,null,null,null,null,null,null,null,null,null,null,null,null,null,null,null,null,null,null,null,null,null,null,null,null,null,null,null,null,null,null,null,null,null,null,null,null,null,null,null,null,null,null,null,null,null,null,null,null,null,null,null,null,null,null,null,null,null,null,null,null,null,null,null,null,null,null,null,null,null,null,null,null,null,null,null,null,null,null,null,null,null,null,null,null,null,null,null,"配　　当",null,null,null,null,null,null,null,null,null,null,null,null,null,null,null,null,null,null,null,null,"⑤",null,null,null,null,{"$f":"IF(EA51=0,\"\",IF(('裏面（印刷画面）'!AD14-'裏面（印刷画面）'!AG14)+('裏面（印刷画面）'!AD16-'裏面（印刷画面）'!AG16)+('裏面（印刷画面）'!AD18-'裏面（印刷画面）'!AG18)+('裏面（印刷画面）'!AD20-'裏面（印刷画面）'!AG20)<0,0,('裏面（印刷画面）'!AD14-'裏面（印刷画面）'!AG14)+('裏面（印刷画面）'!AD16-'裏面（印刷画面）'!AG16)+('裏面（印刷画面）'!AD18-'裏面（印刷画面）'!AG18)+('裏面（印刷画面）'!AD20-'裏面（印刷画面）'!AG20)))","v":""},null,null,null,null,null,null,null,null,null,null,null,null,null,null,null,null,null,null,null,null,null,null,null,null,null,null,null,null,null,null,null,null,null,null,null,null,null,null,null,null,null,null,null,null,null,null,null,null,null,null,null,null,null,null,null,null,null,null,null,null,null,null,null,false]
[null,null,null,null,null,null,null,null,null,null,null,null,null,null,null,null,null,null,null,null,null,null,null,null,null,null,null,null,null,null,null,null,null,null,null,null,null,null,null,null,null,null,null,null,null,null,null,null,null,null,null,null,null,null,null,null,null,null,null,null,null,null,null,null,null,null,null,null,null,null,null,null,null,null,null,null,null,null,null,null,null,null,null,null,null,null,null,null,null,null,null,null,null,null,null,null,null,null,null,null,null,null,null,null,null,null,null,null,null,null,null,null,null,null,null,null,null,null,null,null,null,null,null,null,null,null,null,null,null,null,null,null,null,null,null,null,null,null,null,null,null,null,null,null,null,null,null,null,null,null,null,null,null,null,null,null,null,null,null,null,null,null,null,null,null,null,null,null,null,null,null,null,null,null,null,null,null,null,null,null,null,null,null,null,null,null,null,null,null,null,null,null,null,null,false]
[null,null,null,null,null,null,null,null,null,null,null,null,null,null,null,null,null,null,null,null,null,null,null,null,null,"個人\n番号",null,null,null,null,null,null,null,null,null,null,null,null,null,null,null,null,null,null,null,null,null,null,null,null,null,null,null,null,null,null,null,null,null,null,null,null,null,null,null,null,null,null,null,null,null,null,null,null,null,null,null,null,null,null,null,null,null,null,null,null,null,null,null,null,null,null,null,null,null,null,null,null,null,null,null,null,null,null,null,null,null,null,null,null,null,null,null,null,null,null,null,null,null,null,null,null,null,null,null,null,null,null,null,null,null,null,null,null,null,null,null,null,null,null,null,null,null,null,null,null,null,null,null,null,null,null,null,null,null,null,null,null,null,null,null,null,null,null,null,null,null,null,null,null,null,null,null,null,null,null,null,null,null,null,null,null,null,null,null,null,null,null,null,null,null,null,null,null,false]
[null,null,null,null,null,null,null,null,null,null,null,null,null,null,null,null,null,null,null,null,null,null,null,null,null,null,null,null,null,null,null,null,null,null,null,null,null,null,null,null,null,null,null,null,null,null,null,null,null,null,null,null,null,null,null,null,null,null,null,null,null,null,null,null,null,null,null,null,null,null,null,null,null,null,null,null,null,null,null,null,null,null,null,null,null,null,null,null,null,null,null,null,null,null,null,null,null,null,null,null,null,null,null,null,null,null,null,null,null,null,null,null,null,null,null,null,null,null,null,null,null,null,null,null,null,null,null,null,null,null,null,null,null,null,null,null,null,null,null,null,null,null,null,null,null,null,null,null,null,null,null,null,null,null,null,null,null,null,null,null,null,null,null,null,null,null,null,null,null,null,null,null,null,null,null,null,null,null,null,null,null,null,null,null,null,null,null,null,null,null,null,null,null,null,false]
[null,null,null,null,null,null,null,null,null,null,null,null,null,null,null,null,null,null,null,null,null,null,null,null,null,null,null,null,null,null,null,null,null,null,null,null,null,null,null,null,null,null,null,null,null,null,null,null,null,null,null,null,null,null,null,null,null,null,null,null,null,null,null,null,null,null,null,null,null,null,null,null,null,null,null,null,null,null,null,null,null,null,null,null,null,null,null,null,null,null,null,null,null,null,null,null,null,null,null,null,null,null,null,null,null,null,null,null,null,null,null,null,null,null,null,null,null,null,null,null,null,null,null,null,null,null,null,null,null,null,null,null,null,null,null,null,null,null,null,null,null,null,null,null,null,null,null,null,null,null,null,null,null,null,null,null,null,null,null,null,null,null,null,null,null,null,null,null,null,null,null,null,null,null,null,null,null,null,null,null,null,null,null,null,null,null,null,null,null,null,null,null,null,null,false]
[null,null,null,null,null,null,null,null,null,null,null,null,null,null,null,null,null,null,null,null,null,null,null,null,null,null,null,null,null,null,null,null,null,null,null,null,null,null,null,null,null,null,null,null,null,null,null,null,null,null,null,null,null,null,null,null,null,null,null,null,null,null,null,null,null,null,null,null,null,null,null,null,null,null,null,null,null,null,null,null,null,null,null,null,null,null,null,null,null,null,null,null,null,null,null,null,null,null,null,null,null,null,null,null,"給　　与",null,null,null,null,null,null,null,null,null,null,null,null,null,null,null,null,null,null,null,null,"⑥",null,null,null,null,{"$f":"IF(AND(AND(※入力厳禁※計算用!AE4>0,※入力厳禁※計算用!B34>0),※入力厳禁※計算用!AE4+※入力厳禁※計算用!B34>=100000),※入力厳禁※計算用!U39,※入力厳禁※計算用!AE4)","v":0},null,null,null,null,null,null,null,null,null,null,null,null,null,null,null,null,null,null,null,null,null,null,null,null,null,null,null,null,null,null,null,null,null,null,null,null,null,null,null,null,null,null,null,null,null,null,null,null,null,null,null,null,null,null,null,null,null,null,null,null,null,null,null,false]
[null,null,null,null,null,null,null,null,null,null,null,null,null,null,null,null,null,null,null,null,null,null,null,null,null,null,null,null,null,null,null,null,null,null,null,null,null,null,null,null,null,null,null,null,null,null,null,null,null,null,null,null,null,null,null,null,null,null,null,null,null,null,null,null,null,null,null,null,null,null,null,null,null,null,null,null,null,null,null,null,null,null,null,null,null,null,null,null,null,null,null,null,null,null,null,null,null,null,null,null,null,null,null,null,null,null,null,null,null,null,null,null,null,null,null,null,null,null,null,null,null,null,null,null,null,null,null,null,null,null,null,null,null,null,null,null,null,null,null,null,null,null,null,null,null,null,null,null,null,null,null,null,null,null,null,null,null,null,null,null,null,null,null,null,null,null,null,null,null,null,null,null,null,null,null,null,null,null,null,null,null,null,null,null,null,null,null,null,null,null,null,null,null,null,false]
[null,null,null,null,null,null,null,null,null,null,null,null,null,null,null,null,null,null,null,null,null,null,null,null,null,null,null,null,null,null,null,null,null,null,null,null,null,null,null,null,null,null,null,null,null,null,null,null,null,null,null,null,null,null,null,null,null,null,null,null,null,null,null,null,null,null,null,null,null,null,null,null,null,null,null,null,null,null,null,null,null,null,null,null,null,null,null,null,null,null,null,null,null,null,null,null,null,null,null,null,null,null,null,null,null,null,null,null,null,null,null,null,null,null,null,null,null,null,null,null,null,null,null,null,null,null,null,null,null,null,null,null,null,null,null,null,null,null,null,null,null,null,null,null,null,null,null,null,null,null,null,null,null,null,null,null,null,null,null,null,null,null,null,null,null,null,null,null,null,null,null,null,null,null,null,null,null,null,null,null,null,null,null,null,null,null,null,null,null,null,null,null,null,null,false]
[null,null,null,null,null,null,null,null,null,null,"㉑～㉒\n配偶者控除・\n配偶者特別控\n除・同一生計\n配偶者　",null,null,null,null,null,null,null,null,null,null,null,null,"配偶者",null,null,null,"フリ\nガナ",null,null,null,{"$f":"入力してください!AH641","v":0},null,null,null,null,null,null,null,null,null,null,null,null,null,null,null,null,null,null,null,null,null,null,null,null,"生年月日",null,null,null,null,null,null,null,null,null,null,null,null,null,null,null,null,null,{"$f":"IF(入力してください!AH646=\"\",\"\",入力してください!AH646)","v":""},null,null,null,null,null,null,null,null,null,null,null,null,null,null,null,null,null,null,null,null,null,null,null,null,null,null,null,null,null,null,null,null,null,null,null,null,null,null,null,null,null,null,null,null,null,null,null,null,null,null,null,null,null,null,null,null,null,null,null,null,null,null,null,null,null,null,null,null,null,null,null,null,null,null,null,null,null,null,null,null,null,null,null,null,null,null,null,null,null,null,null,null,null,null,null,null,null,null,null,null,null,null,null,null,null,null,null,null,null,null,null,null,null,null,null,null,null,null,null,false]
[null,null,null,null,null,null,null,null,null,null,null,null,null,null,null,null,null,null,null,null,null,null,null,null,null,null,null,null,null,null,null,null,null,null,null,null,null,null,null,null,null,null,null,null,null,null,null,null,null,null,null,null,null,null,null,null,null,null,null,null,null,null,null,null,null,null,null,null,null,null,null,null,null,null,null,null,null,null,null,null,null,null,null,null,null,null,null,null,null,null,null,null,null,null,null,null,null,null,null,null,null,null,null,null,null,null,null,null,null,null,null,null,null,null,null,null,null,null,null,null,null,null,null,null,null,null,null,null,null,null,null,null,null,null,null,null,null,null,null,null,null,null,null,null,null,null,null,null,null,null,null,null,null,null,null,null,null,null,null,null,null,null,null,null,null,null,null,null,null,null,null,null,null,null,null,null,null,null,null,null,null,null,null,null,null,null,null,null,null,null,null,null,null,null,false]
[null,null,null,null,null,null,null,null,null,null,null,null,null,null,null,null,null,null,null,null,null,null,null,null,null,null,null,null,null,null,null,null,null,null,null,null,null,null,null,null,null,null,null,null,null,null,null,null,null,null,null,null,null,null,null,null,null,null,null,null,null,null,null,null,null,null,null,null,null,null,null,null,null,null,null,null,null,null,null,null,null,null,null,null,null,null,null,null,null,null,null,null,null,null,null,null,null,null,null,null,null,null,null,null,"雑",null,null,null,"公的年金等",null,null,null,null,null,null,null,null,null,null,null,null,null,null,null,null,"⑦",null,null,null,null,{"$f":"※入力厳禁※計算用!B34","v":0},null,null,null,null,null,null,null,null,null,null,null,null,null,null,null,null,null,null,null,null,null,null,null,null,null,null,null,null,null,null,null,null,null,null,null,null,null,null,null,null,null,null,null,null,null,null,null,null,null,null,null,null,null,null,null,null,null,null,null,null,null,null,null,false]
[null,null,null,null,null,null,null,null,null,null,null,null,null,null,null,null,null,null,null,null,null,null,null,null,null,null,null,null,null,null,null,null,null,null,null,null,null,null,null,null,null,null,null,null,null,null,null,null,null,null,null,null,null,null,null,null,null,null,null,null,null,null,null,null,null,null,null,null,null,null,null,null,null,null,null,null,null,null,null,null,null,null,null,null,null,null,null,null,null,null,null,null,null,null,null,null,null,null,null,null,null,null,null,null,null,null,null,null,null,null,null,null,null,null,null,null,null,null,null,null,null,null,null,null,null,null,null,null,null,null,null,null,null,null,null,null,null,null,null,null,null,null,null,null,null,null,null,null,null,null,null,null,null,null,null,null,null,null,null,null,null,null,null,null,null,null,null,null,null,null,null,null,null,null,null,null,null,null,null,null,null,null,null,null,null,null,null,null,null,null,null,null,null,null,false]
[null,null,null,null,null,null,null,null,null,null,null,null,null,null,null,null,null,null,null,null,null,null,null,null,null,null,null,"氏名",null,null,null,{"$f":"入力してください!AH636","v":0},null,null,null,null,null,null,null,null,null,null,null,null,null,null,null,null,null,null,null,null,null,null,null,null,"配偶者の\n合計所得金額",null,null,null,null,null,null,null,null,null,null,null,null,null,null,null,null,null,{"$f":"入力してください!AH651","v":0},null,null,null,null,null,null,null,null,null,null,null,null,null,null,null,null,null,null,null,"円"]
[]
[]
[null,null,null,null,null,null,null,null,null,null,null,null,null,null,null,null,null,null,null,null,null,null,null,null,null,null,null,null,null,null,null,null,null,null,null,null,null,null,null,null,null,null,null,null,null,null,null,null,null,null,null,null,null,null,null,null,null,null,null,null,null,null,null,null,null,null,null,null,null,null,null,null,null,null,null,null,null,null,null,null,null,null,null,null,null,null,null,null,null,null,null,null,null,null,null,null,null,null,null,null,null,null,null,null,null,null,null,null,"業　務",null,null,null,null,null,null,null,null,null,null,null,null,null,null,null,null,"⑧",null,null,null,null,{"$f":"入力してください!AD238-入力してください!AD243","v":0}]
[]
[null,null,null,null,null,null,null,null,null,null,null,null,null,null,null,null,null,null,null,null,null,null,null,"個人\n番号",null,null,null,null,null,null,null,null,null,null,null,null,null,null,null,null,null,null,null,null,null,null,null,null,null,null,null,null,null,null,null,null,null,null,null,null,null,null,null,null,null,null,null,null,null,null,null,null,null,null,null,null,null,null,null,null,"同一生計配偶者(控除\n対象配偶者を除く。)"]
[]
[]
[null,null,null,null,null,null,null,null,null,null,null,null,null,null,null,null,null,null,null,null,null,null,null,null,null,null,null,null,null,null,null,null,null,null,null,null,null,null,null,null,null,null,null,null,null,null,null,null,null,null,null,null,null,null,null,null,null,null,null,null,null,null,null,null,null,null,null,null,null,null,null,null,null,null,null,null,null,null,null,null,null,null,null,null,null,null,null,null,null,null,null,null,null,null,null,null,null,null,null,null,null,null,null,null,null,null,null,null,"その他",null,null,null,null,null,null,null,null,null,null,null,null,null,null,null,null,"⑨",null,null,null,null,{"$f":"入力してください!AD256-入力してください!AD261","v":0}]
[]
[]
[null,null,null,null,null,null,null,null,null,null,"㉓　扶　養　控　除",null,null,null,null,null,1,null,null,"フリ\nガナ",null,null,null,{"$f":"入力してください!AJ720","v":0},null,null,null,null,null,null,null,null,null,null,null,null,null,null,null,null,null,null,null,null,null,"生年\n月日",null,null,null,null,{"$f":"IF(入力してください!AJ725=\"\",\"\",入力してください!AJ725)","v":""},null,null,null,null,null,null,null,null,null,null,null,null,null,null,null,null,null,"同居・\n別居の\n区分",null,null,null,null,null,null,null,0,null,null,null,null,null,null,null,null,"続柄",null,null,null,{"$f":"入力してください!AJ730","v":0}]
[null,null,null,null,null,null,null,null,null,null,null,null,null,null,null,null,null,null,null,null,null,null,null,null,null,null,null,null,null,null,null,null,null,null,null,null,null,null,null,null,null,null,null,null,null,null,null,null,null,null,null,null,null,null,null,null,null,null,null,null,null,null,null,null,null,null,null,null,null,null,null,null,null,null,null,null,null,null,null,null,null,null,null,null,null,null,null,null,null,null,null,null,null,null,null,null,null,null,null,null,null,null,null,null,null,null,null,null,null,null,null,null,null,null,null,null,null,null,null,null,null,null,null,null,null,null,null,null,null,null,null,null,null,null,null,null,null,null,null,null,null,null,null,null,null,null,null,null,null,null,null,null,null,null,null,null,null,null,null,null,null,null,null,null,null,null,null,null,null,null,null,null,null,null,null,null,null,null,null,null,null,null,null,1]
[null,null,null,null,null,null,null,null,null,null,null,null,null,null,null,null,null,null,null,null,null,null,null,null,null,null,null,null,null,null,null,null,null,null,null,null,null,null,null,null,null,null,null,null,null,null,null,null,null,null,null,null,null,null,null,null,null,null,null,null,null,null,null,null,null,null,null,null,null,null,null,null,null,null,null,null,null,null,null,null,null,null,null,null,null,null,null,null,null,null,null,null,null,null,null,null,null,null,null,null,null,null,null,null,null,null,null,null,"合計\n(⑦+⑧+⑨)",null,null,null,null,null,null,null,null,null,null,null,null,null,null,null,null,"⑩",null,null,null,null,{"$f":"SUM(EA122,EA127,EA132)","v":0}]
[]
[null,null,null,null,null,null,null,null,null,null,null,null,null,null,null,null,null,null,null,"氏名",null,null,null,{"$f":"入力してください!AJ715","v":0}]
[]
[]
[null,null,null,null,null,null,null,null,null,null,null,null,null,null,null,null,null,null,null,null,null,null,null,null,null,null,null,null,null,null,null,null,null,null,null,null,null,null,null,null,null,null,null,null,null,null,null,null,null,null,null,null,null,null,null,null,null,null,null,null,null,null,null,null,null,null,null,null,null,null,null,null,null,null,null,null,null,null,null,null,null,null,null,null,null,null,null,null,null,null,null,null,null,null,null,null,null,null,null,null,null,null,null,null,"総合譲渡・一時",null,null,null,null,null,null,null,null,null,null,null,null,null,null,null,null,null,null,null,null,"⑪",null,null,null,null,{"$f":"'裏面（印刷画面）'!AC36","v":""}]
[]
[null,null,null,null,null,null,null,null,null,null,null,null,null,null,null,null,null,null,null,"個人\n番号",null,null,null,null,null,null,null,null,null,null,null,null,null,null,null,null,null,null,null,null,null,null,null,null,null,null,null,null,null,null,null,null,null,null,null,null,null,null,null,null,null,null,null,null,null,null,null,null,null,null,null,null,null,null,null,null,"控除額",null,null,null,null,null,null,null,null,{"$f":"※入力厳禁※計算用!AB56","v":"0"},null,null,null,null,null,null,null,"万円"]
[]
[]
[null,null,null,null,null,null,null,null,null,null,null,null,null,null,null,null,null,null,null,null,null,null,null,null,null,null,null,null,null,null,null,null,null,null,null,null,null,null,null,null,null,null,null,null,null,null,null,null,null,null,null,null,null,null,null,null,null,null,null,null,null,null,null,null,null,null,null,null,null,null,null,null,null,null,null,null,null,null,null,null,null,null,null,null,null,null,null,null,null,null,null,null,null,null,null,null,null,null,null,null,null,null,null,null,"合　　計",null,null,null,null,null,null,null,null,null,null,null,null,null,null,null,null,null,null,null,null,"⑫",null,null,null,null,{"$f":"SUM(EA92,EA97,EA102,EA107,EA112,EA117,EA137,EA142)","v":0}]
[]
[]
[null,null,null,null,null,null,null,null,null,null,null,null,null,null,null,null,2,null,null,"フリ\nガナ",null,null,null,{"$f":"入力してください!AJ746","v":0},null,null,null,null,null,null,null,null,null,null,null,null,null,null,null,null,null,null,null,null,null,"生年\n月日",null,null,null,null,{"$f":"IF(入力してください!AJ751=\"\",\"\",入力してください!AJ751)","v":""},null,null,null,null,null,null,null,null,null,null,null,null,null,null,null,null,null,"同居・\n別居の\n区分",null,null,null,null,null,null,null,0,null,null,null,null,null,null,null,null,"続柄",null,null,null,{"$f":"入力してください!AJ756","v":0}]
[]
[]
[null,null,null,null,null,null,null,null,null,null,null,null,null,null,null,null,null,null,null,null,null,null,null,null,null,null,null,null,null,null,null,null,null,null,null,null,null,null,null,null,null,null,null,null,null,null,null,null,null,null,null,null,null,null,null,null,null,null,null,null,null,null,null,null,null,null,null,null,null,null,null,null,null,null,null,null,null,null,null,null,null,null,null,null,null,null,null,null,null,null,null,null,null,null,null,null,null,null,"４　所得から差し引かれる金額",null,null,null,null,null,"社会保険料控除",null,null,null,null,null,null,null,null,null,null,null,null,null,null,null,null,null,null,null,null,"⑬",null,null,null,null,{"$f":"BI46","v":0}]
[null,null,null,null,null,null,null,null,null,null,null,null,null,null,null,null,null,null,null,"氏名",null,null,null,{"$f":"入力してください!AJ741","v":0}]
[]
[]
[]
[null,null,null,null,null,null,null,null,null,null,null,null,null,null,null,null,null,null,null,null,null,null,null,null,null,null,null,null,null,null,null,null,null,null,null,null,null,null,null,null,null,null,null,null,null,null,null,null,null,null,null,null,null,null,null,null,null,null,null,null,null,null,null,null,null,null,null,null,null,null,null,null,null,null,null,null,null,null,null,null,null,null,null,null,null,null,null,null,null,null,null,null,null,null,null,null,null,null,null,null,null,null,null,null,"小 規 模 企 業\n共済等掛金控除",null,null,null,null,null,null,null,null,null,null,null,null,null,null,null,null,null,null,null,null,"⑭",null,null,null,null,{"$f":"入力してください!AD310+入力してください!AD315","v":0}]
[null,null,null,null,null,null,null,null,null,null,null,null,null,null,null,null,null,null,null,"個人\n番号",null,null,null,null,null,null,null,null,null,null,null,null,null,null,null,null,null,null,null,null,null,null,null,null,null,null,null,null,null,null,null,null,null,null,null,null,null,null,null,null,null,null,null,null,null,null,null,null,null,null,null,null,null,null,null,null,"控除額",null,null,null,null,null,null,null,null,{"$f":"※入力厳禁※計算用!AB57","v":"0"},null,null,null,null,null,null,null,"万円"]
[]
[]
[]
[null,null,null,null,null,null,null,null,null,null,null,null,null,null,null,null,null,null,null,null,null,null,null,null,null,null,null,null,null,null,null,null,null,null,null,null,null,null,null,null,null,null,null,null,null,null,null,null,null,null,null,null,null,null,null,null,null,null,null,null,null,null,null,null,null,null,null,null,null,null,null,null,null,null,null,null,null,null,null,null,null,null,null,null,null,null,null,null,null,null,null,null,null,null,null,null,null,null,null,null,null,null,null,null,"生命保険料控除",null,null,null,null,null,null,null,null,null,null,null,null,null,null,null,null,null,null,null,null,"⑮",null,null,null,null,{"$f":"※入力厳禁※計算用!F83","v":0}]
[]
[null,null,null,null,null,null,null,null,null,null,null,null,null,null,null,null,3,null,null,"フリ\nガナ",null,null,null,{"$f":"入力してください!AJ772","v":0},null,null,null,null,null,null,null,null,null,null,null,null,null,null,null,null,null,null,null,null,null,"生年\n月日",null,null,null,null,{"$f":"IF(入力してください!AJ777=\"\",\"\",入力してください!AJ777)","v":""},null,null,null,null,null,null,null,null,null,null,null,null,null,null,null,null,null,"同居・\n別居の\n区分",null,null,null,null,null,null,null,0,null,null,null,null,null,null,null,null,"続柄",null,null,null,{"$f":"入力してください!AJ782","v":0}]
[]
[]
[null,null,null,null,null,null,null,null,null,null,null,null,null,null,null,null,null,null,null,null,null,null,null,null,null,null,null,null,null,null,null,null,null,null,null,null,null,null,null,null,null,null,null,null,null,null,null,null,null,null,null,null,null,null,null,null,null,null,null,null,null,null,null,null,null,null,null,null,null,null,null,null,null,null,null,null,null,null,null,null,null,null,null,null,null,null,null,null,null,null,null,null,null,null,null,null,null,null,null,null,null,null,null,null,"地震保険料控除",null,null,null,null,null,null,null,null,null,null,null,null,null,null,null,null,null,null,null,null,"⑯",null,null,null,null,{"$f":"※入力厳禁※計算用!AF87","v":0}]
[null,null,null,null,null,null,null,null,null,null,null,null,null,null,null,null,null,null,null,"氏名",null,null,null,{"$f":"入力してください!AJ767","v":0}]
[]
[]
[]
[null,null,null,null,null,null,null,null,null,null,null,null,null,null,null,null,null,null,null,null,null,null,null,null,null,null,null,null,null,null,null,null,null,null,null,null,null,null,null,null,null,null,null,null,null,null,null,null,null,null,null,null,null,null,null,null,null,null,null,null,null,null,null,null,null,null,null,null,null,null,null,null,null,null,null,null,null,null,null,null,null,null,null,null,null,null,null,null,null,null,null,null,null,null,null,null,null,null,null,null,null,null,null,null,"寡婦、ひとり親控除",null,null,null,null,null,null,null,null,null,null,null,null,null,null,null,null,null,null,null,null,"⑰～\n⑱",null,null,null,null,{"$f":"※入力厳禁※計算用!B46+※入力厳禁※計算用!F46","v":0}]
[null,null,null,null,null,null,null,null,null,null,null,null,null,null,null,null,null,null,null,"個人\n番号",null,null,null,null,null,null,null,null,null,null,null,null,null,null,null,null,null,null,null,null,null,null,null,null,null,null,null,null,null,null,null,null,null,null,null,null,null,null,null,null,null,null,null,null,null,null,null,null,null,null,null,null,null,null,null,null,"控除額",null,null,null,null,null,null,null,null,{"$f":"※入力厳禁※計算用!AB58","v":"0"},null,null,null,null,null,null,null,"万円"]
[]
[]
[]
[null,null,null,null,null,null,null,null,null,null,null,null,null,null,null,null,null,null,null,null,null,null,null,null,null,null,null,null,null,null,null,null,null,null,null,null,null,null,null,null,null,null,null,null,null,null,null,null,null,null,null,null,null,null,null,null,null,null,null,null,null,null,null,null,null,null,null,null,null,null,null,null,null,null,null,null,null,null,null,null,null,null,null,null,null,null,null,null,null,null,null,null,null,null,null,null,null,null,null,null,null,null,null,null,"勤労学生、障害者控除",null,null,null,null,null,null,null,null,null,null,null,null,null,null,null,null,null,null,null,null,"⑲～\n⑳",null,null,null,null,{"$f":"※入力厳禁※計算用!K46+※入力厳禁※計算用!U52","v":0}]
[]
[null,null,null,null,null,null,null,null,null,null,null,null,null,null,null,null,4,null,null,"フリ\nガナ",null,null,null,{"$f":"入力してください!AJ798","v":0},null,null,null,null,null,null,null,null,null,null,null,null,null,null,null,null,null,null,null,null,null,"生年\n月日",null,null,null,null,{"$f":"IF(入力してください!AJ803=\"\",\"\",入力してください!AJ803)","v":""},null,null,null,null,null,null,null,null,null,null,null,null,null,null,null,null,null,"同居・\n別居の\n区分",null,null,null,null,null,null,null,0,null,null,null,null,null,null,null,null,"続柄",null,null,null,{"$f":"入力してください!AJ808","v":0}]
[]
[]
[null,null,null,null,null,null,null,null,null,null,null,null,null,null,null,null,null,null,null,null,null,null,null,null,null,null,null,null,null,null,null,null,null,null,null,null,null,null,null,null,null,null,null,null,null,null,null,null,null,null,null,null,null,null,null,null,null,null,null,null,null,null,null,null,null,null,null,null,null,null,null,null,null,null,null,null,null,null,null,null,null,null,null,null,null,null,null,null,null,null,null,null,null,null,null,null,null,null,null,null,null,null,null,null,"配偶者(特別)控除",null,null,null,null,null,null,null,null,null,null,null,null,null,null,null,null,null,null,null,null,"㉑～\n㉒",null,null,null,null,{"$f":"※入力厳禁※計算用!N98","v":0}]
[null,null,null,null,null,null,null,null,null,null,null,null,null,null,null,null,null,null,null,"氏名",null,null,null,{"$f":"入力してください!AJ793","v":0}]
[]
[]
[]
[null,null,null,null,null,null,null,null,null,null,null,null,null,null,null,null,null,null,null,null,null,null,null,null,null,null,null,null,null,null,null,null,null,null,null,null,null,null,null,null,null,null,null,null,null,null,null,null,null,null,null,null,null,null,null,null,null,null,null,null,null,null,null,null,null,null,null,null,null,null,null,null,null,null,null,null,null,null,null,null,null,null,null,null,null,null,null,null,null,null,null,null,null,null,null,null,null,null,null,null,null,null,null,null,"扶養控除",null,null,null,null,null,null,null,null,null,null,null,null,null,null,null,null,null,null,null,null,"㉓",null,null,null,null,{"$f":"※入力厳禁※計算用!Q60","v":0}]
[null,null,null,null,null,null,null,null,null,null,null,null,null,null,null,null,null,null,null,"個人\n番号",null,null,null,null,null,null,null,null,null,null,null,null,null,null,null,null,null,null,null,null,null,null,null,null,null,null,null,null,null,null,null,null,null,null,null,null,null,null,null,null,null,null,null,null,null,null,null,null,null,null,null,null,null,null,null,null,"控除額",null,null,null,null,null,null,null,null,{"$f":"※入力厳禁※計算用!AB59","v":"0"},null,null,null,null,null,null,null,"万円"]
[]
[]
[]
[null,null,null,null,null,null,null,null,null,null,null,null,null,null,null,null,null,null,null,null,null,null,null,null,null,null,null,null,null,null,null,null,null,null,null,null,null,null,null,null,null,null,null,null,null,null,null,null,null,null,null,null,null,null,null,null,null,null,null,null,null,null,null,null,null,null,null,null,null,null,null,null,null,null,null,null,null,null,null,null,null,null,null,null,null,null,null,null,null,null,null,null,null,null,null,null,null,null,null,null,null,null,null,null,"基礎控除",null,null,null,null,null,null,null,null,null,null,null,null,null,null,null,null,null,null,null,null,"㉔",null,null,null,null,{"$f":"_xlfn.IFS(EA147<=24000000,430000,AND(24000000<EA147,EA147<=24500000),290000,AND(24500000<EA147,EA147<=25000000),150000,EA147>25000000,0)","v":430000}]
[]
[]
[null,null,null,null,null,null,null,null,null,null,"16歳未満の扶養親族(控除対象外)",null,null,null,null,null,1,null,null,"フリ\nガナ",null,null,null,{"$f":"入力してください!EE703","v":0},null,null,null,null,null,null,null,null,null,null,null,null,null,null,null,null,null,null,null,null,null,"生年\n月日",null,null,null,null,{"$f":"IF(入力してください!EE708=\"\",\"\",入力してください!EE708)","v":""},null,null,null,null,null,null,null,null,null,null,null,null,null,null,null,null,null,"同居・\n別居の\n区分",null,null,null,null,null,null,null,0,null,null,null,null,null,null,null,null,"続柄",null,null,null,{"$f":"入力してください!EE713","v":0}]
[]
[null,null,null,null,null,null,null,null,null,null,null,null,null,null,null,null,null,null,null,null,null,null,null,null,null,null,null,null,null,null,null,null,null,null,null,null,null,null,null,null,null,null,null,null,null,null,null,null,null,null,null,null,null,null,null,null,null,null,null,null,null,null,null,null,null,null,null,null,null,null,null,null,null,null,null,null,null,null,null,null,null,null,null,null,null,null,null,null,null,null,null,null,null,null,null,null,null,null,null,null,null,null,null,null,"⑬から㉔までの計",null,null,null,null,null,null,null,null,null,null,null,null,null,null,null,null,null,null,null,null,"㉕",null,null,null,null,{"$f":"SUM(EA153,EA158,EA163,EA168,EA173,EA178,EA183,EA188,EA193)","v":430000}]
[]
[null,null,null,null,null,null,null,null,null,null,null,null,null,null,null,null,null,null,null,"氏名",null,null,null,{"$f":"入力してください!EE698","v":0}]
[]
[]
[null,null,null,null,null,null,null,null,null,null,null,null,null,null,null,null,null,null,null,null,null,null,null,null,null,null,null,null,null,null,null,null,null,null,null,null,null,null,null,null,null,null,null,null,null,null,null,null,null,null,null,null,null,null,null,null,null,null,null,null,null,null,null,null,null,null,null,null,null,null,null,null,null,null,null,null,null,null,null,null,null,null,null,null,null,null,null,null,null,null,null,null,null,null,null,null,null,null,null,null,null,null,null,null,"雑損控除",null,null,null,null,null,null,null,null,null,null,null,null,null,null,null,null,null,null,null,null,"㉖",null,null,null,null,{"$f":"MAX(※入力厳禁※計算用!R66,※入力厳禁※計算用!R67)","v":0}]
[]
[null,null,null,null,null,null,null,null,null,null,null,null,null,null,null,null,null,null,null,"個人\n番号"]
[]
[]
[null,null,null,null,null,null,null,null,null,null,null,null,null,null,null,null,null,null,null,null,null,null,null,null,null,null,null,null,null,null,null,null,null,null,null,null,null,null,null,null,null,null,null,null,null,null,null,null,null,null,null,null,null,null,null,null,null,null,null,null,null,null,null,null,null,null,null,null,null,null,null,null,null,null,null,null,null,null,null,null,null,null,null,null,null,null,null,null,null,null,null,null,null,null,null,null,null,null,null,null,null,null,null,null,"医療費控除",null,null,null,null,null,null,null,null,null,null,null,null,null,null,"区分",null,null,null,null,null,"㉗",null,null,null,null,{"$f":"MIN(※入力厳禁※計算用!AD70,2000000)","v":0}]
[]
[]
[null,null,null,null,null,null,null,null,null,null,null,null,null,null,null,null,2,null,null,"フリ\nガナ",null,null,null,{"$f":"入力してください!EE729","v":0},null,null,null,null,null,null,null,null,null,null,null,null,null,null,null,null,null,null,null,null,null,"生年\n月日",null,null,null,null,{"$f":"IF(入力してください!EE734=\"\",\"\",入力してください!EE734)","v":""},null,null,null,null,null,null,null,null,null,null,null,null,null,null,null,null,null,"同居・\n別居の\n区分",null,null,null,null,null,null,null,0,null,null,null,null,null,null,null,null,"続柄",null,null,null,{"$f":"入力してください!EE739","v":0}]
[]
[null,null,null,null,null,null,null,null,null,null,null,null,null,null,null,null,null,null,null,null,null,null,null,null,null,null,null,null,null,null,null,null,null,null,null,null,null,null,null,null,null,null,null,null,null,null,null,null,null,null,null,null,null,null,null,null,null,null,null,null,null,null,null,null,null,null,null,null,null,null,null,null,null,null,null,null,null,null,null,null,null,null,null,null,null,null,null,null,null,null,null,null,null,null,null,null,null,null,null,null,null,null,null,null,"合　　計\n(㉕+㉖+㉗)",null,null,null,null,null,null,null,null,null,null,null,null,null,null,null,null,null,null,null,null,"㉘",null,null,null,null,{"$f":"SUM(EA198,EA203,EA208)","v":430000}]
[]
[null,null,null,null,null,null,null,null,null,null,null,null,null,null,null,null,null,null,null,"氏名",null,null,null,{"$f":"入力してください!EE724","v":0}]
[]
[]
[]
[null,null,null,null,null,null,null,null,null,null,null,null,null,null,null,null,null,null,null,null,null,null,null,null,null,null,null,null,null,null,null,null,null,null,null,null,null,null,null,null,null,null,null,null,null,null,null,null,null,null,null,null,null,null,null,null,null,null,null,null,null,null,null,null,null,null,null,null,null,null,null,null,null,null,null,null,null,null,null,null,null,null,null,null,null,null,null,null,null,null,null,null,null,null,null,null,null,null,"地方税法附則第4条の4の規定の適用を選択する場合には、「医療費控除」欄の「区分」の□に「1」と記入してください。"]
[null,null,null,null,null,null,null,null,null,null,null,null,null,null,null,null,null,null,null,"個人\n番号"]
[]
[]
[]
[]
[null,null,null,null,null,null,null,null,null,null,null,null,null,null,null,null,null,null,null,null,null,null,null,null,null,null,null,null,null,null,null,null,null,null,null,null,null,null,null,null,null,null,null,null,null,null,null,null,null,null,null,null,null,null,null,null,null,null,null,null,null,null,null,null,null,null,null,null,null,null,null,null,null,null,null,null,null,null,null,null,null,null,null,null,null,null,null,null,null,null,null,null,null,null,null,null,null,null,{"$f":"\"５　給与・公的年金等に係る所得以外(令和\" & AE1 & \"年4月1日において65歳未満の方は給与所得以外)の町民税・県民税の納税方法\"","v":"５　給与・公的年金等に係る所得以外(令和7年4月1日において65歳未満の方は給与所得以外)の町民税・県民税の納税方法"}]
[null,null,null,null,null,null,null,null,null,null,null,null,null,null,null,null,3,null,null,"フリ\nガナ",null,null,null,{"$f":"入力してください!EE755","v":0},null,null,null,null,null,null,null,null,null,null,null,null,null,null,null,null,null,null,null,null,null,"生年\n月日",null,null,null,null,{"$f":"IF(入力してください!EE760=\"\",\"\",入力してください!EE760)","v":""},null,null,null,null,null,null,null,null,null,null,null,null,null,null,null,null,null,"同居・\n別居の\n区分",null,null,null,null,null,null,null,0,null,null,null,null,null,null,null,null,"続柄",null,null,null,{"$f":"入力してください!EE765","v":0}]
[]
[]
[]
[null,null,null,null,null,null,null,null,null,null,null,null,null,null,null,null,null,null,null,"氏名",null,null,null,{"$f":"入力してください!EE750","v":0}]
[null,null,null,null,null,null,null,null,null,null,null,null,null,null,null,null,null,null,null,null,null,null,null,null,null,null,null,null,null,null,null,null,null,null,null,null,null,null,null,null,null,null,null,null,null,null,null,null,null,null,null,null,null,null,null,null,null,null,null,null,null,null,null,null,null,null,null,null,null,null,null,null,null,null,null,null,null,null,null,null,null,null,null,null,null,null,null,null,null,null,null,null,null,null,null,null,null,null,"　　　給与から差引き(特別徴収)"]
[]
[]
[null,null,null,null,null,null,null,null,null,null,null,null,null,null,null,null,null,null,null,null,null,null,null,null,null,null,null,null,null,null,null,null,null,null,null,null,null,null,null,null,null,null,null,null,null,null,null,null,null,null,null,null,null,null,null,null,null,null,null,null,null,null,null,null,null,null,null,null,null,null,null,null,null,null,null,null,null,null,null,null,null,null,null,null,null,null,null,null,null,null,null,null,null,null,null,null,null,null,"　　　自分で納付(普通徴収)"]
[null,null,null,null,null,null,null,null,null,null,null,null,null,null,null,null,null,null,null,"個人\n番号"]
[]
[]
[null,null,null,null,null,null,null,null,null,null,null,null,null,null,null,null,null,null,null,null,null,null,null,null,null,null,null,null,null,null,null,null,null,null,null,null,null,null,null,null,null,null,null,null,null,null,null,null,null,null,null,null,null,null,null,null,null,null,null,null,null,null,null,null,null,null,null,null,null,null,null,null,null,null,null,null,null,null,null,null,null,null,null,null,null,null,null,null,null,null,null,null,null,null,null,null,null,null,"「個人番号」欄には、個人番号(行政手続における特定の個人を識別するための番号の利用等に関する法律第2条第5項に規定する個人番号をいう。)を記載してください。"]
[]
[]
[null,null,null,null,null,null,null,null,null,null,null,null,null,null,null,null,null,null,null,null,null,null,null,null,null,null,null,null,null,null,null,null,null,null,null,null,null,null,null,null,null,null,null,null,null,null,null,null,null,null,null,null,null,null,null,null,null,null,null,null,null,null,null,null,null,null,null,null,"扶養控除\n額の合計",null,null,null,null,null,null,null,null,null,null,null,{"$f":"CH144+CH159+CH174+CH189","v":0},null,null,null,null,null,null,null,null,null,null,null,null,"万円"]
[null,null,null,null,null,null,null,null,null,null,"別居の扶養親族等がいる場合には、裏面「12」に氏名、個人番号及び住所を記入してください。"]
[]
[]
[null,null,null,null,null,null,null,null,null,null,null,null,null,null,null,null,null,null,null,null,null,null,null,null,null,null,null,null,null,null,null,null,null,null,null,null,null,null,null,null,null,null,null,null,null,null,null,null,null,null,null,null,null,null,null,null,null,null,null,null,null,null,null,null,null,null,null,null,null,null,null,null,null,null,null,null,null,null,null,null,null,null,null,null,null,null,null,null,null,null,null,null,null,null,null,null,null,null,"●備考"]
[]
[null,null,null,null,null,null,null,null,null,null,"㉖\n雑損控除",null,null,null,null,null,null,null,null,"損害の原因",null,null,null,null,null,null,null,null,null,null,null,null,null,null,null,null,null,null,null,null,null,null,null,"損害年月日",null,null,null,null,null,null,null,null,null,null,null,null,null,null,null,null,null,null,null,null,null,"損害を受けた資産の種類"]
[null,null,null,null,null,null,null,null,null,null,null,null,null,null,null,null,null,null,null,null,null,null,null,null,null,null,null,null,null,null,null,null,null,null,null,null,null,null,null,null,null,null,null,null,null,null,null,null,null,null,null,null,null,null,null,null,null,null,null,null,null,null,null,null,null,null,null,null,null,null,null,null,null,null,null,null,null,null,null,null,null,null,null,null,null,null,null,null,null,null,null,null,null,null,null,null,null,null,{"$f":"_xlfn.IFS(入力してください!BJ105=TRUE,\"収入なし\",入力してください!BJ111=TRUE,\"遺族年金のみ\",入力してください!BJ116=TRUE,\"障害年金のみ\",AND(入力してください!BJ105,入力してください!BJ111,入力してください!BJ116)=FALSE,\"\")","v":""}]
[]
[null,null,null,null,null,null,null,null,null,null,null,null,null,null,null,null,null,null,null,{"$f":"入力してください!AV828","v":0},null,null,null,null,null,null,null,null,null,null,null,null,null,null,null,null,null,null,null,null,null,null,null,{"$f":"IF(入力してください!AV833=\"\",\"\",入力してください!AV833)","v":""},null,null,null,null,null,null,null,null,null,null,null,null,null,null,null,null,null,null,null,null,null,{"$f":"入力してください!AV838","v":0}]
[]
[]
[null,null,null,null,null,null,null,null,null,null,null,null,null,null,null,null,null,null,null,"損害金額",null,null,null,null,null,null,null,null,null,null,null,null,null,null,null,null,null,null,null,null,null,null,null,"保険金などで補填される金額",null,null,null,null,null,null,null,null,null,null,null,null,null,null,null,null,null,null,null,null,null,"差引損失額のうち災害関連支出の金額"]
[]
[]
[null,null,null,null,null,null,null,null,null,null,null,null,null,null,null,null,null,null,null,{"$f":"入力してください!AV843","v":0},null,null,null,null,null,null,null,null,null,null,null,null,null,null,null,null,null,null,null,null,null,"円",null,{"$f":"入力してください!AV848","v":0},null,null,null,null,null,null,null,null,null,null,null,null,null,null,null,null,null,null,null,"円",null,{"$f":"入力してください!AV853","v":0},null,null,null,null,null,null,null,null,null,null,null,null,null,null,null,null,null,null,null,null,null,null,null,null,null,null,null,null,"円"]
[]
[]
[null,null,null,null,null,null,null,null,null,null,"㉗\n医療費控除",null,null,null,null,null,null,null,null,"支払った医療費等",null,null,null,null,null,null,null,null,null,null,null,null,null,null,null,null,null,null,null,null,null,null,null,null,null,null,null,null,null,null,null,null,null,null,null,null,"保険金などで補填される金額"]
[]
[]
[null,null,null,null,null,null,null,null,null,null,null,null,null,null,null,null,null,null,null,null,null,null,null,null,null,null,null,null,null,null,null,null,null,null,null,null,null,null,null,null,null,null,null,null,null,null,null,null,null,null,null,null,null,null,"円",null,null,null,null,null,null,null,null,null,null,null,null,null,null,null,null,null,null,null,null,null,null,null,null,null,null,null,null,null,null,null,null,null,null,null,null,null,null,null,"円"]
[]
[]
[]
[null,null,null,null,null,null,null,null,null,null,"裏面にも記載する欄がありますから注意してください。"]
[]
[]
[]
[]
[]
[]
[]
[]
[]
[]
[]
[]
[]
[]
[]
[]
[]
[]
[]
[]
[]
[]
[]
[]
[]
[]
[]
[]
[]
[]
[]
[]
[]
[]
[]
[]
[]
[]
[]
[]
[null,null,null,null,null,null,null,null,null,null,null,null,null,null,null,null,null,null,null,null,null,null,null,null,null,null,null,null,null,null,null,null,null,null,null,null,null,null,null,null,null,null,null,null,null,null,null,null,null,null,null,null,null,null,null,null,null,null,null,null,null,null,null,null,null,null,null,null,null,null,null,null,null,null,null,null,null,null,null,null,null,null,null,null,null,null,null,null,null,null,null,null,null,null,null,null,null,null,null,null,null,null,null,null,null,null,null,null,null,null,null,null,null,null,null,null,null,null,null,null,null,null,null,null,null,null,null,null,null,null,null,null,null,null,null,null,null,null,null,null,null,null,null,null,null,null,null,null,null,null,null,null,null,null,null,null,null,null,null,null,null,null,null,null,null,null,null,null,null,null,null,null,null,null,null,null,null,null,null,null,null,null,null,null,null,null,null,null,null,null,null,null,null,null,null,null,null,null,null,null,null,null,null,null,null,null,null,null,null,null,null,null,null,null,2]

{"sheet":"裏面（印刷画面）","index":2,"n_rows":88,"n_cols":34,"rows_kept":88,"cut":false,"hidden":false,"merged":[[70,1,70,11],[70,12,71,15],[70,16,71,16],[71,1,71,11],[72,1,74,11],[72,12,74,15],[72,16,74,16],[75,1,76,6],[75,7,75,11],[75,12,75,15],[76,7,76,11],[76,12,76,15],[81,1,82,16],[81,18,81,32],[75,18,76,23],[75,24,75,28],[75,29,75,32],[76,24,76,28],[76,29,76,32],[87,1,87,17],[83,19,84,23],[83,24,84,24],[83,25,84,28],[83,29,84,32],[84,2,84,7],[85,1,85,2],[85,3,85,13],[83,2,83,7],[83,8,84,9],[83,10,84,11],[83,12,84,12],[83,13,84,16],[83,17,84,18],[77,1,77,16],[78,1,78,16],[79,1,79,16],[72,18,74,28],[72,29,74,32],[72,33,74,33],[77,18,77,33],[78,18,78,33],[79,18,79,33],[80,18,80,32],[70,18,70,28],[70,29,71,32],[70,33,71,33],[71,18,71,28],[65,19,67,22],[65,23,67,33],[61,1,64,1],[61,2,62,2],[61,3,62,8],[61,9,64,9],[61,10,64,18],[61,19,64,22],[67,3,67,8],[68,18,69,31],[55,3,55,13],[55,14,55,16],[55,17,55,18],[55,19,55,24],[56,1,56,15],[57,1,60,1],[57,2,58,2],[57,3,58,8],[57,9,60,9],[57,10,60,18],[57,19,60,22],[57,23,60,33],[59,2,60,2],[59,3,60,8],[68,1,69,15],[61,23,64,33],[63,2,64,2],[63,3,64,8],[65,1,67,1],[65,2,66,2],[65,3,66,8],[65,9,67,9],[65,10,67,18],[52,28,54,33],[53,2,54,2],[53,3,54,13],[53,14,54,15],[53,16,54,17],[53,18,54,24],[49,19,52,23],[49,24,52,24],[50,29,51,30],[50,31,51,31],[50,32,51,32],[50,33,51,33],[48,26,51,28],[48,29,49,33],[49,1,54,1],[49,2,50,2],[49,3,50,8],[49,9,52,9],[49,10,52,11],[49,12,52,12],[49,13,52,16],[49,17,52,18],[44,2,45,2],[44,3,45,8],[51,2,52,2],[51,3,52,8],[45,28,47,30],[45,31,47,32],[45,33,47,33],[46,2,48,2],[46,3,48,13],[46,14,48,15],[46,16,48,17],[47,18,48,24],[42,17,45,18],[42,19,45,23],[42,24,45,24],[42,26,47,27],[42,28,44,29],[42,30,44,33],[40,16,41,17],[40,18,41,24],[42,1,48,1],[42,2,43,2],[42,3,43,8],[42,9,45,9],[42,10,45,11],[42,12,45,12],[42,13,45,16],[36,1,36,7],[36,26,36,30],[37,1,41,1],[37,3,37,8],[37,9,39,9],[37,10,39,11],[37,12,39,12],[37,31,37,32],[37,33,38,33],[38,2,39,2],[38,3,39,8],[38,29,38,32],[39,26,41,29],[39,30,41,32],[39,33,41,33],[40,2,41,2],[40,3,41,13],[37,13,39,16],[37,17,39,18],[37,19,39,23],[37,24,39,24],[37,26,38,28],[37,29,37,30],[40,14,41,15],[34,1,34,5],[34,6,34,10],[34,12,34,14],[34,16,34,18],[34,20,34,26],[34,29,34,32],[35,1,35,19],[35,20,35,27],[35,28,35,32],[32,1,33,2],[32,3,32,5],[32,6,32,10],[32,12,32,14],[32,16,32,18],[32,20,33,26],[32,27,33,27],[32,29,32,32],[33,3,33,5],[33,6,33,10],[33,12,33,14],[33,16,33,18],[33,29,33,32],[30,1,30,15],[31,1,31,5],[31,6,31,11],[31,12,31,15],[31,16,31,19],[31,20,31,27],[28,19,28,26],[28,28,28,32],[29,1,29,3],[29,4,29,10],[29,12,29,15],[29,16,29,18],[29,19,29,26],[29,28,29,32],[31,28,31,33],[26,1,27,3],[26,4,27,10],[28,1,28,3],[28,4,28,10],[28,12,28,15],[28,16,28,18],[24,28,24,33],[25,12,27,15],[25,16,27,18],[25,19,27,26],[25,27,27,27],[25,28,27,32],[25,33,27,33],[24,1,25,5],[24,6,25,9],[24,10,25,10],[24,12,24,15],[24,16,24,18],[24,19,24,27],[21,12,23,24],[21,25,22,31],[21,32,22,32],[21,33,22,33],[22,1,23,5],[22,6,23,9],[22,10,23,10],[23,25,23,32],[19,29,20,30],[19,31,20,31],[19,32,20,32],[19,33,20,33],[20,1,21,1],[20,2,21,3],[20,4,21,4],[20,5,21,6],[20,7,21,9],[20,10,21,10],[16,4,17,4],[16,5,17,6],[16,7,17,9],[16,10,17,10],[17,33,18,33],[18,1,19,1],[18,2,19,3],[18,4,19,4],[18,5,19,6],[18,7,19,9],[18,10,19,10],[19,12,20,15],[19,16,20,21],[19,22,20,28],[17,12,18,15],[17,16,18,21],[17,22,18,28],[17,29,18,30],[17,31,18,31],[17,32,18,32],[10,10,11,10],[11,12,12,15],[13,33,14,33],[14,1,15,1],[14,2,15,3],[14,4,15,4],[14,5,15,6],[14,7,15,9],[14,10,15,10],[15,12,16,15],[15,16,16,21],[15,22,16,28],[13,12,14,15],[13,16,14,21],[13,22,14,28],[13,29,14,30],[13,31,14,31],[13,32,14,32],[15,29,16,30],[15,31,16,31],[15,32,16,32],[15,33,16,33],[16,1,17,1],[16,2,17,3],[7,32,8,32],[7,33,8,33],[8,1,9,1],[8,2,9,3],[8,4,9,4],[8,5,9,6],[8,7,9,9],[8,10,9,10],[9,12,10,30],[10,1,11,1],[11,16,12,21],[11,22,12,28],[11,29,12,31],[11,32,12,33],[12,1,13,1],[12,2,13,3],[12,4,13,4],[12,5,13,6],[12,7,13,9],[12,10,13,10],[10,2,11,3],[10,4,11,4],[10,5,11,6],[10,7,11,9],[6,29,6,30],[7,12,8,15],[7,16,8,21],[7,22,8,27],[7,28,8,28],[7,29,8,30],[5,29,5,30],[6,1,7,1],[6,2,7,3],[6,4,7,4],[6,5,7,6],[6,7,7,9],[6,10,7,10],[6,12,6,15],[6,16,6,21],[6,22,6,27],[5,2,5,3],[5,5,5,6],[5,7,5,9],[5,12,5,15],[5,16,5,21],[5,22,5,27],[4,2,4,3],[4,5,4,6],[4,7,4,9],[4,12,4,15],[4,16,4,21],[4,22,4,27],[4,29,4,30],[3,2,3,3],[3,5,3,6],[3,7,3,9],[3,12,3,15],[3,16,3,21],[3,22,3,27],[1,32,1,33],[2,2,2,3],[2,5,2,6],[2,7,2,9],[2,12,2,15],[2,16,2,21],[2,22,2,27],[2,29,2,30],[3,29,3,30],[0,1,0,9],[0,12,0,19],[1,2,1,4],[1,5,1,6],[1,7,1,10],[1,12,1,15],[1,16,1,21],[1,22,1,28],[1,29,1,31]]}
[" ","6給与所得の内訳\n(日給などの給与所得のある人で、源泉徴収票のない人は記入してください。)"," "," "," "," "," "," "," "," "," "," ","7事業・不動産所得に関する事項"," ",null," "," "," "," ",null," "," "," "," "," "," "," "," "," "," ",null,null,"裏"]
[" ","月","日給"," "," ","勤務\n日数"," ","月収"," "," "," ",null,"所得の種類"," ",null," ","所得の生ずる場所",null,null,null,null,null,"収入金額",null,null,null,null,null,null,"必要経費",null,null,"青色申告特別控除額"]
[" ","1",{"$f":"源泉なし!H18","v":0},null,"円",{"$f":"源泉なし!X18","v":0},null,null,null,null,"円",null,null,null,null,null,null,null,null,null,null,null,null,null,null,null,null,null,"円",null,null,"円",null,"円"]
[" ",2,{"$f":"源泉なし!H23","v":0},null," ",{"$f":"源泉なし!X23","v":0},null,{"$f":"C4*F4","v":0},null,null," ",null,null," ",null," "]
[" ","3",{"$f":"源泉なし!H28","v":0},null," ",{"$f":"源泉なし!X28","v":0},null,{"$f":"C5*F5","v":0},null,null," ",null,null," ",null," "]
[" ","4",{"$f":"源泉なし!H33","v":0},null," ",{"$f":"源泉なし!X33","v":0},null,{"$f":"C6*F6","v":0},null,null," ",null,null," ",null," "]
[" ","5",{"$f":"源泉なし!H38","v":0},null," ",{"$f":"源泉なし!X38","v":0},null,{"$f":"C7*F7","v":0},null,null," ",null,null," ",null," "]
[" "," ",null,null,null,null,null,null,null,null,null,null,null," ",null," "]
[" ","6",{"$f":"源泉なし!H43","v":0},null," ",{"$f":"源泉なし!X43","v":0},null,{"$f":"C9*F9","v":0},null,null," ",null," "," ",null," "]
[" "," ",null,null,null,null,null,null,null,null,null,null,"8配当所得に関する事項"," ",null," "," "," "," "," "," "," "," "," "," "," "," "," "," "," "," ",null," "]
[" ","7",{"$f":"源泉なし!H48","v":0},null," ",{"$f":"源泉なし!X48","v":0},null,{"$f":"C11*F11","v":0},null,null," ",null," "," ",null," "," "," "," "," "," "," "," "," "," "," "," "," "," "," "," ",null," "]
[" "," ",null,null,null,null,null,null,null,null,null,null,"配当所得の種類"," ",null," ","所得の生ずる場所",null,null,null,null,null,"支払確定年月",null,null,null,null,null,null,"収入金額 ",null,null,"必要経費"]
[" ","8",{"$f":"源泉なし!H53","v":0},null," ",{"$f":"源泉なし!X53","v":0},null,{"$f":"C13*F13","v":0},null,null," ",null," "," ",null," "]
[" "," ",null,null,null,null,null,null,null,null,null,null,null,null,null,null,null,null,null,null,null,null,null,null,null,null,null,null,null,null,null,"円",null,"円"]
[" ","9",{"$f":"源泉なし!H58","v":0},null," ",{"$f":"源泉なし!X58","v":0},null,{"$f":"C15*F15","v":0},null,null," "]
[" "," ",null,null,null,null,null,null,null,null,null,null,null," ",null," "]
[" ",10,{"$f":"源泉なし!H63","v":0},null," ",{"$f":"源泉なし!X63","v":0},null,{"$f":"C17*F17","v":0},null,null," ",null," "," ",null," "]
[" "," ",null,null,null,null,null,null,null,null,null,null,null," ",null," "]
[" ","11",{"$f":"源泉なし!H68","v":0},null," ",{"$f":"源泉なし!X68","v":0},null,{"$f":"C19*F19","v":0},null,null," ",null," "," ",null," "]
[" "," ",null,null,null,null,null,null,null,null,null,null,null," ",null," "]
[" ","12",{"$f":"源泉なし!H73","v":0},null," ",{"$f":"源泉なし!X73","v":0},null,{"$f":"C21*F21","v":0},null,null," ",null," "," ",null," "]
[" "," ",null,null,null,null,null,null,null,null,null,null,"９雑所得(公的年金等以外)に関する事項",null,null,null,null,null,null,null,null,null,null,null,null,"国外株式等に係る外国所得税額"," "," "," "," "," "]
[" ","賞与等"," "," "," "," ",{"$f":"源泉なし!V78","v":0},null,null,null,"円",null,null,null,null,null,null,null,null,null,null,null,null,null,null," "," "," "," "," "," ",null," "]
[" "," "," "," "," "," ",null,null,null,null,null,null,null,null,null,null,null,null,null,null,null,null,null,null,null," "," "," "," "," "," ",null," "]
[" ","合計"," "," "," "," ",{"$f":"H3+H4+H5+H6+H7+H9+H11+H13+H15+H17+H19+H21+G23","v":0},null,null,null,null,null,"種目"," ",null," ","所得の生ずる場所"," "," ","収入金額"," "," "," "," "," "," "," "," ","必要経費"]
[" "," "," "," "," "," ",null,null,null,null,null,null,null,null,null,null,null,null,null,null,null,null,null,null,null,null,null,"円",null,null,null,null,null,"円"]
[" ","勤務先所在地"," "," ",{"$f":"源泉なし!V90","v":0}]
[" "," "," "," "]
[" ","勤務先名"," "," ",{"$f":"源泉なし!V95","v":0},null,null,null,null,null,null,null,null," ",null," ",null," "," ",null,null,null,null,null,null,null,null," ",null," "," ",null," "]
[" ","電話番号"," "," ",{"$f":"源泉なし!V100","v":0},null,null,null,null,null,null,null,null," ",null," ",null," "," ",null,null,null,null,null,null,null,null," "]
[" ","10総合譲渡・一時所得の所得金額に関する事項"," "," "," "," "," "," "," "," "," "," "," ",null,null,null," "," "," "," "," "," "," "," "," "," "," "," "," "," "," "]
[" "," "," "," "," "," ","収入金額"," "," "," "," "," ","必要経費"," ",null," ","差引金額\n(収入金額－必要経費)"," "," "," ","特別控除額"," "," "," "," "," "," "," ","所得金額(差引金額－特別控除額）"]
[" ","総合\n譲渡"," ","短期"," "," ",null,null,null,null,null,"円",null,null,null,"円",{"$f":"IF(G33=\"\",\"\",G33-M33)","v":""},null,null,"円",null,null,null,null,null,null,null,"円","イ",null,null,null,null,"円"]
[" "," "," ","長期"," "," ",null,null,null,null,null," ",null,null,null,null,{"$f":"IF(G34=\"\",\"\",G34-M34)","v":""},null,null," ",null,null,null,null,null,null,null,null,"ロ"]
[" ","一時"," "," "," "," ",null,null,null,null,null," ",null,null,null,null,{"$f":"IF(G35=\"\",\"\",G35-M35)","v":""},null,null," ",null,null,null,null,null,null,null," ","ハ",{"$f":"IF(G35=\"\",\"\",Q35-U35)","v":""}]
[" ","右上のイの金額を表面のコに、ロの全額を表面のサに、ハの金額を表面のシに記入してください。\n右のニの金額を表面の⑪の所得金額欄へ記入してください。"," "," "," "," "," "," "," "," "," "," "," "," ",null," "," "," "," "," ","ニ 合計イ+〔(ロ+ハ)×1/2〕"," "," "," "," "," "," "," ",{"$f":"IF(OR(AND(AD33=\"\",AD34=\"\",AD35=\"\"),AD33<0,AD34<0,AD35<0)=TRUE,\"\",IF(AD35=\"\",INT(AD33+(AD34*0.5)),INT(AD33+((AD34+AD35)*0.5))))","v":""}]
[null,"11事業専従者に関する事項"," "," "," "," "," "," "," "," "," "," "," "," ",null," "," "," "," "," "," "," "," "," "," "," ","13事業税に関する事項"," "," "," "," "]
[null,1,"フリ\nガナ",null,null,null,null,null,null,"続柄",null,null,"生年\n月日",null,null,null,null,"専従者給与\n（控除）額",null,null,null,null,null,null,"円"," ","非課税所\n得など"," "," ","所得金額",null,null,null,"円"]
[null,null,"氏　名",null,null,null,null,null,null,null,null,null,null,null,null,null,null,null,null,null,null,null,null,null,null," "," "," "," "]
[null,null,null,null,null,null,null,null,null,null,null,null,null,null,null,null,null,null,null,null,null,null,null,null,null," ","損益通算の\n特例適用前\nの不動産所得",null,null,null,null,null,null,"円"]
[null,null,"個人番号",null,null,null,null,null,null,null,null,null,null,null,"従事月数",null,null,null," ",null,null,null,null,null,null," "]
[null,null,null,null,null,null,null,null,null,null,null,null,null,null,null,null,null,null,null,null,null,null,null,null,null," "]
[null,2,"フリ\nガナ",null,null,null,null,null,null,"続柄",null,null,"生年\n月日",null,null,null,null,"専従者給与\n（控除）額",null,null,null,null,null,null,null," ","事業用\n資産の\n譲渡損\n失など"," ","資産の\n種類　　　　　　　　　　　　　　　　"]
[null,null,null,null,null,null,null,null,null,null,null,null,null,null,null,null,null,null,null,null,null,null,null,null,null," "," "," "]
[null,null,"氏　名",null,null,null,null,null,null,null,null,null,null,null,null,null,null,null,null,null,null,null,null,null,null," "," "," "]
[null,null,null,null,null,null,null,null,null,null,null,null,null,null,null,null,null,null,null,null,null,null,null,null,null," "," "," ","損失額、被災損失額（白)",null,null,null,null,"円"]
[null,null,"個人\n番号",null,null,null,null,null,null,null,null,null,null,null,"従事月数",null,null,null," "," "," "," "," "," "," "," "," "," "]
[null,null,null,null,null,null,null,null,null,null,null,null,null,null,null,null,null,null," ",null,null,null,null,null,null," "," "," "]
[null,null,null,null,null,null,null,null,null,null,null,null,null,null,null,null,null,null,null,null,null,null,null,null,null," ","前年中の\n開廃業"," "," ","選択してください"]
[null,3,"フリ\nガナ",null,null,null,null,null,null,"続柄",null,null,"生年\n月日",null,null,null,null," 専従者給与\n（控除）額",null,null,null,null,null,null,null," "," "," "," "]
[null,null,null,null,null,null,null,null,null,null,null,null,null,null,null,null,null,null,null,null,null,null,null,null,null," "," "," "," ",null,null,"月",null,"日"]
[null,null,"氏　名",null,null,null,null,null,null,null,null,null,null,null,null,null,null,null,null,null,null,null,null,null,null," "," "," "," "]
[null,null,null,null,null,null,null,null,null,null,null,null,null,null,null,null,null,null,null,null,null,null,null,null,null," ",null,null,"　他都道府県の事務所等"]
[null,null,"個人\n番号",null,null,null,null,null,null,null,null,null,null,null," 従事月数",null,null,null," ",null,null,null,null,null,null," "]
[null,null,null,null,null,null,null,null,null,null,null,null,null,null,null,null,null,null,null,null,null,null,null,null,null," "]
[null," "," ","所得税における青色申告の承認の有無",null,null,null,null,null,null,null,null,null,null,"選択してください",null,null,"合計額",null,null,null,null,null,null,null," "," "," "," "," "," "]
[" ","12別居の扶養親族等に関する事項",null,null,null,null,null,null,null,null,null,null,null,null,null,null," "," "," "," "," "," "," "," "," "," "," "," "," "," "," "]
[" ",1,"フリガナ",null,null,null,null,null,null,"個人\n番号",null,null,null,null,null,null,null,null,null,"住  所"]
[" "]
[" ",null,"氏　名"]
[" "]
[" ",2,"フリガナ\n\n\n\n\n\n\n\n",null,null,null,null,null,null,"個人\n番号",null,null,null,null,null,null,null,null,null,"住  所"]
[" "]
[" ",null,"氏　名"]
[" "]
[" ",3,"フリガナ",null,null,null,null,null,null,"個人\n番号",null,null,null,null,null,null,null,null,null,"住  所"]
[" "]
[" ",null,"氏　名"]
[" ","14寄附金に関する事項"]
[]
[null,"都道府県、市区町村分",null,null,null,null,null,null,null,null,null,null,null,null,null,null,"円"]
[null,"(特例控除対象)"]
[null,"住所地の共同募金会、日赤支部分・都道\n府県、市区町村分(特例控除対象以外)",null,null,null,null,null,null,null,null,null,null,null,null,null,null,null," "]
[" ",null,null,null,null,null,null,null,null,null,null,null,null,null,null,null,null," "]
[" ",null,null,null,null,null,null,null,null,null,null,null,null,null,null,null,null," "]
[" ","条例指定分",null,null,null,null,null,"都道府県",null,null,null,null," ",null,null,null,null," "]
[" ",null,null,null,null,null,null,"市区町村",null,null,null,null," ",null,null,null,null," "]
[" ","　支出した寄附金に応じて、各欄にそれぞれ寄附した金額を記入してください。"]
[null,"「条例指定分」の「都道府県」、「市区町村」の各欄には、住所地の都道府県、"]
[null,"市区町村の条例で指定された寄附金を支出した場合にそれぞれ記入してください。"]
[]
[null,"15所得金額調整控除に関する事項"]
[]
[null,"フリ\nガナ",null,null,null,null,null,null,"続柄",null,null,null,"生年\n月日",null,null,null,null,"特別障害者に\n該当する場合",null,null,null,null,null,null,"級\n度","別居の場合\nの住所"]
[null,"氏名"]
[null,"個人番号"]
[]
[null,"添付書類は、この面の記入事項のない箇所に貼ってください。"," "," "," "," "," "," "," "," "," "," "," "," ",null," "," "," "]

{"sheet":"源泉あり","index":3,"n_rows":73,"n_cols":142,"rows_kept":73,"cut":false,"hidden":false,"merged":[[72,2,77,28],[24,2,28,29],[24,30,28,66],[29,2,41,29],[29,30,41,66],[47,2,51,29],[47,30,51,66],[42,2,46,29],[42,30,46,66],[26,141,30,145],[21,114,25,140],[21,141,25,145],[50,84,54,113],[50,114,54,140],[50,141,54,145],[26,114,30,140],[31,114,35,140],[36,114,40,140],[41,114,45,140],[31,141,35,145],[36,141,40,145],[41,141,45,145],[47,67,51,72],[21,84,25,113],[26,84,30,113],[36,84,40,113],[41,84,45,113],[31,84,35,113],[42,67,46,72],[29,67,41,72],[2,2,8,129],[19,2,23,29],[19,30,23,66],[19,67,23,72],[24,67,28,72],[9,2,14,129]]}
[]
[]
[null,null,"源泉徴収票をご覧いただき、該当項目に記載されている内容を入力してください。"]
[]
[]
[]
[]
[]
[]
[null,null,"※源泉徴収票が複数ある場合は合計の金額を入力してください。"]
[]
[]
[]
[]
[]
[]
[]
[]
[]
[null,null,"支払金額",null,null,null,null,null,null,null,null,null,null,null,null,null,null,null,null,null,null,null,null,null,null,null,null,null,null,null,null,null,null,null,null,null,null,null,null,null,null,null,null,null,null,null,null,null,null,null,null,null,null,null,null,null,null,null,null,null,null,null,null,null,null,null,null,"円"]
[]
[null,null,null,null,null,null,null,null,null,null,null,null,null,null,null,null,null,null,null,null,null,null,null,null,null,null,null,null,null,null,null,null,null,null,null,null,null,null,null,null,null,null,null,null,null,null,null,null,null,null,null,null,null,null,null,null,null,null,null,null,null,null,null,null,null,null,null,null,null,null,null,null,null,null,null,null,null,null,null,null,null,null,null,null,"新生命保険料の金額",null,null,null,null,null,null,null,null,null,null,null,null,null,null,null,null,null,null,null,null,null,null,null,null,null,null,null,null,null,null,null,null,null,null,null,null,null,null,null,null,null,null,null,null,null,null,null,null,null,null,null,null,null,null,null,null,"円"]
[]
[]
[null,null,"社会保険料等の金額",null,null,null,null,null,null,null,null,null,null,null,null,null,null,null,null,null,null,null,null,null,null,null,null,null,null,null,null,null,null,null,null,null,null,null,null,null,null,null,null,null,null,null,null,null,null,null,null,null,null,null,null,null,null,null,null,null,null,null,null,null,null,null,null,"円"]
[]
[null,null,null,null,null,null,null,null,null,null,null,null,null,null,null,null,null,null,null,null,null,null,null,null,null,null,null,null,null,null,null,null,null,null,null,null,null,null,null,null,null,null,null,null,null,null,null,null,null,null,null,null,null,null,null,null,null,null,null,null,null,null,null,null,null,null,null,null,null,null,null,null,null,null,null,null,null,null,null,null,null,null,null,null,"旧生命保険料の金額",null,null,null,null,null,null,null,null,null,null,null,null,null,null,null,null,null,null,null,null,null,null,null,null,null,null,null,null,null,null,null,null,null,null,null,null,null,null,null,null,null,null,null,null,null,null,null,null,null,null,null,null,null,null,null,null,"円"]
[]
[]
[null,null,"小規模企業共済等掛金の金額（「社会保険料等の金額」欄の内書きの金額）",null,null,null,null,null,null,null,null,null,null,null,null,null,null,null,null,null,null,null,null,null,null,null,null,null,null,null,null,null,null,null,null,null,null,null,null,null,null,null,null,null,null,null,null,null,null,null,null,null,null,null,null,null,null,null,null,null,null,null,null,null,null,null,null,"円"]
[]
[null,null,null,null,null,null,null,null,null,null,null,null,null,null,null,null,null,null,null,null,null,null,null,null,null,null,null,null,null,null,null,null,null,null,null,null,null,null,null,null,null,null,null,null,null,null,null,null,null,null,null,null,null,null,null,null,null,null,null,null,null,null,null,null,null,null,null,null,null,null,null,null,null,null,null,null,null,null,null,null,null,null,null,null,"介護医療保険料の金額",null,null,null,null,null,null,null,null,null,null,null,null,null,null,null,null,null,null,null,null,null,null,null,null,null,null,null,null,null,null,null,null,null,null,null,null,null,null,null,null,null,null,null,null,null,null,null,null,null,null,null,null,null,null,null,null,"円"]
[]
[]
[]
[]
[null,null,null,null,null,null,null,null,null,null,null,null,null,null,null,null,null,null,null,null,null,null,null,null,null,null,null,null,null,null,null,null,null,null,null,null,null,null,null,null,null,null,null,null,null,null,null,null,null,null,null,null,null,null,null,null,null,null,null,null,null,null,null,null,null,null,null,null,null,null,null,null,null,null,null,null,null,null,null,null,null,null,null,null,"新個人年金保険料の金額",null,null,null,null,null,null,null,null,null,null,null,null,null,null,null,null,null,null,null,null,null,null,null,null,null,null,null,null,null,null,null,null,null,null,null,null,null,null,null,null,null,null,null,null,null,null,null,null,null,null,null,null,null,null,null,null,"円"]
[]
[]
[]
[]
[null,null,null,null,null,null,null,null,null,null,null,null,null,null,null,null,null,null,null,null,null,null,null,null,null,null,null,null,null,null,null,null,null,null,null,null,null,null,null,null,null,null,null,null,null,null,null,null,null,null,null,null,null,null,null,null,null,null,null,null,null,null,null,null,null,null,null,null,null,null,null,null,null,null,null,null,null,null,null,null,null,null,null,null,"旧個人年金保険料の金額",null,null,null,null,null,null,null,null,null,null,null,null,null,null,null,null,null,null,null,null,null,null,null,null,null,null,null,null,null,null,null,null,null,null,null,null,null,null,null,null,null,null,null,null,null,null,null,null,null,null,null,null,null,null,null,null,"円"]
[null,null,"生命保険料の控除額",null,null,null,null,null,null,null,null,null,null,null,null,null,null,null,null,null,null,null,null,null,null,null,null,null,null,null,null,null,null,null,null,null,null,null,null,null,null,null,null,null,null,null,null,null,null,null,null,null,null,null,null,null,null,null,null,null,null,null,null,null,null,null,null,"円"]
[]
[]
[]
[]
[null,null,"地震保険料の控除額",null,null,null,null,null,null,null,null,null,null,null,null,null,null,null,null,null,null,null,null,null,null,null,null,null,null,null,null,null,null,null,null,null,null,null,null,null,null,null,null,null,null,null,null,null,null,null,null,null,null,null,null,null,null,null,null,null,null,null,null,null,null,null,null,"円"]
[]
[]
[null,null,null,null,null,null,null,null,null,null,null,null,null,null,null,null,null,null,null,null,null,null,null,null,null,null,null,null,null,null,null,null,null,null,null,null,null,null,null,null,null,null,null,null,null,null,null,null,null,null,null,null,null,null,null,null,null,null,null,null,null,null,null,null,null,null,null,null,null,null,null,null,null,null,null,null,null,null,null,null,null,null,null,null,"旧長期損害保険料の金額",null,null,null,null,null,null,null,null,null,null,null,null,null,null,null,null,null,null,null,null,null,null,null,null,null,null,null,null,null,null,null,null,null,null,null,null,null,null,null,null,null,null,null,null,null,null,null,null,null,null,null,null,null,null,null,null,"円"]
[]
[]
[]
[]
[]
[]
[]
[]
[]
[]
[]
[]
[]
[]
[]
[]
[]
[]
[]
[]
[]
[null,null,"≪入力画面に戻る"]

{"sheet":"源泉なし","index":4,"n_rows":111,"n_cols":55,"rows_kept":111,"cut":false,"hidden":false,"merged":[[11,35,16,58],[77,54,82,58],[77,2,82,20],[77,21,82,53],[17,54,21,58],[22,54,26,58],[27,54,31,58],[32,54,36,58],[37,54,41,58],[42,54,46,58],[47,54,51,58],[52,54,56,58],[47,2,51,6],[47,7,51,22],[47,23,51,34],[47,35,51,53],[110,3,115,26],[83,2,88,20],[83,21,88,53],[83,54,88,58],[57,54,61,58],[62,54,66,58],[67,54,71,58],[72,54,76,58],[67,2,71,6],[67,7,71,22],[67,23,71,34],[67,35,71,53],[72,2,76,6],[72,7,76,22],[72,23,76,34],[72,35,76,53],[52,2,56,6],[52,7,56,22],[52,23,56,34],[52,35,56,53],[42,2,46,6],[42,7,46,22],[42,23,46,34],[42,35,46,53],[57,2,61,6],[57,7,61,22],[57,23,61,34],[57,35,61,53],[62,2,66,6],[62,7,66,22],[62,23,66,34],[62,35,66,53],[32,2,36,6],[32,7,36,22],[32,23,36,34],[32,35,36,53],[37,2,41,6],[37,7,41,22],[37,23,41,34],[37,35,41,53],[22,23,26,34],[22,35,26,53],[27,2,31,6],[27,7,31,22],[27,23,31,34],[27,35,31,53],[2,2,8,109],[94,2,98,20],[99,2,103,20],[94,21,98,58],[99,21,103,58],[11,2,16,6],[11,7,16,22],[11,23,16,34],[89,2,93,20],[89,21,93,58],[17,2,21,6],[17,7,21,22],[17,23,21,34],[17,35,21,53],[22,2,26,6],[22,7,26,22]]}
[]
[]
[null,null,"○下記の表のうち、水色のセルに入力してください。"]
[]
[]
[]
[]
[]
[]
[]
[]
[null,null,"月",null,null,null,null,"日給",null,null,null,null,null,null,null,null,null,null,null,null,null,null,null,"勤務日数",null,null,null,null,null,null,null,null,null,null,null,"月収"]
[]
[]
[]
[]
[]
[null,null,1,null,null,null,null,null,null,null,null,null,null,null,null,null,null,null,null,null,null,null,null,null,null,null,null,null,null,null,null,null,null,null,null,{"$f":"H18*X18","v":0},null,null,null,null,null,null,null,null,null,null,null,null,null,null,null,null,null,null,"円"]
[]
[]
[]
[]
[null,null,2,null,null,null,null,null,null,null,null,null,null,null,null,null,null,null,null,null,null,null,null,null,null,null,null,null,null,null,null,null,null,null,null,{"$f":"H23*X23","v":0},null,null,null,null,null,null,null,null,null,null,null,null,null,null,null,null,null,null,"円"]
[]
[]
[]
[]
[null,null,3,null,null,null,null,null,null,null,null,null,null,null,null,null,null,null,null,null,null,null,null,null,null,null,null,null,null,null,null,null,null,null,null,{"$f":"H28*X28","v":0},null,null,null,null,null,null,null,null,null,null,null,null,null,null,null,null,null,null,"円"]
[]
[]
[]
[]
[null,null,4,null,null,null,null,null,null,null,null,null,null,null,null,null,null,null,null,null,null,null,null,null,null,null,null,null,null,null,null,null,null,null,null,{"$f":"H33*X33","v":0},null,null,null,null,null,null,null,null,null,null,null,null,null,null,null,null,null,null,"円"]
[]
[]
[]
[]
[null,null,5,null,null,null,null,null,null,null,null,null,null,null,null,null,null,null,null,null,null,null,null,null,null,null,null,null,null,null,null,null,null,null,null,{"$f":"H38*X38","v":0},null,null,null,null,null,null,null,null,null,null,null,null,null,null,null,null,null,null,"円"]
[]
[]
[]
[]
[null,null,6,null,null,null,null,null,null,null,null,null,null,null,null,null,null,null,null,null,null,null,null,null,null,null,null,null,null,null,null,null,null,null,null,{"$f":"H43*X43","v":0},null,null,null,null,null,null,null,null,null,null,null,null,null,null,null,null,null,null,"円"]
[]
[]
[]
[]
[null,null,7,null,null,null,null,null,null,null,null,null,null,null,null,null,null,null,null,null,null,null,null,null,null,null,null,null,null,null,null,null,null,null,null,{"$f":"H48*X48","v":0},null,null,null,null,null,null,null,null,null,null,null,null,null,null,null,null,null,null,"円"]
[]
[]
[]
[]
[null,null,8,null,null,null,null,null,null,null,null,null,null,null,null,null,null,null,null,null,null,null,null,null,null,null,null,null,null,null,null,null,null,null,null,{"$f":"H53*X53","v":0},null,null,null,null,null,null,null,null,null,null,null,null,null,null,null,null,null,null,"円"]
[]
[]
[]
[]
[null,null,9,null,null,null,null,null,null,null,null,null,null,null,null,null,null,null,null,null,null,null,null,null,null,null,null,null,null,null,null,null,null,null,null,{"$f":"H58*X58","v":0},null,null,null,null,null,null,null,null,null,null,null,null,null,null,null,null,null,null,"円"]
[]
[]
[]
[]
[null,null,10,null,null,null,null,null,null,null,null,null,null,null,null,null,null,null,null,null,null,null,null,null,null,null,null,null,null,null,null,null,null,null,null,{"$f":"H63*X63","v":0},null,null,null,null,null,null,null,null,null,null,null,null,null,null,null,null,null,null,"円"]
[]
[]
[]
[]
[null,null,11,null,null,null,null,null,null,null,null,null,null,null,null,null,null,null,null,null,null,null,null,null,null,null,null,null,null,null,null,null,null,null,null,{"$f":"H68*X68","v":0},null,null,null,null,null,null,null,null,null,null,null,null,null,null,null,null,null,null,"円"]
[]
[]
[]
[]
[null,null,12,null,null,null,null,null,null,null,null,null,null,null,null,null,null,null,null,null,null,null,null,null,null,null,null,null,null,null,null,null,null,null,null,{"$f":"H73*X73","v":0},null,null,null,null,null,null,null,null,null,null,null,null,null,null,null,null,null,null,"円"]
[]
[]
[]
[]
[null,null,"賞与等",null,null,null,null,null,null,null,null,null,null,null,null,null,null,null,null,null,null,null,null,null,null,null,null,null,null,null,null,null,null,null,null,null,null,null,null,null,null,null,null,null,null,null,null,null,null,null,null,null,null,null,"円"]
[]
[]
[]
[]
[]
[null,null,"合計",null,null,null,null,null,null,null,null,null,null,null,null,null,null,null,null,null,null,{"$f":"AJ18+AJ23+AJ28+AJ33+AJ38+AJ43+AJ48+AJ53+AJ58+AJ63+AJ68+AJ73+V78","v":0},null,null,null,null,null,null,null,null,null,null,null,null,null,null,null,null,null,null,null,null,null,null,null,null,null,null,null,null,null,null,null,null,"円"]
[]
[]
[]
[]
[]
[null,null,"勤務先所在地"]
[]
[]
[]
[]
[null,null,"勤務先名"]
[]
[]
[]
[]
[null,null,"勤務先電話番号"]
[]
[]
[]
[]
[]
[]
[]
[]
[]
[]
[null,null,null,"≪入力画面に戻る"]

{"sheet":"必要書類","index":5,"n_rows":31,"n_cols":51,"rows_kept":31,"cut":false,"hidden":false,"merged":[[27,0,28,14],[27,15,28,49],[27,50,28,55],[30,0,30,55],[25,3,25,14],[25,15,25,49],[25,50,25,55],[26,3,26,14],[26,15,26,49],[26,50,26,55],[18,0,26,2],[18,3,18,14],[18,15,18,49],[18,50,18,55],[19,3,19,14],[19,15,19,49],[23,3,23,14],[23,15,23,49],[23,50,23,55],[24,3,24,14],[24,15,24,49],[24,50,24,55],[21,3,21,14],[21,15,21,49],[21,50,21,55],[22,3,22,14],[22,15,22,49],[22,50,22,55],[19,50,19,55],[20,3,20,14],[20,15,20,49],[20,50,20,55],[14,15,14,49],[14,50,14,55],[15,3,16,14],[15,15,16,49],[15,50,16,55],[17,3,17,14],[17,15,17,49],[17,50,17,55],[10,0,17,2],[10,3,10,14],[10,15,12,49],[10,50,12,55],[11,3,11,14],[12,3,12,14],[13,3,13,14],[13,15,13,49],[13,50,13,55],[14,3,14,14],[8,0,9,14],[8,50,9,55],[0,50,0,55],[1,50,1,55],[2,0,2,49],[2,50,2,55],[3,50,4,55]]}
["●郵送での申告に必要なもの（郵送するときに同封するもの）"]
["① 申告書を提出する全ての方が必要なもの",null,null,null,null,null,null,null,null,null,null,null,null,null,null,null,null,null,null,null,null,null,null,null,null,null,null,null,null,null,null,null,null,null,null,null,null,null,null,null,null,null,null,null,null,null,null,null,null,null,"確認欄"]
["町民税・県民税申告書（このExcelの「表面」シート及び「裏面」シートを印刷したもの）",null,null,null,null,null,null,null,null,null,null,null,null,null,null,null,null,null,null,null,null,null,null,null,null,null,null,null,null,null,null,null,null,null,null,null,null,null,null,null,null,null,null,null,null,null,null,null,null,null,"□"]
["本人確認書類（運転免許証、パスポート等顔写真が確認できるもの）のコピー",null,null,null,null,null,null,null,null,null,null,null,null,null,null,null,null,null,null,null,null,null,null,null,null,null,null,null,null,null,null,null,null,null,null,null,null,null,null,null,null,null,null,null,null,null,null,null,null,null,"□"]
["　※顔写真が確認できない本人確認書類は2 点（健康保険証等）のコピー "]
["※申告書に収入・控除の記載がない場合は、添付資料をもとに課税額を計算させていただきます。"]
[" 　⇒資料の添付忘れにご注意ください。"]
[]
["② 申告する収入、控除 \nごとに必要なもの",null,null,null,null,null,null,null,null,null,null,null,null,null,null,"提出書類",null,null,null,null,null,null,null,null,null,null,null,null,null,null,null,null,null,null,null,null,null,null,null,null,null,null,null,null,null,null,null,null,null,null,"確認欄"]
[null,null,null,null,null,null,null,null,null,null,null,null,null,null,null,"※提出する書類は、コピーでも問題ありません。"]
["収入に関する資料",null,null,"営業",null,null,null,null,null,null,null,null,null,null,null,"・収支内訳書（収入・経費・所得を記入してください）\n・報酬等の支払調書（外交員報酬等がある場合）",null,null,null,null,null,null,null,null,null,null,null,null,null,null,null,null,null,null,null,null,null,null,null,null,null,null,null,null,null,null,null,null,null,null,"□"]
[null,null,null,"農業"]
[null,null,null,"不動産"]
[null,null,null,"給与",null,null,null,null,null,null,null,null,null,null,null,"源泉徴収票（無い場合は、給与明細等の収入が分かるもの）",null,null,null,null,null,null,null,null,null,null,null,null,null,null,null,null,null,null,null,null,null,null,null,null,null,null,null,null,null,null,null,null,null,null,"□"]
[null,null,null,"公的年金",null,null,null,null,null,null,null,null,null,null,null,"源泉徴収票",null,null,null,null,null,null,null,null,null,null,null,null,null,null,null,null,null,null,null,null,null,null,null,null,null,null,null,null,null,null,null,null,null,null,"□"]
[null,null,null,"その他",null,null,null,null,null,null,null,null,null,null,null,"収入や経費が分かるもの（個人年金の支払証明書、報酬に係る支払調書など）",null,null,null,null,null,null,null,null,null,null,null,null,null,null,null,null,null,null,null,null,null,null,null,null,null,null,null,null,null,null,null,null,null,null,"□"]
[]
[null,null,null,"一時",null,null,null,null,null,null,null,null,null,null,null,"収入と経費の内容が分かるもの",null,null,null,null,null,null,null,null,null,null,null,null,null,null,null,null,null,null,null,null,null,null,null,null,null,null,null,null,null,null,null,null,null,null,"□"]
["控除に関する資料",null,null,"社会保険料控除",null,null,null,null,null,null,null,null,null,null,null,"支払った金額が分かる領収書、支払証明書など",null,null,null,null,null,null,null,null,null,null,null,null,null,null,null,null,null,null,null,null,null,null,null,null,null,null,null,null,null,null,null,null,null,null,"□"]
[null,null,null,"小規模共済等掛金控除",null,null,null,null,null,null,null,null,null,null,null,"支払った掛金額の証明書",null,null,null,null,null,null,null,null,null,null,null,null,null,null,null,null,null,null,null,null,null,null,null,null,null,null,null,null,null,null,null,null,null,null,"□"]
[null,null,null,"生命保険料控除",null,null,null,null,null,null,null,null,null,null,null,"生命保険料控除証明書",null,null,null,null,null,null,null,null,null,null,null,null,null,null,null,null,null,null,null,null,null,null,null,null,null,null,null,null,null,null,null,null,null,null,"□"]
[null,null,null,"地震保険料控除",null,null,null,null,null,null,null,null,null,null,null,"地震保険料控除証明書",null,null,null,null,null,null,null,null,null,null,null,null,null,null,null,null,null,null,null,null,null,null,null,null,null,null,null,null,null,null,null,null,null,null,"□"]
[null,null,null,"勤労学生控除",null,null,null,null,null,null,null,null,null,null,null,"学生証のコピーや在学証明書",null,null,null,null,null,null,null,null,null,null,null,null,null,null,null,null,null,null,null,null,null,null,null,null,null,null,null,null,null,null,null,null,null,null,"□"]
[null,null,null,"障害者控除",null,null,null,null,null,null,null,null,null,null,null,"障害者手帳などのコピー",null,null,null,null,null,null,null,null,null,null,null,null,null,null,null,null,null,null,null,null,null,null,null,null,null,null,null,null,null,null,null,null,null,null,"□"]
[null,null,null,"扶養控除",null,null,null,null,null,null,null,null,null,null,null,"同封物はありません。※申告書に氏名や生年月日などが記載されていることを確認してください。",null,null,null,null,null,null,null,null,null,null,null,null,null,null,null,null,null,null,null,null,null,null,null,null,null,null,null,null,null,null,null,null,null,null,"□"]
[null,null,null,"寄附金控除",null,null,null,null,null,null,null,null,null,null,null,"寄附金の領収書",null,null,null,null,null,null,null,null,null,null,null,null,null,null,null,null,null,null,null,null,null,null,null,null,null,null,null,null,null,null,null,null,null,null,"□"]
[null,null,null,"医療費控除",null,null,null,null,null,null,null,null,null,null,null,"医療費控除の明細書または医療費通知\n※郵送で町・県民税の申告書を提出する場合に限り、領収書の合計額を計算したメモ用紙などでも構いません。",null,null,null,null,null,null,null,null,null,null,null,null,null,null,null,null,null,null,null,null,null,null,null,null,null,null,null,null,null,null,null,null,null,null,"□"]
["申告書の控えを希望の場合",null,null,null,null,null,null,null,null,null,null,null,null,null,null,"返信先（ご自宅）の宛名を記載の上、切手を貼った返信用封筒を同封してください。",null,null,null,null,null,null,null,null,null,null,null,null,null,null,null,null,null,null,null,null,null,null,null,null,null,null,null,null,null,null,null,null,null,null,"□"]
[]
[]
["郵送での提出にご協力いただきまして、ありがとうございます。"]

{"sheet":"※入力厳禁※計算用","index":6,"n_rows":786,"n_cols":44,"rows_kept":786,"cut":false,"hidden":false,"merged":[[87,24,87,27],[86,29,87,30],[86,31,87,34],[69,29,69,31],[78,41,78,43],[74,5,74,8],[75,5,75,8],[76,3,76,7],[76,10,76,13],[77,4,77,7],[79,3,79,6],[74,19,74,22],[74,30,74,34],[75,30,75,34],[76,29,76,32],[55,43,55,45],[56,43,56,45],[57,43,57,45],[56,2,56,7],[57,2,57,7],[58,2,58,7],[55,35,55,40],[56,35,56,40],[57,35,57,40],[55,11,55,13],[56,11,56,13],[57,11,57,13],[58,11,58,13],[55,27,55,28],[56,27,56,28],[57,27,57,28],[58,27,58,28],[23,26,23,33],[24,26,24,33],[25,26,25,33],[26,26,26,33],[27,26,27,33],[30,1,30,7],[30,18,30,24],[23,18,23,23],[24,18,24,23],[25,18,25,23],[26,18,26,23],[27,18,27,23],[23,24,23,25],[24,24,24,25],[25,24,25,25],[26,24,26,25],[27,24,27,25],[23,9,23,15],[24,9,24,15],[25,9,25,15],[26,9,26,15],[27,9,27,15],[20,1,20,5],[23,1,23,6],[24,1,24,6],[25,1,25,6],[26,1,26,6],[27,1,27,6],[23,7,23,8],[24,7,24,8],[25,7,25,8],[26,7,26,8],[27,7,27,8],[4,20,4,25],[5,19,5,26],[12,7,12,8],[13,7,13,8],[14,7,14,8],[15,7,15,8],[10,9,10,15],[11,9,11,15],[12,9,12,15],[13,9,13,15],[14,9,14,15],[12,1,12,6],[5,7,5,8],[6,7,6,8],[7,7,7,8],[8,7,8,8],[9,7,9,8],[10,7,10,8],[6,1,6,6],[7,1,7,6],[8,1,8,6],[9,1,9,6],[10,1,10,6],[3,30,3,36],[22,38,22,46],[21,38,21,46],[6,41,6,44],[23,39,23,46],[33,1,33,7],[38,1,38,3],[38,4,38,10],[5,1,5,6],[13,1,13,6],[14,1,14,6],[15,1,15,6],[11,1,11,6],[5,9,5,15],[6,9,6,15],[7,9,7,15],[8,9,8,15],[9,9,9,15],[15,9,15,15],[11,7,11,8],[3,1,3,5],[3,10,3,15],[3,7,3,8],[3,19,3,26],[49,15,49,17],[50,15,50,17],[51,15,51,17],[51,20,51,24],[45,10,45,13],[45,5,45,7],[45,1,45,3],[59,16,59,19],[55,16,55,19],[56,16,56,19],[57,16,57,19],[58,16,58,19],[39,1,39,3],[39,4,39,10],[37,1,37,19],[38,13,39,17],[38,20,39,25],[86,3,86,6],[87,3,87,6],[97,4,97,6],[96,4,96,6],[92,17,92,19],[92,22,92,24],[86,18,86,20],[87,18,87,20],[65,7,65,12],[66,7,66,12],[65,14,66,16],[65,17,65,23],[66,17,66,23],[44,1,44,2],[44,5,44,7],[44,10,44,12],[47,1,47,2],[55,2,55,7],[48,15,48,17],[98,4,98,6],[96,39,96,42],[97,13,97,16],[86,9,86,11],[69,6,69,10],[69,1,69,4],[70,1,70,4],[70,6,70,10],[69,12,70,14],[69,16,70,19],[76,35,76,37],[77,30,77,34],[79,29,79,31],[81,6,81,9],[81,12,81,16],[82,5,82,7],[74,41,74,43],[75,41,75,43],[76,41,76,43],[77,41,77,43],[91,6,91,7],[92,6,92,7],[92,10,92,14],[86,24,86,27]]}
[]
[null,"給与"]
[null,"源泉あり",null,null,null,null,null,null,null,null,"源泉なし",null,null,null,null,null,null,null,null,null,null,null,null,null,null,null,null,null,null,null,"所得金額"]
[null,{"$f":"源泉あり!AE20","v":0},null,null,null,null,null,"＋",null,null,{"$f":"源泉なし!V84","v":0},null,null,null,null,null,null,"＝",null,{"$f":"B4+K4","v":0},null,null,null,null,null,null,null,null,null,null,{"$f":"ROUNDDOWN(_xlfn.IFS(T4<=550999,J6,AND(551000<=T4,T4<=1618999),J7,AND(1619000<=T4,T4<=1619999),J8,AND(1620000<=T4,T4<=1621999),J9,AND(1622000<=T4,T4<=1623999),J10,AND(1624000<=T4,T4<=1627999),J11,AND(1628000<=T4,T4<=1799999),J12,AND(1800000<=T4,T4<=3599999),J13,AND(3600000<=T4,T4<=6599999),J14,AND(6600000<=T4,T4<=8499999),J15,8500000<=T4,J16),0)","v":0}]
[null,null,null,null,null,null,null,null,null,null,null,null,null,null,null,null,null,null,null,null,"↓端数切捨て"]
[null,"～550999",null,null,null,null,null,"→",null,0,null,null,null,null,null,null,null,null,null,{"$f":"ROUNDDOWN(T4,-3)","v":0}]
[null,"551000～1618999",null,null,null,null,null,"→",null,{"$f":"T4-550000","v":-550000}]
[null,"1619000～1619999",null,null,null,null,null,"→",null,1069000]
[null,"1620000～1621999",null,null,null,null,null,"→",null,1070000]
[null,"1622000～1623999",null,null,null,null,null,"→",null,1072000]
[null,"1624000～1627999",null,null,null,null,null,"→",null,1074000]
[null,"1628000～1799999",null,null,null,null,null,"→",null,{"$f":"ROUNDDOWN(T4/4,-3)*2.4+100000","v":100000}]
[null,"1800000～3599999",null,null,null,null,null,"→",null,{"$f":"ROUNDDOWN(T4/4,-3)*2.8-80000","v":-80000}]
[null,"3600000～6599999",null,null,null,null,null,"→",null,{"$f":"ROUNDDOWN(T4/4,-3)*3.2-440000","v":-440000}]
[null,"6600000～8499999",null,null,null,null,null,"→",null,{"$f":"T4*0.9-1100000","v":-1100000}]
[null,"8500000～",null,null,null,null,null,"→",null,{"$f":"T4-1950000","v":-1950000}]
[]
[]
[]
[null,"公的年金",null,null,null,"年金以外の所得10,000,000円超の人は対応しない"]
[null,{"$f":"入力してください!AE213","v":0}]
[null,null,null,null,null,null,null,null,null,null,null,null,null,null,null,null,null,null,null,null,null,null,null,null,null,null,null,null,null,null,null,null,null,null,null,null,null,null,{"$f":"入力してください!AC56","v":"00:00:00"}]
[null,"65歳未満（S33.1.2以降生まれ）（R4年分）",null,null,null,null,null,null,null,null,null,null,null,null,null,null,null,null,"65歳以上（S33.1.1以前生まれ）（R4年分）",null,null,null,null,null,null,null,null,null,null,null,null,null,null,null,null,null,null,null,"2025-01-01"]
[null,"～1299999",null,null,null,null,null,"→",null,{"$f":"B21-600000","v":-600000},null,null,null,null,null,null,null,null,"～3299999",null,null,null,null,null,"→",null,{"$f":"B21-1100000","v":-1100000},null,null,null,null,null,null,null,null,null,null,null,"年齢",{"$f":"DATEDIF(AM22,AM23,\"Y\")","v":125}]
[null,"1300000～4099999",null,null,null,null,null,"→",null,{"$f":"B21*0.75-275000","v":-275000},null,null,null,null,null,null,null,null,"3300000～4099999",null,null,null,null,null,"→",null,{"$f":"B21*0.75-275000","v":-275000}]
[null,"4100000～7699999",null,null,null,null,null,"→",null,{"$f":"B21*0.85-685000","v":-685000},null,null,null,null,null,null,null,null,"4100000～7699999",null,null,null,null,null,"→",null,{"$f":"B21*0.85-685000","v":-685000}]
[null,"7700000～9999999",null,null,null,null,null,"→",null,{"$f":"B21*0.95-1455000","v":-1455000},null,null,null,null,null,null,null,null,"7700000～9999999",null,null,null,null,null,"→",null,{"$f":"B21*0.95-1455000","v":-1455000}]
[null,"10000000～",null,null,null,null,null,"→",null,{"$f":"B21-1955000","v":-1955000},null,null,null,null,null,null,null,null,"10000000～",null,null,null,null,null,"→",null,{"$f":"B21-1955000","v":-1955000}]
[]
[null,"収入の要件を満たす値"]
[null,{"$f":"_xlfn.IFS(B21<=1299999,J24,AND(1300000<=B21,B21<=4099999),J25,AND(4100000<=B21,B21<=7699999),J26,AND(7700000<=B21,B21<=9999999),J27,10000000<=B21,J28)","v":-600000},null,null,null,null,null,null,"←65歳未満の場合",null,null,null,null,null,null,null,null,null,{"$f":"_xlfn.IFS(B21<=3299999,AA24,AND(3300000<=B21,B21<=4099999),AA25,AND(4100000<=B21,B21<=7699999),AA26,AND(7700000<=B21,B21<=9999999),AA27,10000000<=B21,AA28)","v":-1100000},null,null,null,null,null,null,"←65歳以上の場合"]
[]
[null,"年齢要件でどちらに該当するか判定"]
[null,{"$f":"MAX(IF(AN24<65,B31,S31),0)","v":0}]
[]
[]
[]
[null,"給与と年金両方ある場合の所得金額調整控除（上限10万円）",null,null,null,null,null,null,null,null,null,null,null,null,null,null,null,null,null,null,"給与金額"]
[null,"給与",null,null,{"$f":"MIN(AE4,100000)","v":0},null,null,null,null,null,null,null,null,{"$f":"(E39+E40)-100000","v":-100000},null,null,null,null,null,null,{"$f":"AE4-N39","v":100000}]
[null,"年金",null,null,{"$f":"MIN(B34,100000)","v":0}]
[]
[]
[]
[]
[null,"寡婦",null,null,null,"ひとり親",null,null,null,null,"勤労学生"]
[null,{"$f":"IF('表面（印刷画面）'!HB65=TRUE,260000,0)","v":0},null,null,null,{"$f":"IF('表面（印刷画面）'!FP87=TRUE,300000,0)","v":0},null,null,null,null,{"$f":"IF('表面（印刷画面）'!FQ94=TRUE,260000,0)","v":0}]
[]
[null,"障害"]
[null,"1人目",null,null,"本人",null,null,{"$f":"_xlfn.IFS(入力してください!AJ551=\"特別障害者\",300000,入力してください!AJ551=\"普通障害者\",260000,入力してください!AJ551=\"　\",0)","v":0},null,"2人目",null,null,"本人",null,null,{"$f":"_xlfn.IFS(入力してください!DH551=\"特別障害者\",300000,入力してください!DH551=\"普通障害者\",260000,入力してください!DH551=\"　\",0)","v":0}]
[null,null,null,null,"配偶者",null,null,{"$f":"_xlfn.IFS(入力してください!AJ554=\"同居特別障害者\",530000,入力してください!AJ554=\"同居以外の特別障害者\",300000,入力してください!AJ554=\"普通障害者\",260000,入力してください!AJ554=\"　\",0)","v":0},null,null,null,null,"配偶者",null,null,{"$f":"_xlfn.IFS(入力してください!DH554=\"同居特別障害者\",530000,入力してください!DH554=\"同居以外の特別障害者\",300000,入力してください!DH554=\"普通障害者\",260000,入力してください!DH554=\"　\",0)","v":0}]
[null,null,null,null,"扶養親族",null,null,{"$f":"_xlfn.IFS(入力してください!AJ557=\"同居特別障害者\",530000,入力してください!AJ557=\"同居以外の特別障害者\",300000,入力してください!AJ557=\"普通障害者\",260000,入力してください!AJ557=\"　\",0)","v":0},null,null,null,null,"扶養親族",null,null,{"$f":"_xlfn.IFS(入力してください!DH557=\"同居特別障害者\",530000,入力してください!DH557=\"同居以外の特別障害者\",300000,入力してください!DH557=\"普通障害者\",260000,入力してください!DH557=\"　\",0)","v":0}]
[null,null,null,null,"計",null,null,{"$f":"H49+H50+H51","v":0},null,null,null,null,"計",null,null,{"$f":"P49+P50+P51","v":0},null,null,null,null,{"$f":"H52+P52","v":0}]
[]
[]
[null,"扶養o16",null,null,null,null,null,null,null,null,null,null,null,null,null,null,null,null,null,null,null,null,null,null,null,null,null,null,null,null,null,null,null,null,"扶養u16"]
[null,"①",{"$f":"IF(入力してください!AJ725=\"\",\"\",入力してください!AJ725)","v":""},null,null,null,null,null,null,"→",null,{"$f":"IF(C56=\"\",\"\",DATEDIF(C56,$AM$23,\"Y\"))","v":""},null,null,null,null,{"$f":"_xlfn.IFS(AND(L56>=16,L56<=18),330000,AND(L56>=19,L56<=22),450000,AND(L56>=23,L56<=69),330000,AND(L56>=70,'表面（印刷画面）'!GM110=TRUE,L56<>\"\"),450000,AND(L56>=70,'表面（印刷画面）'!GM110=FALSE,L56<>\"\"),380000,L56=\"\",0)","v":0},null,null,null,null,"10000円未満切捨",null,null,null,null,null,{"$f":"LEFT(Q56,2)","v":"0"},null,null,null,null,null,null,"①",{"$f":"入力してください!EE708","v":"00:00:00"},null,null,null,null,null,null,"→",{"$f":"DATEDIF(AJ56,$AM$23,\"Y\")","v":125}]
[null,"②",{"$f":"IF(入力してください!AJ751=\"\",\"\",入力してください!AJ751)","v":""},null,null,null,null,null,null,"→",null,{"$f":"IF(C57=\"\",\"\",DATEDIF(C57,$AM$23,\"Y\"))","v":""},null,null,null,null,{"$f":"_xlfn.IFS(AND(L57>=16,L57<=18),330000,AND(L57>=19,L57<=22),450000,AND(L57>=23,L57<=69),330000,AND(L57>=70,'表面（印刷画面）'!GM112=TRUE,L57<>\"\"),450000,AND(L57>=70,'表面（印刷画面）'!GM112=FALSE,L57<>\"\"),380000,L57=\"\",0)","v":0},null,null,null,null,"10000円未満切捨",null,null,null,null,null,{"$f":"LEFT(Q57,2)","v":"0"},null,null,null,null,null,null,"②",{"$f":"入力してください!EE709","v":"00:00:00"},null,null,null,null,null,null,"→",{"$f":"DATEDIF(AJ57,$AM$23,\"Y\")","v":125}]
[null,"③",{"$f":"IF(入力してください!AJ777=\"\",\"\",入力してください!AJ777)","v":""},null,null,null,null,null,null,"→",null,{"$f":"IF(C58=\"\",\"\",DATEDIF(C58,$AM$23,\"Y\"))","v":""},null,null,null,null,{"$f":"_xlfn.IFS(AND(L58>=16,L58<=18),330000,AND(L58>=19,L58<=22),450000,AND(L58>=23,L58<=69),330000,AND(L58>=70,'表面（印刷画面）'!GM114=TRUE,L58<>\"\"),450000,AND(L58>=70,'表面（印刷画面）'!GM114=FALSE,L58<>\"\"),380000,L58=\"\",0)","v":0},null,null,null,null,"10000円未満切捨",null,null,null,null,null,{"$f":"LEFT(Q58,2)","v":"0"},null,null,null,null,null,null,"③",{"$f":"入力してください!EE710","v":"00:00:00"},null,null,null,null,null,null,"→",125]
[null,"④",{"$f":"IF(入力してください!AJ803=\"\",\"\",入力してください!AJ803)","v":""},null,null,null,null,null,null,"→",null,{"$f":"IF(C59=\"\",\"\",DATEDIF(C59,$AM$23,\"Y\"))","v":""},null,null,null,null,{"$f":"_xlfn.IFS(AND(L59>=16,L59<=18),330000,AND(L59>=19,L59<=22),450000,AND(L59>=23,L59<=69),330000,AND(L59>=70,'表面（印刷画面）'!GM116=TRUE,L59<>\"\"),450000,AND(L59>=70,'表面（印刷画面）'!GM116=FALSE,L59<>\"\"),380000,L59=\"\",0)","v":0},null,null,null,null,"10000円未満切捨",null,null,null,null,null,{"$f":"LEFT(Q59,2)","v":"0"}]
[null,null,null,null,null,null,null,null,null,null,null,null,null,null,null,null,{"$f":"Q56+Q57+Q58+Q59","v":0}]
[]
[]
[]
[]
[null,"雑損控除"]
[null,"実質損失額",null,null,null,"→",null,{"$f":"入力してください!AV843-入力してください!AV848","v":0},null,null,null,null,null,null,"計算",null,null,{"$f":"MAX(H66-'表面（印刷画面）'!EA147*0.1,0)","v":0}]
[null,"災害関連支出",null,null,null,"→",null,{"$f":"入力してください!AV853","v":0},null,null,null,null,null,null,null,null,null,{"$f":"MAX(H67-50000,0)","v":0}]
[]
[null,"医療費"]
[null,"10万円",null,null,null,null,100000,null,null,null,null,null,"低いほう→",null,null,null,{"$f":"MIN(G70,G71)","v":0},null,null,null,null,null,"実質負担額",null,null,null,{"$f":"入力してください!AL879","v":0},null,null,{"$f":"MAX(AA70-Q70,0)","v":0}]
[null,"総所得金額の5％",null,null,null,null,{"$f":"MAX(入力してください!AL879-'表面（印刷画面）'!EA147*0.05,0)","v":0}]
[]
[]
[null,"生命保険料",null,null,null,null,null,null,null,null,null,null,null,null,null,null,null,null,null,null,null,null,null,null,null,null,null,null,null,null,null,null,null,null,null,null,null,null,null,"源泉+追加分"]
["①",1,"新生命",null,null,{"$f":"_xlfn.IFS(AP75<=12000,AP75,AND(AP75>12000,AP75<=32000),AP75*0.5+6000,AND(AP75>32000,AP75<=56000),AP75*0.25+14000,AP75>56000,28000)","v":0},null,null,null,null,null,null,null,null,null,null,"②","介護",null,{"$f":"_xlfn.IFS(AP77<=12000,AP77,AND(AP77>12000,AP77<=32000),AP77*0.5+6000,AND(AP77>32000,AP77<=56000),AP77*0.25+14000,AP77>56000,28000)","v":0},null,null,null,null,null,null,"③","⑴","新個人",null,{"$f":"_xlfn.IFS(AP78<=12000,AP78,AND(AP78>12000,AP78<=32000),AP78*0.5+6000,AND(AP78>32000,AP78<=56000),AP78*0.25+14000,AP78>56000,28000)","v":0},null,null,null,null,null,null,null,null,"新生命",null,{"$f":"入力してください!AE338+源泉あり!DK22","v":0}]
[null,2,"旧生命",null,null,{"$f":"_xlfn.IFS(AP76<=15000,AP76,AND(AP76>15000,AP76<=40000),AP76*0.5+7500,AND(AP76>40000,AP76<=70000),AP76*0.25+17500,AP76>70000,35000)","v":0},null,null,null,null,null,null,null,null,null,null,null,null,null,null,null,null,null,null,null,null,null,"⑵","旧個人",null,{"$f":"_xlfn.IFS(AP79<=15000,AP79,AND(AP79>15000,AP79<=40000),AP79*0.5+7500,AND(AP79>40000,AP79<=70000),AP79*0.25+17500,AP79>70000,35000)","v":0},null,null,null,null,null,null,null,null,"旧生命",null,{"$f":"入力してください!AE343+源泉あり!DK27","v":0}]
[null,"1+2",null,{"$f":"F75+F76","v":0},null,null,null,null,null,null,28000,null,null,null,null,null,null,null,null,null,null,null,null,null,null,null,null,"⑴+⑵",null,{"$f":"AE75+AE76","v":0},null,null,null,null,null,28000,null,null,null,"介護",null,{"$f":"入力してください!AK358+源泉あり!DK32","v":0}]
[null,"少ない額",null,null,{"$f":"MIN(D77,K77)","v":0},null,null,null,null,null,null,null,null,null,null,null,null,null,null,null,null,null,null,null,null,null,null,"少ない額",null,null,{"$f":"MIN(AD77,AJ77)","v":0},null,null,null,null,null,null,null,null,"新個人",null,{"$f":"入力してください!AK353+源泉あり!DK37","v":0}]
[null,null,null,null,null,null,null,null,null,null,null,null,null,null,null,null,null,null,null,null,null,null,null,null,null,null,null,null,null,null,null,null,null,null,null,null,null,null,null,"旧個人",null,{"$f":"入力してください!AK353+源泉あり!DK42","v":0}]
[null,null,"①",{"$f":"IF(F76>28000,F76,E78)","v":0},null,null,null,null,null,null,null,null,null,null,null,null,null,null,null,null,null,null,null,null,null,null,null,null,"③",{"$f":"IF(AE76>28000,AE76,AE78)","v":0}]
[]
[null,"①+②+③",null,null,null,null,{"$f":"D80+T75+AD80","v":0},null,null,null,null,null,70000]
[null,"少ない額",null,null,null,{"$f":"MIN(G82,M82)","v":0}]
[]
[]
[null,"地震保険料"]
[null,"地震",null,{"$f":"入力してください!AJ391+W93","v":0},null,null,null,null,null,null,null,null,null,null,null,1,"地震",null,{"$f":"_xlfn.IFS(D87<=50000,ROUNDUP(D87*0.5,0),D87>50000,25000)","v":0},null,null,null,"1+2",null,{"$f":"S87+S88","v":0},null,null,null,null,"少ないほう",null,{"$f":"MIN(Y87,Y88)","v":0}]
[null,"旧長期",null,{"$f":"入力してください!AJ396+G93","v":0},null,null,null,null,null,null,null,null,null,null,null,2,"旧長期",null,{"$f":"_xlfn.IFS(D88<=5000,D88,AND(D88>5000,D88<=15000),ROUNDUP(D88*0.5+2500,0),D88>15000,10000)","v":0},null,null,null,null,null,25000]
[]
[]
[null,"給報のみの人"]
[null,"保険料控除額",null,null,null,null,{"$f":"源泉あり!AE48","v":0},null,null,null,"旧長期の控除額",null,null,null,null,null,null,"地震の控除額",null,null,null,null,"地震の支払額"]
[null,"旧長期支払額",null,null,null,null,{"$f":"源泉あり!DK51","v":0},null,null,null,{"$f":"_xlfn.IFS(G93<=10000,G93,AND(G93>10000,G93<=20000),G93*0.5+5000,G93>20000,15000)","v":0},null,null,null,null,null,null,{"$f":"G92-K93","v":0},null,null,null,null,{"$f":"_xlfn.IFS(R93<50000,R93,R93=50000,50000)","v":0}]
[]
[]
[null,"配偶者控除"]
[null,"(配)年齢",null,null,{"$f":"DATEDIF(入力してください!AH646,※入力厳禁※計算用!AM23,\"Y\")","v":125},null,null,null,null,null,null,null,null,null,null,null,null,null,null,null,null,null,null,null,null,null,null,null,null,null,null,null,null,null,null,null,null,null,"配偶者控除",{"$f":"_xlfn.IFS(AND(E97<70,E98<=480000,E99<=9000000),330000,AND(E97<70,E98<=480000,E99>9000000,E99<=9500000),220000,AND(E97<70,E98<=480000,E99>9500000,E99<=10000000),110000,AND(E97<70,E98<=480000,E99>10000000),0,AND(E97>=70,E98<=480000,E99<=9000000),380000,AND(E97>=70,E98<=480000,E99>9000000,E99<=9500000),260000,AND(E97>=70,E98<=480000,E99>9500000,E99<=10000000),130000,AND(E97>=70,E98<=480000,E99>10000000),0)","v":380000}]
[null,"(配)所得金額",null,null,{"$f":"入力してください!AH651","v":0},null,null,null,"配偶者（特別）控除",null,null,null,null,{"$f":"_xlfn.IFS(入力してください!AH636=\"\",0,AND(E97<70,E98<=480000,E99<=9000000),330000,AND(E97<70,E98<=480000,E99>9000000,E99<=9500000),220000,AND(E97<70,E98<=480000,E99>9500000,E99<=10000000),110000,AND(E97<70,E98<=480000,E99>10000000),0,AND(E97>=70,E98<=480000,E99<=9000000),380000,AND(E97>=70,E98<=480000,E99>9000000,E99<=9500000),260000,AND(E97>=70,E98<=480000,E99>9500000,E99<=10000000),130000,AND(E97>=70,E98<=480000,E99>10000000),0,AND(E98>480000,E98<=950000,E99<=9000000),330000,AND(E98>480000,E98<=950000,E99>9000000,E99<=9500000),220000,AND(E98>480000,E98<=950000,E99>9500000,E99<=10000000),110000,AND(E98>480000,E98<=9500000,E99>10000000),0,AND(E98>950000,E98<=1000000,E99<=9000000),330000,AND(E98>950000,E98<=1000000,E99>9000000,E99<=9500000),220000,AND(E98>950000,E98<=1000000,E99>9500000,E99<=10000000),110000,AND(E98>950000,E98<=1000000,E99>10000000),0,AND(E98>1000000,E98<=1050000,E99<=9000000),310000,AND(E98>1000000,E98<=1050000,E99>9000000,E99<=9500000),210000,AND(E98>1000000,E98<=1050000,E99>9500000,E99<=10000000),110000,AND(E98>1000000,E98<=1050000,E99>10000000),0,AND(E98>1050000,E98<=1100000,E99<=9000000),260000,AND(E98>1050000,E98<=1100000,E99>9000000,E99<=9500000),180000,AND(E98>1050000,E98<=1100000,E99>9500000,E99<=10000000),90000,AND(E98>1050000,E98<=1100000,E99>10000000),0,AND(E98>1100000,E98<=1150000,E99<=9000000),210000,AND(E98>1100000,E98<=1150000,E99>9000000,E99<=9500000),140000,AND(E98>1100000,E98<=1150000,E99>9500000,E99<=10000000),70000,AND(E98>1100000,E98<=1150000,E99>10000000),0,AND(E98>1150000,E98<=1200000,E99<=9000000),160000,AND(E98>1150000,E98<=1200000,E99>9000000,E99<=9500000),110000,AND(E98>1150000,E98<=1200000,E99>9500000,E99<=10000000),60000,AND(E98>1150000,E98<=1200000,E99>10000000),0,AND(E98>1200000,E98<=1250000,E99<=9000000),110000,AND(E98>1200000,E98<=1250000,E99>9000000,E99<=9500000),80000,AND(E98>1200000,E98<=1250000,E99>9500000,E99<=10000000),40000,AND(E98>1200000,E98<=1250000,E99>10000000),0,AND(E98>1250000,E98<=1300000,E99<=9000000),60000,AND(E98>1250000,E98<=1300000,E99>9000000,E99<=9500000),40000,AND(E98>1250000,E98<=1300000,E99>9500000,E99<=10000000),20000,AND(E98>1250000,E98<=1300000,E99>10000000),0,AND(E98>1300000,E98<=1330000,E99<=9000000),30000,AND(E98>1300000,E98<=1330000,E99>9000000,E99<=9500000),20000,AND(E98>1300000,E98<=1330000,E99>9500000,E99<=10000000),10000,AND(E98>1300000,E98<=1330000,E99>10000000),0,AND(E98>1330000,E99>=0),0)","v":0}]
[null,"(本)所得金額",null,null,{"$f":"'表面（印刷画面）'!EA147","v":0}]
[]
[]
[]
[]
[]
[]
[]
[]
[]
[]
[]
[]
[]
[]
[]
[]
[]
[]
[]
[]
[]
[]
[]
[]
[]
[]
[]
[]
[]
[]
[]
[]
[]
[]
[]
[]
[]
[]
[]
[]
[]
[]
[]
[]
[]
[]
[]
[]
[]
[]
[]
[]
[]
[]
[]
[]
[]
[]
[]
[]
[]
[]
[]
[]
[]
[]
[]
[]
[]
[]
[]
[]
[]
[]
[]
[]
[]
[]
[]
[]
[]
[]
[]
[]
[]
[]
[]
[]
[]
[]
[]
[]
[]
[]
[]
[]
[]
[]
[]
[]
[]
[]
[]
[]
[]
[]
[]
[]
[]
[]
[]
[]
[]
[]
[]
[]
[]
[]
[]
[]
[]
[]
[]
[]
[]
[]
[]
[]
[]
[]
[]
[]
[]
[]
[]
[]
[]
[]
[]
[]
[]
[]
[]
[]
[]
[]
[]
[]
[]
[]
[]
[]
[]
[]
[]
[]
[]
[]
[]
[]
[]
[]
[]
[]
[]
[]
[]
[]
[]
[]
[]
[]
[]
[]
[]
[]
[]
[]
[]
[]
[]
[]
[]
[]
[]
[]
[]
[]
[]
[]
[]
[]
[]
[]
[]
[]
[]
[]
[]
[]
[]
[]
[]
[]
[]
[]
[]
[]
[]
[]
[]
[]
[]
[]
[]
[]
[]
[]
[]
[]
[]
[]
[]
[]
[]
[]
[]
[]
[]
[]
[]
[]
[]
[]
[]
[]
[]
[]
[]
[]
[]
[]
[]
[]
[]
[]
[]
[]
[]
[]
[]
[]
[]
[]
[]
[]
[]
[]
[]
[]
[]
[]
[]
[]
[]
[]
[]
[]
[]
[]
[]
[]
[]
[]
[]
[]
[]
[]
[]
[]
[]
[]
[]
[]
[]
[]
[]
[]
[]
[]
[]
[]
[]
[]
[]
[]
[]
[]
[]
[]
[]
[]
[]
[]
[]
[]
[]
[]
[]
[]
[]
[]
[]
[]
[]
[]
[]
[]
[]
[]
[]
[]
[]
[]
[]
[]
[]
[]
[]
[]
[]
[]
[]
[]
[]
[]
[]
[]
[]
[]
[]
[]
[]
[]
[]
[]
[]
[]
[]
[]
[]
[]
[]
[]
[]
[]
[]
[]
[]
[]
[]
[]
[]
[]
[]
[]
[]
[]
[]
[]
[]
[]
[]
[]
[]
[]
[]
[]
[]
[]
[]
[]
[]
[]
[]
[]
[]
[]
[]
[]
[]
[]
[]
[]
[]
[]
[]
[]
[]
[]
[]
[]
[]
[]
[]
[]
[]
[]
[]
[]
[]
[]
[]
[]
[]
[]
[]
[]
[]
[]
[]
[]
[]
[]
[]
[]
[]
[]
[]
[]
[]
[]
[]
[]
[]
[]
[]
[]
[]
[]
[]
[]
[]
[]
[]
[]
[]
[]
[]
[]
[]
[]
[]
[]
[]
[]
[]
[]
[]
[]
[]
[]
[]
[]
[]
[]
[]
[]
[]
[]
[]
[]
[]
[]
[]
[]
[]
[]
[]
[]
[]
[]
[]
[]
[]
[]
[]
[]
[]
[]
[]
[]
[]
[]
[]
[]
[]
[]
[]
[]
[]
[]
[]
[]
[]
[]
[]
[]
[]
[]
[]
[]
[]
[]
[]
[]
[]
[]
[]
[]
[]
[]
[]
[]
[]
[]
[]
[]
[]
[]
[]
[]
[]
[]
[]
[]
[]
[]
[]
[]
[]
[]
[]
[]
[]
[]
[]
[]
[]
[]
[]
[]
[]
[]
[]
[]
[]
[]
[]
[]
[]
[]
[]
[]
[]
[]
[]
[]
[]
[]
[]
[]
[]
[]
[]
[]
[]
[]
[]
[]
[]
[]
[]
[]
[]
[]
[]
[]
[]
[]
[]
[]
[]
[]
[]
[]
[]
[]
[]
[]
[]
[]
[]
[]
[]
[]
[]
[]
[]
[]
[]
[]
[]
[]
[]
[]
[]
[]
[]
[]
[]
[]
[]
[]
[]
[]
[]
[]
[]
[]
[]
[]
[]
[]
[]
[]
[]
[]
[]
[]
[]
[]
[]
[]
[]
[]
[]
[]
[]
[]
[]
[]
[]
[]
[]
[]
[]
[]
[]
[]
[]
[]
[]
[]
[]
[]
[]
[]
[]
[]
[]
[]
[]
[]
[]
[]
[]
[]
[]
[]
[]
[]
[]
[]
[]
[]
[null,null,null,null,null,null,null,null,null,null,null,null,null,null,null,null,null,null,null,null,null,null,null,null,null,null,null,null,null,null,null,null,null,null,null,null,null,null,null,null,null,false]